Workbook

Sheet DATA
B1: CÁLCULO DE LAS PROPIEDADES DEL AGUA v.2.1
B3: P = | D3: kPa | G3: OPCIONES DE CALCULO | AH3: 138.89085
B4: T = | D4: ºC | F4: a) | G4: (P) ó (T) para calcular Líquido y Vapor Saturados
B5: x = | F5: b) | G5: (P, x) ó (T, x) para calcular mezcla saturada
B6: V = | D6: cm3/g | F6: c) | G6: (P ó T, V ó U ó H ó S) para calcular mezcla saturada
B7: U = | D7: kJ/kg | F7: d) | G7: (P, T) para calcular Vapor Sobre Saturado
B8: H = | D8: kJ/kg | F8: e) | G8: (P ó T, V ó U ó H ó S) para calcular Vapor Sobre Saturado
B9: S = | D9: kJ/kg.ºK
G10: REFERENCIAS:
B11: CALCULAR [ctl][c] | G11: • SMITH, J.M.; VAN NESS, HENDRICK C; ABBOTT, MICHAEL. (2005). Introduction to Chemical Engineering Thermodynamics. McGraw-Hill Series in Civil and Environmental Engineering. 7th. Edition. New York
B12: BORRAR [ctl][b]
G15: • CENGEL, YUNUS; BOLES, MICHAEL. (2008). Thermodynamics: An Engineering Approach. 6th Edition. McGraw-Hill. New York
C18: Ing. Federico G. Salazar - Julio 2009
C19: correo@fsalazar.bizland.com

Sheet TABLAS DE VAPOR DE AGUA
E1: t (°C) | F1: 75 | G1: 100 | H1: 125 | I1: 150 | J1: 175 | K1: 200 | L1: 220 | M1: 225 | N1: 240 | O1: 250 | P1: 260 | Q1: 275 | R1: 280 | S1: 290 | T1: 300 | U1: 320 | V1: 325 | W1: 340 | X1: 350 | Y1: 360 | Z1: 375 | AA1: 380 | AB1: 400 | AC1: 425 | AD1: 450 | AE1: 475 | AF1: 500 | AG1: 525 | AH1: 550 | AI1: 575 | AJ1: 600 | AK1: 625 | AL1: 650 | AM1: 700 | AN1: 800 | AO1: 900 | AP1: 1000 | AQ1: 1100 | AR1: 1200 | AS1: 1300
A2: P (kPa) | C2: liq.sat. | D2: vap.sat. | E2: tsat (°C) | F2: 348.15 | G2: 373.15 | H2: 398.15 | I2: 423.15 | J2: 448.15 | K2: 473.15 | L2: 493.15 | M2: 498.15 | N2: 513.15 | O2: 523.15 | P2: 533.15 | Q2: 548.15 | R2: 553.15 | S2: 563.15 | T2: 573.15 | U2: 593.15 | V2: 598.15 | W2: 613.15 | X2: 623.15 | Y2: 633.15 | Z2: 648.15 | AA2: 653.15 | AB2: 673.15 | AC2: 698.15 | AD2: 723.15 | AE2: 748.15 | AF2: 773.15 | AG2: 798.15 | AH2: 823.15 | AI2: 848.15 | AJ2: 873.15 | AK2: 898.15 | AL2: 923.15 | AM2: 973.15 | AN2: 1073.15 | AO2: 1173.15 | AP2: 1273.15 | AQ2: 1373.15 | AR2: 1473.15 | AS2: 1573.15
A3: 1 | B3: V | C3: 1 | D3: 129200 | E3: 6.98 | F3: 160640 | G3: 172180 | H3: 183720 | I3: 195270 | J3: 206810 | K3: 218350 | L3: 227582 | M3: 229890 | N3: 236814 | O3: 241430 | P3: 244506 | Q3: 252580.5 | R3: 255272 | S3: 259886 | T3: 264500 | U3: 273732 | V3: 276040 | W3: 282964 | X3: 287580 | Y3: 292196 | Z3: 299120 | AA3: 301428 | AB3: 310660 | AC3: 322195 | AD3: 333730 | AE3: 345270 | AF3: 356810 | AG3: 368345 | AH3: 379880 | AI3: 391420 | AJ3: 402960 | AK3: 414500 | AL3: 426040
B4: U | C4: 29.334 | D4: 2385.2 | F4: 2480.8 | G4: 2516.4 | H4: 2552.3 | I4: 2588.5 | J4: 2624.9 | K4: 2661.7 | L4: 2691.38 | M4: 2698.8 | N4: 2721.3 | O4: 2736.3 | P4: 2746.433333 | Q4: 2773.033333 | R4: 2781.9 | S4: 2797.1 | T4: 2812.3 | U4: 2843.34 | V4: 2851.1 | W4: 2874.38 | X4: 2889.9 | Y4: 2905.74 | Z4: 2929.5 | AA4: 2937.42 | AB4: 2969.1 | AC4: 3009.5 | AD4: 3049.9 | AE4: 3091.15 | AF4: 3132.4 | AG4: 3174.55 | AH4: 3216.7 | AI4: 3259.65 | AJ4: 3302.6 | AK4: 3346.45 | AL4: 3390.3
B5: H | C5: 29.335 | D5: 2514.4 | F5: 2641.5 | G5: 2688.6 | H5: 2736 | I5: 2783.7 | J5: 2831.7 | K5: 2880.1 | L5: 2918.98 | M5: 2928.7 | N5: 2958.1 | O5: 2977.7 | P5: 2990.913333 | Q5: 3025.598333 | R5: 3037.16 | S5: 3056.98 | T5: 3076.8 | U5: 3117.08 | V5: 3127.15 | W5: 3157.36 | X5: 3177.5 | Y5: 3197.94 | Z5: 3228.6 | AA5: 3238.82 | AB5: 3279.7 | AC5: 3331.65 | AD5: 3383.6 | AE5: 3436.4 | AF5: 3489.2 | AG5: 3542.85 | AH5: 3596.5 | AI5: 3651.05 | AJ5: 3705.6 | AK5: 3761 | AL5: 3816.4
B6: S | C6: 0.106 | D6: 8.9767 | F6: 9.3828 | G6: 9.5136 | H6: 9.6365 | I6: 9.7527 | J6: 9.8629 | K6: 9.9679 | L6: 10.04806 | M6: 10.0681 | N6: 10.1257 | O6: 10.1641 | P6: 10.18822 | Q6: 10.251535 | R6: 10.27264 | S6: 10.30882 | T6: 10.345 | U6: 10.41232 | V6: 10.42915 | W6: 10.47964 | X6: 10.5133 | Y6: 10.54486 | Z6: 10.5922 | AA6: 10.60798 | AB6: 10.6711 | AC6: 10.74555 | AD6: 10.82 | AE6: 10.8906 | AF6: 10.9612 | AG6: 11.02845 | AH6: 11.0957 | AI6: 11.16 | AJ6: 11.2243 | AK6: 11.28595 | AL6: 11.3476
A7: 10 | B7: V | C7: 1.01 | D7: 14670 | E7: 45.83 | F7: 16030 | G7: 17190 | H7: 18350 | I7: 19510 | J7: 20660 | K7: 21820 | L7: 22748 | M7: 22980 | N7: 23670 | O7: 24130 | P7: 24438 | Q7: 25246.5 | R7: 25516 | S7: 25978 | T7: 26440 | U7: 27364 | V7: 27595 | W7: 28288 | X7: 28750 | Y7: 29212 | Z7: 29905 | AA7: 30136 | AB7: 31060 | AC7: 32215 | AD7: 33370 | AE7: 34520 | AF7: 35670 | AG7: 36825 | AH7: 37980 | AI7: 39135 | AJ7: 40290 | AK7: 41445 | AL7: 42600 | AM7: 44911 | AN7: 49527 | AO7: 54143 | AP7: 58758 | AQ7: 63373 | AR7: 67989 | AS7: 72604
B8: U | C8: 191.822 | D8: 2438 | F8: 2479.7 | G8: 2515.6 | H8: 2551.6 | I8: 2588 | J8: 2624.5 | K8: 2661.4 | L8: 2691.16 | M8: 2698.6 | N8: 2721.1 | O8: 2736.1 | P8: 2746.246667 | Q8: 2772.881667 | R8: 2781.76 | S8: 2796.98 | T8: 2812.2 | U8: 2843.24 | V8: 2851 | W8: 2874.28 | X8: 2889.8 | Y8: 2905.64 | Z8: 2929.4 | AA8: 2937.32 | AB8: 2969 | AC8: 3009.4 | AD8: 3049.8 | AE8: 3091.05 | AF8: 3132.3 | AG8: 3174.45 | AH8: 3216.6 | AI8: 3259.6 | AJ8: 3302.6 | AK8: 3346.45 | AL8: 3390.3 | AM8: 3480.8 | AN8: 3665.4 | AO8: 3856.9 | AP8: 4055.3 | AQ8: 4260 | AR8: 4470.9 | AS8: 4687.4
B9: H | C9: 191.832 | D9: 2584.8 | F9: 2640 | G9: 2687.5 | H9: 2735.2 | I9: 2783.1 | J9: 2831.2 | K9: 2879.6 | L9: 2918.64 | M9: 2928.4 | N9: 2957.8 | O9: 2977.4 | P9: 2990.626667 | Q9: 3025.346667 | R9: 3036.92 | S9: 3056.76 | T9: 3076.6 | U9: 3116.88 | V9: 3126.95 | W9: 3157.16 | X9: 3177.3 | Y9: 3197.76 | Z9: 3228.45 | AA9: 3238.68 | AB9: 3279.6 | AC9: 3331.55 | AD9: 3383.5 | AE9: 3436.3 | AF9: 3489.1 | AG9: 3542.8 | AH9: 3596.5 | AI9: 3651 | AJ9: 3705.5 | AK9: 3761.9 | AL9: 3818.3 | AM9: 3929.9 | AN9: 4160.6 | AO9: 4398.3 | AP9: 4642.8 | AQ9: 4893.8 | AR9: 5150.8 | AS9: 5413.4
B10: S | C10: 0.6493 | D10: 8.1511 | F10: 8.3168 | G10: 8.4486 | H10: 8.5722 | I10: 8.6888 | J10: 8.7994 | K10: 8.9045 | L10: 8.98482 | M10: 9.0049 | N10: 9.06256 | O10: 9.101 | P10: 9.125133333 | Q10: 9.188483333 | R10: 9.2096 | S10: 9.2458 | T10: 9.282 | U10: 9.34936 | V10: 9.3662 | W10: 9.41672 | X10: 9.4504 | Y10: 9.48198 | Z10: 9.52935 | AA10: 9.54514 | AB10: 9.6083 | AC10: 9.68275 | AD10: 9.7572 | AE10: 9.8278 | AF10: 9.8984 | AG10: 9.96565 | AH10: 10.0329 | AI10: 10.09725 | AJ10: 10.1616 | AK10: 10.22325 | AL10: 10.2849 | AM10: 10.4056 | AN10: 10.6312 | AO10: 10.8429 | AP10: 11.0429 | AQ10: 11.2326 | AR10: 11.4132 | AS10: 11.5857
A11: 20 | B11: V | C11: 1.017 | D11: 7649.8 | E11: 60.09 | F11: 8000 | G11: 8584.7 | H11: 9167.1 | I11: 9748 | J11: 10320 | K11: 10900 | L11: 11364 | M11: 11480 | N11: 11828 | O11: 12060 | P11: 12213.33333 | Q11: 12615.83333 | R11: 12750 | S11: 12980 | T11: 13210 | U11: 13674 | V11: 13790 | W11: 14138 | X11: 14370 | Y11: 14600 | Z11: 14945 | AA11: 15060 | AB11: 15520 | AC11: 16100 | AD11: 16680 | AE11: 17255 | AF11: 17830 | AG11: 18410 | AH11: 18990 | AI11: 19565 | AJ11: 20140 | AK11: 20720 | AL11: 21300 | AM11: 35928.575 | AN11: 39621.425 | AO11: 43314.25 | AP11: 47006.325 | AQ11: 50698.375 | AR11: 54391.175 | AS11: 58083.225
B12: U | C12: 251.432 | D12: 2456.9 | F12: 2478.4 | G12: 2514.6 | H12: 2550.9 | I12: 2587.4 | J12: 2624.1 | K12: 2661 | L12: 2690.84 | M12: 2698.3 | N12: 2720.8 | O12: 2735.8 | P12: 2745.96 | Q12: 2772.63 | R12: 2781.52 | S12: 2796.76 | T12: 2812 | U12: 2843.04 | V12: 2850.8 | W12: 2874.08 | X12: 2889.6 | Y12: 2905.46 | Z12: 2929.25 | AA12: 2937.18 | AB12: 2968.9 | AC12: 3009.3 | AD12: 3049.7 | AE12: 3091 | AF12: 3132.3 | AG12: 3174.4 | AH12: 3216.5 | AI12: 3259.5 | AJ12: 3302.5 | AK12: 3346.35 | AL12: 3390.2 | AM12: 3480.75 | AN12: 3665.35 | AO12: 3856.875 | AP12: 4055.275 | AQ12: 4259.975 | AR12: 4470.875 | AS12: 4687.375
B13: H | C13: 251.453 | D13: 2609.9 | F13: 2638.4 | G13: 2686.3 | H13: 2734.2 | I13: 2782.3 | J13: 2830.6 | K13: 2879.2 | L13: 2918.24 | M13: 2928 | N13: 2957.46 | O13: 2977.1 | P13: 2990.34 | Q13: 3025.095 | R13: 3036.68 | S13: 3056.54 | T13: 3076.4 | U13: 3116.68 | V13: 3126.75 | W13: 3156.96 | X13: 3177.1 | Y13: 3197.56 | Z13: 3228.25 | AA13: 3238.48 | AB13: 3279.4 | AC13: 3331.4 | AD13: 3383.4 | AE13: 3436.2 | AF13: 3489 | AG13: 3542.7 | AH13: 3596.4 | AI13: 3650.9 | AJ13: 3705.4 | AK13: 3760.8 | AL13: 3816.2 | AM13: 3929.85 | AN13: 4160.55 | AO13: 4398.275 | AP13: 4642.775 | AQ13: 4893.775 | AR13: 5150.775 | AS13: 5413.375
B14: S | C14: 0.8321 | D14: 7.9094 | F14: 7.9933 | G14: 8.1261 | H14: 8.2504 | I14: 8.3676 | J14: 8.4785 | K14: 8.5839 | L14: 8.6643 | M14: 8.6844 | N14: 8.74212 | O14: 8.7806 | P14: 8.80476 | Q14: 8.86818 | R14: 8.88932 | S14: 8.92556 | T14: 8.9618 | U14: 9.0292 | V14: 9.04605 | W14: 9.0966 | X14: 9.1303 | Y14: 9.16188 | Z14: 9.20925 | AA14: 9.22504 | AB14: 9.2882 | AC14: 9.3627 | AD14: 9.4372 | AE14: 9.5078 | AF14: 9.5784 | AG14: 9.6457 | AH14: 9.713 | AI14: 9.7773 | AJ14: 9.8416 | AK14: 9.9033 | AL14: 9.965 | AM14: 10.21985 | AN14: 10.445475 | AO14: 10.657175 | AP14: 10.857175 | AQ14: 11.046875 | AR14: 11.2275 | AS14: 11.4
A15: 30 | B15: V | C15: 1.022 | D15: 5229.3 | E15: 69.12 | F15: 5322 | G15: 5714.4 | H15: 6104.6 | I15: 6493.2 | J15: 6880.8 | K15: 7267.5 | L15: 7576.54 | M15: 7653.8 | N15: 7885.34 | O15: 8039.7 | P15: 8142.513333 | Q15: 8412.398333 | R15: 8502.36 | S15: 8656.58 | T15: 8810.8 | U15: 9118.96 | V15: 9196 | W15: 9427.12 | X15: 9581.2 | Y15: 9734.96 | Z15: 9965.6 | AA15: 10042.48 | AB15: 10350 | AC15: 10735 | AD15: 11120 | AE15: 11505 | AF15: 11890 | AG15: 12275 | AH15: 12660 | AI15: 13045 | AJ15: 13430 | AK15: 13810 | AL15: 14190 | AM15: 26946.15 | AN15: 29715.85 | AO15: 32485.5 | AP15: 35254.65 | AQ15: 38023.75 | AR15: 40793.35 | AS15: 43562.45
B16: U | C16: 289.271 | D16: 2468.8 | F16: 2477.1 | G16: 2513.6 | H16: 2550.2 | I16: 2586.8 | J16: 2623.6 | K16: 2660.7 | L16: 2688.94 | M16: 2696 | N16: 2719.76 | O16: 2735.6 | P16: 2745.76 | Q16: 2772.43 | R16: 2781.32 | S16: 2796.56 | T16: 2811.8 | U16: 2842.88 | V16: 2850.65 | W16: 2873.96 | X16: 2889.5 | Y16: 2905.34 | Z16: 2929.1 | AA16: 2937.02 | AB16: 2968.7 | AC16: 3009.15 | AD16: 3049.6 | AE16: 3090.9 | AF16: 3132.2 | AG16: 3174.35 | AH16: 3216.5 | AI16: 3259.5 | AJ16: 3302.5 | AK16: 3346.35 | AL16: 3390.2 | AM16: 3480.7 | AN16: 3665.3 | AO16: 3856.85 | AP16: 4055.25 | AQ16: 4259.95 | AR16: 4470.85 | AS16: 4687.35
B17: H | C17: 289.302 | D17: 2625.4 | F17: 2636.8 | G17: 2685.1 | H17: 2733.3 | I17: 2781.6 | J17: 2830 | K17: 2878.7 | L17: 2917.82 | M17: 2927.6 | N17: 2957.12 | O17: 2976.8 | P17: 2990.04 | Q17: 3024.795 | R17: 3036.38 | S17: 3056.24 | T17: 3076.1 | U17: 3116.42 | V17: 3126.5 | W17: 3156.74 | X17: 3176.9 | Y17: 3197.38 | Z17: 3228.1 | AA17: 3238.34 | AB17: 3279.3 | AC17: 3331.3 | AD17: 3383.3 | AE17: 3436.1 | AF17: 3488.9 | AG17: 3542.6 | AH17: 3596.3 | AI17: 3650.85 | AJ17: 3705.4 | AK17: 3760.8 | AL17: 3816.2 | AM17: 3929.8 | AN17: 4160.5 | AO17: 4398.25 | AP17: 4642.75 | AQ17: 4893.75 | AR17: 5150.75 | AS17: 5413.35
B18: S | C18: 0.9441 | D18: 7.7695 | F18: 7.8024 | G18: 7.9363 | H18: 8.614 | I18: 8.1791 | J18: 8.2903 | K18: 8.396 | L18: 8.47656 | M18: 8.4967 | N18: 8.55448 | O18: 8.593 | P18: 8.617186667 | Q18: 8.680676667 | R18: 8.70184 | S18: 8.73812 | T18: 8.7744 | U18: 8.84184 | V18: 8.8587 | W18: 8.90928 | X18: 8.943 | Y18: 8.9746 | Z18: 9.022 | AA18: 9.0378 | AB18: 9.101 | AC18: 9.17545 | AD18: 9.2499 | AE18: 9.32055 | AF18: 9.3912 | AG18: 9.45845 | AH18: 9.5257 | AI18: 9.59005 | AJ18: 9.6544 | AK18: 9.7161 | AL18: 9.7778 | AM18: 10.0341 | AN18: 10.25975 | AO18: 10.47145 | AP18: 10.67145 | AQ18: 10.86115 | AR18: 11.0418 | AS18: 11.2143
A19: 40 | B19: V | C19: 1.027 | D19: 3993.4 | E19: 75.89 | G19: 4279.2 | H19: 4573.3 | I19: 4865.8 | J19: 5157.2 | K19: 5447.8 | L19: 5679.96 | M19: 5738 | N19: 5911.82 | O19: 6027.7 | P19: 6104.873333 | Q19: 6307.453333 | R19: 6374.98 | S19: 6490.74 | T19: 6606.5 | U19: 6837.74 | V19: 6895.55 | W19: 7068.98 | X19: 7184.6 | Y19: 7300.18 | Z19: 7473.55 | AA19: 7531.34 | AB19: 7762.5 | AC19: 8051.3 | AD19: 8340.1 | AE19: 8628.85 | AF19: 8917.6 | AG19: 9206.25 | AH19: 9494.9 | AI19: 9782.45 | AJ19: 10070 | AK19: 10355 | AL19: 10640 | AM19: 17963.725 | AN19: 19810.275 | AO19: 21656.75 | AP19: 23502.975 | AQ19: 25349.125 | AR19: 27195.525 | AS19: 29041.675
B20: U | C20: 317.609 | D20: 2477.1 | G20: 2512.6 | H20: 2549.4 | I20: 25862 | J20: 2623.2 | K20: 2660.3 | L20: 2690.22 | M20: 2697.7 | N20: 2720.32 | O20: 2735.4 | P20: 2745.56 | Q20: 2772.23 | R20: 2781.12 | S20: 2796.36 | T20: 2811.6 | U20: 2842.72 | V20: 2850.5 | W20: 2873.84 | X20: 2889.4 | Y20: 2905.24 | Z20: 2929 | AA20: 2936.92 | AB20: 2968.6 | AC20: 3009.05 | AD20: 3049.5 | AE20: 3090.8 | AF20: 3132.1 | AG20: 3174.25 | AH20: 3216.4 | AI20: 3259.4 | AJ20: 3302.4 | AK20: 3346.25 | AL20: 3390.1 | AM20: 3480.65 | AN20: 3665.25 | AO20: 3856.825 | AP20: 4055.225 | AQ20: 4259.925 | AR20: 4470.825 | AS20: 4687.325
B21: H | C21: 317.65 | D21: 2636.9 | G21: 2683.8 | H21: 2732.3 | I21: 2780.9 | J21: 2829.5 | K21: 2878.2 | L21: 2917.4 | M21: 2927.2 | N21: 2956.78 | O21: 2976.5 | P21: 2989.753333 | Q21: 3024.543333 | R21: 3036.14 | S21: 3056.02 | T21: 3075.9 | U21: 3116.26 | V21: 3126.35 | W21: 3156.62 | X21: 3176.8 | Y21: 3197.26 | Z21: 3227.95 | AA21: 3238.18 | AB21: 3279.1 | AC21: 3331.1 | AD21: 3383.1 | AE21: 3435.95 | AF21: 3488.8 | AG21: 3542.5 | AH21: 3596.2 | AI21: 3650.75 | AJ21: 3705.3 | AK21: 3761.7 | AL21: 3818.1 | AM21: 3929.75 | AN21: 4160.45 | AO21: 4398.225 | AP21: 4642.725 | AQ21: 4893.725 | AR21: 5150.725 | AS21: 5413.325
B22: S | C22: 1.0261 | D22: 7.6709 | G22: 7.8009 | H22: 7.9268 | I22: 8.045 | J22: 8.1566 | K22: 8.2624 | L22: 8.34312 | M22: 8.3633 | N22: 8.4212 | O22: 8.4598 | P22: 8.484 | Q22: 8.547525 | R22: 8.5687 | S22: 8.605 | T22: 8.6413 | U22: 8.70878 | V22: 8.72565 | W22: 8.77626 | X22: 8.81 | Y22: 8.8416 | Z22: 8.889 | AA22: 8.9048 | AB22: 8.968 | AC22: 9.0425 | AD22: 9.117 | AE22: 9.18765 | AF22: 9.2583 | AG22: 9.3256 | AH22: 9.3929 | AI22: 9.45725 | AJ22: 9.5216 | AK22: 9.5833 | AL22: 9.645 | AM22: 9.84835 | AN22: 10.074025 | AO22: 10.285725 | AP22: 10.485725 | AQ22: 10.675425 | AR22: 10.8561 | AS22: 11.0286
A23: 50 | B23: V | C23: 1.03 | D23: 3240.3 | E23: 81.32 | G23: 3418.1 | H23: 3654.5 | I23: 3889.3 | J23: 4123 | K23: 4356 | L23: 4542 | M23: 4588.5 | N23: 4727.7 | O23: 4820.5 | P23: 4882.286667 | Q23: 5044.476667 | R23: 5098.54 | S23: 5191.22 | T23: 5283.9 | U23: 5469.02 | V23: 5515.3 | W23: 5654.14 | X23: 5746.7 | Y23: 5839.18 | Z23: 5977.9 | AA23: 6024.14 | AB23: 6209.1 | AC23: 6440.25 | AD23: 6671.4 | AE23: 6902.45 | AF23: 7133.5 | AG23: 7364.5 | AH23: 7595.5 | AI23: 7826.45 | AJ23: 8057.4 | AK23: 8288.3 | AL23: 8519.2 | AM23: 8981.3 | AN23: 9904.7 | AO23: 10828 | AP23: 11751.3 | AQ23: 12674.5 | AR23: 13597.7 | AS23: 14520.9
B24: U | C24: 340.49 | D24: 2483.2 | G24: 2511.7 | H24: 2548.6 | I24: 2585.6 | J24: 2622.7 | K24: 2659.9 | L24: 2689.9 | M24: 2697.4 | N24: 2720.02 | O24: 2735.1 | P24: 2745.286667 | Q24: 2772.026667 | R24: 2780.94 | S24: 2796.22 | T24: 2811.5 | U24: 2842.58 | V24: 2850.35 | W24: 2873.66 | X24: 2889.2 | Y24: 2905.06 | Z24: 2928.85 | AA24: 2936.78 | AB24: 2968.5 | AC24: 3008.95 | AD24: 3049.4 | AE24: 3090.7 | AF24: 3132 | AG24: 3174.15 | AH24: 3216.3 | AI24: 3259.3 | AJ24: 3302.3 | AK24: 3346.2 | AL24: 3390.1 | AM24: 3480.6 | AN24: 3665.2 | AO24: 3856.8 | AP24: 4055.2 | AQ24: 4259.9 | AR24: 4470.8 | AS24: 4687.3
B25: H | C25: 340.54 | D25: 2645.2 | G25: 2682.6 | H25: 2731.4 | I25: 2780.1 | J25: 2828.9 | K25: 2877.7 | L25: 2916.98 | M25: 2926.8 | N25: 2956.38 | O25: 2976.1 | P25: 2989.38 | Q25: 3024.24 | R25: 3035.86 | S25: 3055.78 | T25: 3075.7 | U25: 3116.06 | V25: 3126.15 | W25: 3156.42 | X25: 3176.6 | Y25: 3197.08 | Z25: 3227.8 | AA25: 3238.04 | AB25: 3279 | AC25: 3331 | AD25: 3383 | AE25: 3435.85 | AF25: 3488.7 | AG25: 3542.4 | AH25: 3596.1 | AI25: 3650.65 | AJ25: 3705.2 | AK25: 3760.6 | AL25: 3816 | AM25: 3929.7 | AN25: 4160.4 | AO25: 4398.2 | AP25: 4642.7 | AQ25: 4893.7 | AR25: 5150.7 | AS25: 5413.3
B26: S | C26: 1.0912 | D26: 7.5931 | G26: 7.6953 | H26: 7.8219 | I26: 7.9406 | J26: 8.0526 | K26: 8.1587 | L26: 8.23958 | M26: 8.2598 | N26: 8.31776 | O26: 8.3564 | P26: 8.380613333 | Q26: 8.444173333 | R26: 8.46536 | S26: 8.50168 | T26: 8.538 | U26: 8.60552 | V26: 8.6224 | W26: 8.67304 | X26: 8.7068 | Y26: 8.73842 | Z26: 8.78585 | AA26: 8.80166 | AB26: 8.8649 | AC26: 8.9394 | AD26: 9.0139 | AE26: 9.08455 | AF26: 9.1552 | AG26: 9.2225 | AH26: 9.2898 | AI26: 9.35415 | AJ26: 9.4185 | AK26: 9.4802 | AL26: 9.5419 | AM26: 9.6626 | AN26: 9.8883 | AO26: 10.1 | AP26: 10.3 | AQ26: 10.4897 | AR26: 10.6704 | AS26: 10.8429
A27: 75 | B27: V | C27: 1.037 | D27: 2217.2 | E27: 91.76 | G27: 2269.8 | H27: 2429.4 | I27: 2587.3 | J27: 2744.2 | K27: 2900.2 | L27: 3024.68 | M27: 3055.8 | N27: 3148.86 | O27: 3210.9 | P27: 3252.18 | Q27: 3360.54 | R27: 3396.66 | S27: 3458.58 | T27: 3520.5 | U27: 3644.06 | V27: 3674.95 | W27: 3767.62 | X27: 3829.4 | Y27: 3891.12 | Z27: 3983.7 | AA27: 4014.56 | AB27: 4138 | AC27: 4292.2 | AD27: 4446.4 | AE27: 4600.55 | AF27: 4754.7 | AG27: 4908.75 | AH27: 5062.8 | AI27: 5216.85 | AJ27: 5370.9 | AK27: 5524.9 | AL27: 5678.9 | AM27: 6735.65 | AN27: 7428.3 | AO27: 8120.85 | AP27: 8813.4 | AQ27: 9505.85 | AR27: 10198.25 | AS27: 10890.7
B28: U | C28: 384.36 | D28: 2496.1 | G28: 2509.2 | H28: 2546.7 | I28: 2584.2 | J28: 2621.6 | K28: 2659 | L28: 2689.16 | M28: 2696.7 | N28: 2719.38 | O28: 2734.5 | P28: 2744.7 | Q28: 2771.475 | R28: 2780.4 | S28: 2795.7 | T28: 2811 | U28: 2842.16 | V28: 2849.95 | W28: 2873.32 | X28: 2888.9 | Y28: 2904.76 | Z28: 2928.55 | AA28: 2936.48 | AB28: 2968.2 | AC28: 3008.7 | AD28: 3049.2 | AE28: 3090.5 | AF28: 3131.8 | AG28: 3173.95 | AH28: 3216.1 | AI28: 3259.15 | AJ28: 3302.2 | AK28: 3346.05 | AL28: 3389.9 | AM28: 3480.5 | AN28: 3665.1 | AO28: 3856.75 | AP28: 4055.1 | AQ28: 4259.85 | AR28: 4470.75 | AS28: 4687.25
B29: H | C29: 384.44 | D29: 2662.4 | G29: 2679.4 | H29: 2728.9 | I29: 2778.2 | J29: 2827.4 | K29: 2876.6 | L29: 2915.96 | M29: 2925.8 | N29: 2955.5 | O29: 2975.3 | P29: 2988.606667 | Q29: 3023.536667 | R29: 3035.18 | S29: 3055.14 | T29: 3075.1 | U29: 3115.5 | V29: 3125.6 | W29: 3155.9 | X29: 3176.1 | Y29: 3196.6 | Z29: 3227.35 | AA29: 3237.6 | AB29: 3278.6 | AC29: 3330.65 | AD29: 3382.7 | AE29: 3435.55 | AF29: 3488.4 | AG29: 3542.1 | AH29: 3595.8 | AI29: 3650.4 | AJ29: 3705 | AK29: 3760.45 | AL29: 3815.9 | AM29: 3929.55 | AN29: 4160.3 | AO29: 4398.1 | AP29: 4642.65 | AQ29: 4893.65 | AR29: 5150.65 | AS29: 5413.3
B30: S | C30: 1.2132 | D30: 7.4558 | G30: 7.5014 | H30: 7.63 | I30: 7.75 | J30: 7.8629 | K30: 7.9697 | L30: 8.0509 | M30: 8.0712 | N30: 8.12934 | O30: 8.1681 | P30: 8.19238 | Q30: 8.256115 | R30: 8.27736 | S30: 8.31378 | T30: 8.3502 | U30: 8.41776 | V30: 8.43465 | W30: 8.48532 | X30: 8.5191 | Y30: 8.55074 | Z30: 8.5982 | AA30: 8.61402 | AB30: 8.6773 | AC30: 8.7519 | AD30: 8.8265 | AE30: 8.89715 | AF30: 8.9678 | AG30: 9.03515 | AH30: 9.1025 | AI30: 9.16685 | AJ30: 9.2312 | AK30: 9.2929 | AL30: 9.3546 | AM30: 9.5025 | AN30: 9.72825 | AO30: 9.94 | AP30: 10.14 | AQ30: 10.32975 | AR30: 10.5104 | AS30: 10.6829
A31: 100 | B31: V | C31: 1.043 | D31: 1693.7 | E31: 99.63 | G31: 1695.5 | H31: 1816.7 | I31: 1936.3 | J31: 2054.7 | K31: 2172.3 | L31: 2265.98 | M31: 2289.4 | N31: 2359.42 | O31: 2406.1 | P31: 2437.113333 | Q31: 2518.523333 | R31: 2545.66 | S31: 2592.18 | T31: 2638.7 | U31: 2731.54 | V31: 2754.75 | W31: 2824.38 | X31: 2870.8 | Y31: 2917.14 | Z31: 2986.65 | AA31: 3009.82 | AB31: 3102.5 | AC31: 3218.25 | AD31: 3334 | AE31: 3449.65 | AF31: 3565.3 | AG31: 3680.9 | AH31: 3796.5 | AI31: 3912.1 | AJ31: 4027.7 | AK31: 4143.25 | AL31: 4258.8 | AM31: 4490 | AN31: 4951.9 | AO31: 5413.7 | AP31: 5875.5 | AQ31: 6337.2 | AR31: 6798.8 | AS31: 7260.5
B32: U | C32: 417.406 | D32: 2506.1 | G32: 2506.6 | H32: 2544.8 | I32: 2582.7 | J32: 2620.4 | K32: 2658.1 | L32: 2688.34 | M32: 2695.9 | N32: 2718.7 | O32: 2733.9 | P32: 2744.126667 | Q32: 2770.971667 | R32: 2779.92 | S32: 2795.26 | T32: 2810.6 | U32: 2841.8 | V32: 2849.6 | W32: 2873 | X32: 2888.6 | Y32: 2904.48 | Z32: 2928.3 | AA32: 2936.24 | AB32: 2968 | AC32: 3008.5 | AD32: 3049 | AE32: 3090.3 | AF32: 3131.6 | AG32: 3173.8 | AH32: 3216 | AI32: 3259 | AJ32: 3302 | AK32: 3345.9 | AL32: 3389.8 | AM32: 3480.4 | AN32: 3665 | AO32: 3856.7 | AP32: 4055 | AQ32: 4259.8 | AR32: 4470.7 | AS32: 4687.2
B33: H | C33: 417.511 | D33: 2675.4 | G33: 2676.2 | H33: 2726.5 | I33: 2776.3 | J33: 2825.9 | K33: 2875.4 | L33: 2915 | M33: 2924.9 | N33: 2954.66 | O33: 2974.5 | P33: 2987.833333 | Q33: 3022.833333 | R33: 3034.5 | S33: 3054.5 | T33: 3074.5 | U33: 3114.94 | V33: 3125.05 | W33: 3155.38 | X33: 3175.6 | Y33: 3196.12 | Z33: 3226.9 | AA33: 3237.16 | AB33: 3278.2 | AC33: 3330.3 | AD33: 3382.4 | AE33: 3435.25 | AF33: 3488.1 | AG33: 3541.85 | AH33: 3595.6 | AI33: 3650.2 | AJ33: 3704.8 | AK33: 3660.25 | AL33: 3615.7 | AM33: 3929.4 | AN33: 4160.2 | AO33: 4398 | AP33: 4642.6 | AQ33: 4893.6 | AR33: 5150.6 | AS33: 5413.3
B34: S | C34: 1.3027 | D34: 7.3598 | G34: 7.3618 | H34: 7.4923 | I34: 7.8137 | J34: 7.7275 | K34: 7.8349 | L34: 7.9165 | M34: 7.9369 | N34: 7.99528 | O34: 8.0342 | P34: 8.05852 | Q34: 8.12236 | R34: 8.14364 | S34: 8.18012 | T34: 8.2166 | U34: 8.28428 | V34: 8.3012 | W34: 8.35196 | X34: 8.3858 | Y34: 8.41748 | Z34: 8.465 | AA34: 8.48084 | AB34: 8.5442 | AC34: 8.6188 | AD34: 8.6934 | AE34: 8.7641 | AF34: 8.8348 | AG34: 8.90215 | AH34: 8.9695 | AI34: 9.03385 | AJ34: 9.0982 | AK34: 9.15995 | AL34: 9.2217 | AM34: 9.3424 | AN34: 9.5682 | AO34: 9.78 | AP34: 9.98 | AQ34: 10.1698 | AR34: 10.3504 | AS34: 10.5229
A35: 101.325 | B35: V | C35: 1.044 | D35: 1873 | E35: 100 | G35: 1673 | H35: 1792.7 | I35: 1910.7 | J35: 2027.7 | K35: 2143.8 | L35: 2236.2 | M35: 2259.3 | N35: 2328.42 | O35: 2374.5 | P35: 2405.126667 | Q35: 2485.521667 | R35: 2512.32 | S35: 2558.26 | T35: 2604.2 | U35: 2695.8 | V35: 2718.7 | W35: 2787.4 | X35: 2833.2 | Y35: 2878.94 | Z35: 2947.55 | AA35: 2970.42 | AB35: 3061.9 | AC35: 3176.1 | AD35: 3290.3 | AE35: 3404.5 | AF35: 3518.7 | AG35: 3632.8 | AH35: 3746.9 | AI35: 3860.95 | AJ35: 3975 | AK35: 4089.05 | AL35: 4203.1 | AM35: 4460.245005 | AN35: 4919.0877 | AO35: 5377.830395 | AP35: 5836.572162 | AQ35: 6295.21446 | AR35: 6753.757685 | AS35: 7212.39932
B36: U | C36: 418.959 | D36: 2506.5 | G36: 2506.5 | H36: 2544.7 | I36: 2582.6 | J36: 2620.4 | K36: 2658.1 | L36: 2688.34 | M36: 2695.9 | N36: 2718.7 | O36: 2733.9 | P36: 2744.126667 | Q36: 2770.971667 | R36: 2779.92 | S36: 2795.26 | T36: 2810.6 | U36: 2841.76 | V36: 2849.55 | W36: 2872.92 | X36: 2888.5 | Y36: 2904.4 | Z36: 2928.25 | AA36: 2936.2 | AB36: 2968 | AC36: 3008.45 | AD36: 3048.9 | AE36: 3090.25 | AF36: 3131.6 | AG36: 3173.75 | AH36: 3215.9 | AI36: 3258.95 | AJ36: 3302 | AK36: 3345.9 | AL36: 3389.8 | AM36: 3480.393375 | AN36: 3664.996025 | AO36: 3856.6947 | AP36: 4054.99735 | AQ36: 4259.79735 | AR36: 4470.69735 | AS36: 4687.198675
B37: H | C37: 419.064 | D37: 2676 | G37: 2676 | H37: 2726.4 | I37: 2776.2 | J37: 2825.8 | K37: 2875.3 | L37: 2914.74 | M37: 2924.6 | N37: 2954.54 | O37: 2974.5 | P37: 2987.82 | Q37: 3022.785 | R37: 3034.44 | S37: 3054.42 | T37: 3074.4 | U37: 3114.88 | V37: 3125 | W37: 3155.36 | X37: 3175.6 | Y37: 3196.12 | Z37: 3226.9 | AA37: 3237.16 | AB37: 3278.2 | AC37: 3330.25 | AD37: 3382.3 | AE37: 3435.2 | AF37: 3488.1 | AG37: 3542.35 | AH37: 3596.6 | AI37: 3650.7 | AJ37: 3704.8 | AK37: 3760.25 | AL37: 3815.7 | AM37: 3929.39205 | AN37: 4160.1947 | AO37: 4397.996025 | AP37: 4642.596025 | AQ37: 4893.596025 | AR37: 5150.59735 | AS37: 5413.29735
B38: S | C38: 1.3069 | D38: 7.3554 | G38: 7.3554 | H38: 7.486 | I38: 7.6075 | J38: 7.7213 | K38: 7.8288 | L38: 7.9104 | M38: 7.9308 | N38: 7.98912 | O38: 8.028 | P38: 8.052333333 | Q38: 8.116208333 | R38: 8.1375 | S38: 8.174 | T38: 8.2105 | U38: 8.27818 | V38: 8.2951 | W38: 8.34586 | X38: 8.3797 | Y38: 8.41138 | Z38: 8.4589 | AA38: 8.47474 | AB38: 8.5381 | AC38: 8.6127 | AD38: 8.6873 | AE38: 8.758 | AF38: 8.8287 | AG38: 8.89605 | AH38: 8.9634 | AI38: 9.0278 | AJ38: 9.0922 | AK38: 9.1539 | AL38: 9.2156 | AM38: 9.338156025 | AN38: 9.563956025 | AO38: 9.77575735 | AP38: 9.975758675 | AQ38: 10.16555867 | AR38: 10.34616 | AS38: 10.51866
A39: 125 | B39: V | C39: 1.049 | D39: 1374.6 | E39: 105.99 | H39: 1449.1 | I39: 1545.6 | J39: 1641 | K39: 1735.6 | L39: 1810.8 | M39: 1829.6 | N39: 1885.76 | O39: 1923.2 | P39: 1948.066667 | Q39: 2013.341667 | R39: 2035.1 | S39: 2072.4 | T39: 2109.7 | U39: 2184.06 | V39: 2202.65 | W39: 2258.42 | X39: 2295.6 | Y39: 2332.72 | Z39: 2388.4 | AA39: 2406.96 | AB39: 2481.2 | AC39: 2573.85 | AD39: 2666.5 | AE39: 2759.1 | AF39: 2851.7 | AG39: 2944.25 | AH39: 3036.8 | AI39: 3129.3 | AJ39: 3221.8 | AK39: 3314.25 | AL39: 3406.7 | AM39: 3928.585 | AN39: 4332.8 | AO39: 4736.915 | AP39: 5141.0125 | AQ39: 5545.02 | AR39: 5948.945 | AS39: 6352.94
B40: U | C40: 444.224 | D40: 2513.4 | H40: 2542.9 | I40: 2581.2 | J40: 2619.3 | K40: 2657.2 | L40: 2687.6 | M40: 2695.2 | N40: 2718.06 | O40: 2733.3 | P40: 2743.553333 | Q40: 2770.468333 | R40: 2779.44 | S40: 2794.82 | T40: 2810.2 | U40: 2841.4 | V40: 2849.2 | W40: 2872.6 | X40: 2888.2 | Y40: 2904.1 | Z40: 2927.95 | AA40: 2935.9 | AB40: 2967.7 | AC40: 3008.2 | AD40: 3048.7 | AE40: 3090.05 | AF40: 3131.4 | AG40: 3173.6 | AH40: 3215.8 | AI40: 3258.85 | AJ40: 3301.9 | AK40: 3345.8 | AL40: 3389.7 | AM40: 3480.275 | AN40: 3664.925 | AO40: 3856.6 | AP40: 4054.95 | AQ40: 4259.75 | AR40: 4470.65 | AS40: 4687.175
B41: H | C41: 444.356 | D41: 2685.2 | H41: 2724 | I41: 2774.4 | J41: 2824.4 | K41: 2874.2 | L41: 2913.96 | M41: 2923.9 | N41: 2953.78 | O41: 2973.7 | P41: 2987.06 | Q41: 3022.13 | R41: 3033.82 | S41: 3053.86 | T41: 3073.9 | U41: 3114.42 | V41: 3124.55 | W41: 3154.94 | X41: 3175.2 | Y41: 3195.72 | Z41: 3226.5 | AA41: 3236.76 | AB41: 3277.8 | AC41: 3329.9 | AD41: 3382 | AE41: 3434.95 | AF41: 3487.9 | AG41: 3541.65 | AH41: 3595.4 | AI41: 3650 | AJ41: 3704.6 | AK41: 3760.05 | AL41: 3815.5 | AM41: 3929.25 | AN41: 4160.1 | AO41: 4397.925 | AP41: 4642.525 | AQ41: 4893.525 | AR41: 5150.55 | AS41: 5413.25
B42: S | C42: 1.374 | D42: 7.2847 | H42: 7.3844 | I42: 7.5072 | J42: 7.6219 | K42: 7.73 | L42: 7.81192 | M42: 7.8324 | N42: 7.89096 | O42: 7.93 | P42: 7.954386667 | Q42: 8.018401667 | R42: 8.03974 | S42: 8.07632 | T42: 8.1129 | U42: 8.18066 | V42: 8.1976 | W42: 8.24842 | X42: 8.2823 | Y42: 8.314 | Z42: 8.36155 | AA42: 8.3774 | AB42: 8.4408 | AC42: 8.51545 | AD42: 8.5901 | AE42: 8.66085 | AF42: 8.7316 | AG42: 8.79895 | AH42: 8.8663 | AI42: 8.9307 | AJ42: 8.9951 | AK42: 9.05685 | AL42: 9.1186 | AM42: 9.262325 | AN42: 9.488125 | AO42: 9.69995 | AP42: 9.899975 | AQ42: 10.089775 | AR42: 10.2704 | AS42: 10.4429
A43: 150 | B43: V | C43: 1.053 | D43: 1159 | E43: 111.37 | H43: 1204 | I43: 1285.2 | J43: 1365.2 | K43: 1444.4 | L43: 1507.28 | M43: 1523 | N43: 1569.98 | O43: 1601.3 | P43: 1622.06 | Q43: 1676.555 | R43: 1694.72 | S43: 1725.86 | T43: 1757 | U43: 1819.08 | V43: 1834.6 | W43: 1881.16 | X43: 1912.2 | Y43: 1943.14 | Z43: 1989.55 | AA43: 2005.02 | AB43: 2066.9 | AC43: 2144.2 | AD43: 2221.5 | AE43: 2298.7 | AF43: 2375.9 | AG43: 2453.05 | AH43: 2530.2 | AI43: 2607.35 | AJ43: 2684.5 | AK43: 2761.55 | AL43: 2838.6 | AM43: 3367.17 | AN43: 3713.7 | AO43: 4060.13 | AP43: 4406.525 | AQ43: 4752.84 | AR43: 5099.09 | AS43: 5445.38
B44: U | C44: 466.968 | D44: 2519.5 | H44: 2540.9 | I44: 2579.7 | J44: 2618.1 | K44: 2656.3 | L44: 2686.78 | M44: 2694.4 | N44: 2717.38 | O44: 2732.7 | P44: 2742.966667 | Q44: 2769.916667 | R44: 2778.9 | S44: 2794.3 | T44: 2809.7 | U44: 2840.98 | V44: 2848.8 | W44: 2872.26 | X44: 2887.9 | Y44: 2903.8 | Z44: 2927.65 | AA44: 2935.6 | AB44: 2967.4 | AC44: 3007.95 | AD44: 3048.5 | AE44: 3089.85 | AF44: 3131.2 | AG44: 3173.4 | AH44: 3215.6 | AI44: 3258.65 | AJ44: 3301.7 | AK44: 3345.6 | AL44: 3389.5 | AM44: 3480.15 | AN44: 3664.85 | AO44: 3856.5 | AP44: 4054.9 | AQ44: 4259.7 | AR44: 4470.6 | AS44: 4687.15
B45: H | C45: 467.126 | D45: 2693.4 | H45: 2721.5 | I45: 2772.5 | J45: 2822.9 | K45: 2872.9 | L45: 2912.9 | M45: 2922.9 | N45: 2952.9 | O45: 2972.9 | P45: 2986.286667 | Q45: 3021.426667 | R45: 3033.14 | S45: 3053.22 | T45: 3073.3 | U45: 3113.86 | V45: 3124 | W45: 3154.42 | X45: 3174.7 | Y45: 3195.26 | Z45: 3226.1 | AA45: 3236.38 | AB45: 3277.5 | AC45: 3329.6 | AD45: 3381.7 | AE45: 3434.65 | AF45: 3487.6 | AG45: 3541.35 | AH45: 3595.1 | AI45: 3649.75 | AJ45: 3704.4 | AK45: 3759.85 | AL45: 3815.3 | AM45: 3929.1 | AN45: 4160 | AO45: 4397.85 | AP45: 4642.45 | AQ45: 4893.45 | AR45: 5150.5 | AS45: 5413.2
B46: S | C46: 1.4336 | D46: 7.2234 | H46: 7.2953 | I46: 7.4194 | J46: 7.5352 | K46: 7.6439 | L46: 7.72622 | M46: 7.7468 | N46: 7.80554 | O46: 7.8447 | P46: 7.86914 | Q46: 7.933295 | R46: 7.95468 | S46: 7.99134 | T46: 8.028 | U46: 8.09584 | V46: 8.1128 | W46: 8.16368 | X46: 8.1976 | Y46: 8.22932 | Z46: 8.2769 | AA46: 8.29276 | AB46: 8.3562 | AC46: 8.4309 | AD46: 8.5056 | AE46: 8.5764 | AF46: 8.6472 | AG46: 8.71455 | AH46: 8.7819 | AI46: 8.84635 | AJ46: 8.9108 | AK46: 8.97255 | AL46: 9.0343 | AM46: 9.18225 | AN46: 9.40805 | AO46: 9.6199 | AP46: 9.81995 | AQ46: 10.00975 | AR46: 10.1904 | AS46: 10.3629
A47: 175 | B47: V | C47: 1.057 | D47: 1003.34 | E47: 116.06 | H47: 1028.8 | I47: 1099.1 | J47: 1168.2 | K47: 1236.4 | L47: 1290.56 | M47: 1304.1 | N47: 1344.42 | O47: 1371.3 | P47: 1389.14 | Q47: 1435.97 | R47: 1451.58 | S47: 1478.34 | T47: 1505.1 | U47: 1558.38 | V47: 1571.7 | W47: 1611.66 | X47: 1638.3 | Y47: 1664.86 | Z47: 1704.7 | AA47: 1717.98 | AB47: 1771.1 | AC47: 1837.4 | AD47: 1903.7 | AE47: 1969.9 | AF47: 2036.1 | AG47: 2102.25 | AH47: 2168.4 | AI47: 2234.55 | AJ47: 2300.7 | AK47: 2366.8 | AL47: 2432.9 | AM47: 2805.755 | AN47: 3094.6 | AO47: 3383.345 | AP47: 3672.0375 | AQ47: 3960.66 | AR47: 4249.235 | AS47: 4537.82
B48: U | C48: 486.815 | D48: 2524.7 | H48: 2538.9 | I48: 2578.2 | J48: 2616.9 | K48: 2655.3 | L48: 2686.02 | M48: 2693.7 | N48: 2716.74 | O48: 2732.1 | P48: 2742.393333 | Q48: 2769.413333 | R48: 2778.42 | S48: 2793.86 | T48: 2809.3 | U48: 2840.58 | V48: 2848.4 | W48: 2871.86 | X48: 2887.5 | Y48: 2903.42 | Z48: 2927.3 | AA48: 2935.26 | AB48: 2967.1 | AC48: 3007.7 | AD48: 3048.3 | AE48: 3089.65 | AF48: 3131 | AG48: 3173.2 | AH48: 3215.4 | AI48: 3258.5 | AJ48: 3301.6 | AK48: 3345.5 | AL48: 3389.4 | AM48: 3480.025 | AN48: 3664.775 | AO48: 3856.4 | AP48: 4054.85 | AQ48: 4259.65 | AR48: 4470.55 | AS48: 4687.125
B49: H | C49: 487 | D49: 2700.3 | H49: 2719 | I49: 2770.5 | J49: 2821.3 | K49: 2871.7 | L49: 2911.86 | M49: 2921.9 | N49: 2951.96 | O49: 2972 | P49: 2985.426667 | Q49: 3020.671667 | R49: 3032.42 | S49: 3052.56 | T49: 3072.7 | U49: 3113.3 | V49: 3123.45 | W49: 3153.9 | X49: 3174.2 | Y49: 3194.78 | Z49: 3225.65 | AA49: 3235.94 | AB49: 3277.1 | AC49: 3329.25 | AD49: 3381.4 | AE49: 3434.35 | AF49: 3487.3 | AG49: 3541.1 | AH49: 3594.9 | AI49: 3649.55 | AJ49: 3704.2 | AK49: 3759.65 | AL49: 3815.1 | AM49: 3928.95 | AN49: 4159.9 | AO49: 4397.775 | AP49: 4642.375 | AQ49: 4893.375 | AR49: 5150.45 | AS49: 5413.15
B50: S | C50: 1.4849 | D50: 7.1716 | H50: 7.2191 | I50: 7.3447 | J50: 7.4614 | K50: 7.5708 | L50: 7.65344 | M50: 7.6741 | N50: 7.73308 | O50: 7.7724 | P50: 7.796893333 | Q50: 7.861188333 | R50: 7.88262 | S50: 7.91936 | T50: 7.9561 | U50: 8.02402 | V50: 8.041 | W50: 8.09194 | X50: 8.1259 | Y50: 8.15766 | Z50: 8.2053 | AA50: 8.22118 | AB50: 8.2847 | AC50: 8.3594 | AD50: 8.4341 | AE50: 8.50495 | AF50: 8.5758 | AG50: 8.6432 | AH50: 8.7106 | AI50: 8.775 | AJ50: 8.8394 | AK50: 8.9012 | AL50: 8.963 | AM50: 9.102175 | AN50: 9.327975 | AO50: 9.53985 | AP50: 9.739925 | AQ50: 9.929725 | AR50: 10.1104 | AS50: 10.2829
A51: 200 | B51: V | C51: 1.061 | D51: 885.44 | E51: 120.23 | H51: 897.47 | I51: 959.54 | J51: 1020.4 | K51: 1080.4 | L51: 1127.92 | M51: 1139.8 | N51: 1175.26 | O51: 1198.9 | P51: 1214.54 | Q51: 1255.595 | R51: 1269.28 | S51: 1292.74 | T51: 1316.2 | U51: 1362.84 | V51: 1374.5 | W51: 1409.48 | X51: 1432.8 | Y51: 1456.08 | Z51: 1491 | AA51: 1502.64 | AB51: 1549.2 | AC51: 1607.25 | AD51: 1665.3 | AE51: 1723.25 | AF51: 1781.2 | AG51: 1839.15 | AH51: 1897.1 | AI51: 1955 | AJ51: 2012.9 | AK51: 2070.75 | AL51: 2128.6 | AM51: 2244.34 | AN51: 2475.5 | AO51: 2706.56 | AP51: 2937.55 | AQ51: 3168.48 | AR51: 3399.38 | AS51: 3630.26
B52: U | C52: 504.489 | D52: 2529.2 | H52: 2536.9 | I52: 2576.6 | J52: 2615.7 | K52: 2654.4 | L52: 2685.2 | M52: 2692.9 | N52: 2716 | O52: 2731.4 | P52: 2741.72 | Q52: 2768.81 | R52: 2777.84 | S52: 2793.32 | T52: 2808.8 | U52: 2840.16 | V52: 2848 | W52: 2871.52 | X52: 2887.2 | Y52: 2903.14 | Z52: 2927.05 | AA52: 2935.02 | AB52: 2966.9 | AC52: 3007.45 | AD52: 3048 | AE52: 3089.4 | AF52: 3130.8 | AG52: 3173.05 | AH52: 3215.3 | AI52: 3258.35 | AJ52: 3301.4 | AK52: 3345.3 | AL52: 3389.2 | AM52: 3479.9 | AN52: 3664.7 | AO52: 3856.3 | AP52: 4054.8 | AQ52: 4259.6 | AR52: 4470.5 | AS52: 4687.1
B53: H | C53: 504.701 | D53: 2706.3 | H53: 2716.4 | I53: 2768.5 | J53: 2819.8 | K53: 2870.5 | L53: 2910.82 | M53: 2920.9 | N53: 2951.08 | O53: 2971.2 | P53: 2984.653333 | Q53: 3019.968333 | R53: 3031.74 | S53: 3051.92 | T53: 3072.1 | U53: 3112.78 | V53: 3122.95 | W53: 3153.46 | X53: 3173.8 | Y53: 3194.38 | Z53: 3225.25 | AA53: 3235.54 | AB53: 3276.7 | AC53: 3328.9 | AD53: 3381.1 | AE53: 3434.05 | AF53: 3487 | AG53: 3540.85 | AH53: 3594.7 | AI53: 3649.35 | AJ53: 3704 | AK53: 3759.5 | AL53: 3815 | AM53: 3928.8 | AN53: 4159.8 | AO53: 4397.7 | AP53: 4642.3 | AQ53: 4893.3 | AR53: 5150.4 | AS53: 5413.1
B54: S | C54: 1.5301 | D54: 7.1268 | H54: 7.1523 | I54: 7.2794 | J54: 7.3971 | K54: 7.5072 | L54: 7.59024 | M54: 7.611 | N54: 7.67016 | O54: 7.7096 | P54: 7.734146667 | Q54: 7.798581667 | R54: 7.82006 | S54: 7.85688 | T54: 7.8937 | U54: 7.96174 | V54: 7.97875 | W54: 8.02978 | X54: 8.0638 | Y54: 8.09556 | Z54: 8.1432 | AA54: 8.15908 | AB54: 8.2226 | AC54: 8.2974 | AD54: 8.3722 | AE54: 8.44305 | AF54: 8.5139 | AG54: 8.5813 | AH54: 8.6487 | AI54: 8.71315 | AJ54: 8.7776 | AK54: 8.8394 | AL54: 8.9012 | AM54: 9.0221 | AN54: 9.2479 | AO54: 9.4598 | AP54: 9.6599 | AQ54: 9.8497 | AR54: 10.0304 | AS54: 10.2029
A55: 225 | B55: V | C55: 1.064 | D55: 792.97 | E55: 123.99 | H55: 795.25 | I55: 850.97 | J55: 905.44 | K55: 959.06 | L55: 1001.492 | M55: 1012.1 | N55: 1043.66 | O55: 1064.7 | P55: 1078.633333 | Q55: 1115.208333 | R55: 1127.4 | S55: 1148.3 | T55: 1169.2 | U55: 1210.76 | V55: 1221.15 | W55: 1252.32 | X55: 1273.1 | Y55: 1293.8 | Z55: 1324.85 | AA55: 1335.2 | AB55: 1376.6 | AC55: 1428.25 | AD55: 1479.9 | AE55: 1531.45 | AF55: 1583 | AG55: 1634.5 | AH55: 1686 | AI55: 1737.5 | AJ55: 1789 | AK55: 1840.45 | AL55: 1891.9 | AM55: 2057.205 | AN55: 2269.135 | AO55: 2480.9625 | AP55: 2692.7225 | AQ55: 2904.425 | AR55: 3116.095 | AS55: 3327.7425
B56: U | C56: 520.465 | D56: 2533.2 | H56: 2534.8 | I56: 2575.1 | J56: 2614.5 | K56: 2653.5 | L56: 2684.46 | M56: 2692.2 | N56: 2715.36 | O56: 2730.8 | P56: 2741.146667 | Q56: 2768.306667 | R56: 2777.36 | S56: 2792.88 | T56: 2808.4 | U56: 2839.8 | V56: 2847.65 | W56: 2871.2 | X56: 2886.9 | Y56: 2902.84 | Z56: 2926.75 | AA56: 2934.72 | AB56: 2966.6 | AC56: 3007.2 | AD56: 3047.8 | AE56: 3089.2 | AF56: 3130.6 | AG56: 3172.85 | AH56: 3215.1 | AI56: 3258.15 | AJ56: 3301.2 | AK56: 3345.15 | AL56: 3389.1 | AM56: 3479.8 | AN56: 3664.6 | AO56: 3856.225 | AP56: 4054.725 | AQ56: 4259.55 | AR56: 4470.45 | AS56: 4687.05
B57: H | C57: 520.705 | D57: 2711.6 | H57: 2713.8 | I57: 2766.5 | J57: 2818.2 | K57: 2869.3 | L57: 2909.78 | M57: 2919.9 | N57: 2950.2 | O57: 2970.4 | P57: 2983.88 | Q57: 3019.265 | R57: 3031.06 | S57: 3051.28 | T57: 3071.5 | U57: 3112.22 | V57: 3122.4 | W57: 3152.94 | X57: 3173.3 | Y57: 3193.9 | Z57: 3224.8 | AA57: 3235.1 | AB57: 3276.3 | AC57: 3328.55 | AD57: 3380.8 | AE57: 3433.8 | AF57: 3486.8 | AG57: 3540.6 | AH57: 3594.4 | AI57: 3649.1 | AJ57: 3703.8 | AK57: 3759.3 | AL57: 3814.8 | AM57: 3928.65 | AN57: 4159.675 | AO57: 4397.6 | AP57: 4642.225 | AQ57: 4893.25 | AR57: 5150.35 | AS57: 5413.075
B58: S | C58: 1.5705 | D58: 7.0873 | H58: 7.0928 | I58: 7.2213 | J58: 7.34 | K58: 7.4508 | L58: 7.53424 | M58: 7.5551 | N58: 7.61444 | O58: 7.654 | P58: 7.6786 | Q58: 7.743175 | R58: 7.7647 | S58: 7.8016 | T58: 7.8385 | U58: 7.90662 | V58: 7.92365 | W58: 7.97474 | X58: 8.0088 | Y58: 8.04062 | Z58: 8.08835 | AA58: 8.10426 | AB58: 8.1679 | AC58: 8.2427 | AD58: 8.3175 | AE58: 8.3884 | AF58: 8.4593 | AG58: 8.52675 | AH58: 8.5942 | AI58: 8.65865 | AJ58: 8.7231 | AK58: 8.7849 | AL58: 8.8467 | AM58: 8.9752 | AN58: 9.20105 | AO58: 9.412975 | AP58: 9.613075 | AQ58: 9.802875 | AR58: 9.983575 | AS58: 10.1561
A59: 250 | B59: V | C59: 1.068 | D59: 718.44 | E59: 127.43 | I59: 764.09 | J59: 813.47 | K59: 661.96 | L59: 860.32 | M59: 909.91 | N59: 938.41 | O59: 957.41 | P59: 969.9686667 | Q59: 1002.935167 | R59: 1013.924 | S59: 1032.762 | T59: 1051.6 | U59: 1089.04 | V59: 1098.4 | W59: 1126.48 | X59: 1145.2 | Y59: 1163.86 | Z59: 1191.85 | AA59: 1201.18 | AB59: 1238.5 | AC59: 1285 | AD59: 1331.5 | AE59: 1377.95 | AF59: 1424.4 | AG59: 1470.8 | AH59: 1517.2 | AI59: 1563.55 | AJ59: 1609.9 | AK59: 1656.2 | AL59: 1702.5 | AM59: 1870.07 | AN59: 2062.77 | AO59: 2255.365 | AP59: 2447.895 | AQ59: 2640.37 | AR59: 2832.81 | AS59: 3025.225
B60: U | C60: 535.077 | D60: 2536.8 | I60: 2573.5 | J60: 2613.3 | K60: 2652.5 | L60: 2683.62 | M60: 2691.4 | N60: 2714.68 | O60: 2730.2 | P60: 2740.573333 | Q60: 2767.803333 | R60: 2776.88 | S60: 2792.44 | T60: 2808 | U60: 2839.4 | V60: 2847.25 | W60: 2870.8 | X60: 2886.5 | Y60: 2902.46 | Z60: 2926.4 | AA60: 2934.38 | AB60: 2966.3 | AC60: 3006.95 | AD60: 3047.6 | AE60: 3089 | AF60: 3130.4 | AG60: 3172.65 | AH60: 3214.9 | AI60: 3258 | AJ60: 3301.1 | AK60: 3345.05 | AL60: 3389 | AM60: 3479.7 | AN60: 3664.5 | AO60: 3856.15 | AP60: 4054.65 | AQ60: 4259.5 | AR60: 4470.4 | AS60: 4687
B61: H | C61: 535.343 | D61: 2716.4 | I61: 2764.5 | J61: 2816.7 | K61: 2868 | L61: 2908.72 | M61: 2918.9 | N61: 2949.32 | O61: 2969.6 | P61: 2983.106667 | Q61: 3018.561667 | R61: 3030.38 | S61: 3050.64 | T61: 3070.9 | U61: 3111.66 | V61: 3121.85 | W61: 3152.42 | X61: 3172.8 | Y61: 3193.42 | Z61: 3224.35 | AA61: 3234.66 | AB61: 3275.9 | AC61: 3328.15 | AD61: 3380.4 | AE61: 3433.45 | AF61: 3486.5 | AG61: 3540.35 | AH61: 3594.2 | AI61: 3648.9 | AJ61: 3703.6 | AK61: 3759.1 | AL61: 3814.6 | AM61: 3928.5 | AN61: 4159.55 | AO61: 4397.5 | AP61: 4642.15 | AQ61: 4893.2 | AR61: 5150.3 | AS61: 5413.05
B62: S | C62: 1.6071 | D62: 7.052 | I62: 7.1689 | J62: 7.2886 | K62: 7.4001 | L62: 7.48402 | M62: 7.505 | N62: 7.56452 | O62: 7.6042 | P62: 7.628853333 | Q62: 7.693568333 | R62: 7.71514 | S62: 7.75212 | T62: 7.7891 | U62: 7.85734 | V62: 7.8744 | W62: 7.92558 | X62: 7.9597 | Y62: 7.99152 | Z62: 8.03925 | AA62: 8.05516 | AB62: 8.1188 | AC62: 8.2037 | AD62: 8.2886 | AE62: 8.3495 | AF62: 8.4104 | AG62: 8.47785 | AH62: 8.5453 | AI62: 8.6098 | AJ62: 8.6743 | AK62: 8.73615 | AL62: 8.798 | AM62: 8.9283 | AN62: 9.1542 | AO62: 9.36615 | AP62: 9.56625 | AQ62: 9.75605 | AR62: 9.93675 | AS62: 10.1093
A63: 275 | B63: V | C63: 1.071 | D63: 657.04 | E63: 130.6 | I63: 693 | J63: 738.21 | K63: 762.55 | L63: 813.542 | M63: 826.29 | N63: 852.282 | O63: 869.61 | P63: 881.0553333 | Q63: 911.0993333 | R63: 921.114 | S63: 938.282 | T63: 955.45 | U63: 989.55 | V63: 998.075 | W63: 1023.65 | X63: 1040.7 | Y63: 1057.66 | Z63: 1083.1 | AA63: 1091.58 | AB63: 1125.5 | AC63: 1167.85 | AD63: 1210.2 | AE63: 1252.45 | AF63: 1294.7 | AG63: 1336.85 | AH63: 1379 | AI63: 1421.15 | AJ63: 1463.3 | AK63: 1505.45 | AL63: 1547.6 | AM63: 1682.935 | AN63: 1856.405 | AO63: 2029.7675 | AP63: 2203.0675 | AQ63: 2376.315 | AR63: 2549.525 | AS63: 2722.7075
B64: U | C64: 548.564 | D64: 2540 | I64: 2571.9 | J64: 2612.1 | K64: 2651.6 | L64: 2682.88 | M64: 2690.7 | N64: 2714.04 | O64: 2729.6 | P64: 2739.986667 | Q64: 2767.251667 | R64: 2776.34 | S64: 2791.92 | T64: 2807.5 | U64: 2838.98 | V64: 2846.85 | W64: 2870.46 | X64: 2886.2 | Y64: 2902.16 | Z64: 2926.1 | AA64: 2934.08 | AB64: 2966 | AC64: 3006.65 | AD64: 3047.3 | AE64: 3088.75 | AF64: 3130.2 | AG64: 3172.45 | AH64: 3214.7 | AI64: 3257.8 | AJ64: 3300.9 | AK64: 3344.85 | AL64: 3388.8 | AM64: 3479.6 | AN64: 3664.4 | AO64: 3856.075 | AP64: 4054.575 | AQ64: 4259.45 | AR64: 4470.35 | AS64: 4686.95
B65: H | C65: 548.858 | D65: 2720.7 | I65: 2762.5 | J65: 2815.1 | K65: 2666.8 | L65: 2867.68 | M65: 2917.9 | N65: 2948.38 | O65: 2968.7 | P65: 2982.246667 | Q65: 3017.806667 | R65: 3029.66 | S65: 3049.98 | T65: 3070.3 | U65: 3111.14 | V65: 3121.35 | W65: 3151.98 | X65: 3172.4 | Y65: 3193.02 | Z65: 3223.95 | AA65: 3234.26 | AB65: 3275.5 | AC65: 3327.8 | AD65: 3380.1 | AE65: 3433.15 | AF65: 3486.2 | AG65: 3540.1 | AH65: 3594 | AI65: 3648.7 | AJ65: 3703.4 | AK65: 3758.9 | AL65: 3814.4 | AM65: 3928.35 | AN65: 4159.425 | AO65: 4397.4 | AP65: 4642.075 | AQ65: 4893.15 | AR65: 5150.25 | AS65: 5413.025
B66: S | C66: 1.6407 | D66: 7.0201 | I66: 7.1211 | J66: 7.2419 | K66: 7.3541 | L66: 7.43834 | M66: 7.4594 | N66: 7.51916 | O66: 7.559 | P66: 7.58372 | Q66: 7.64861 | R66: 7.67024 | S66: 7.70732 | T66: 7.7444 | U66: 7.81268 | V66: 7.82975 | W66: 7.88096 | X66: 7.9151 | Y66: 7.94696 | Z66: 7.99475 | AA66: 8.01068 | AB66: 8.0744 | AC66: 8.14935 | AD66: 8.2243 | AE66: 8.2952 | AF66: 8.3661 | AG66: 8.4336 | AH66: 8.5011 | AI66: 8.5656 | AJ66: 8.6301 | AK66: 8.69195 | AL66: 8.7538 | AM66: 8.8814 | AN66: 9.10735 | AO66: 9.319325 | AP66: 9.519425 | AQ66: 9.709225 | AR66: 9.889925 | AS66: 10.0625
A67: 300 | B67: V | C67: 1.073 | D67: 605.56 | E67: 133.54 | I67: 633.74 | J67: 675.49 | K67: 716.35 | L67: 748.55 | M67: 756.6 | N67: 780.504 | O67: 796.44 | P67: 806.9533333 | Q67: 834.5508333 | R67: 843.75 | S67: 859.52 | T67: 875.29 | U67: 906.582 | V67: 914.405 | W67: 937.874 | X67: 953.52 | Y67: 969.096 | Z67: 992.46 | AA67: 1000.248 | AB67: 1031.4 | AC67: 1070.2 | AD67: 1109 | AE67: 1147.75 | AF67: 1186.5 | AG67: 1225.2 | AH67: 1263.9 | AI67: 1302.55 | AJ67: 1341.2 | AK67: 1379.85 | AL67: 1418.5 | AM67: 1495.8 | AN67: 1650.04 | AO67: 1804.17 | AP67: 1958.24 | AQ67: 2112.26 | AR67: 2266.24 | AS67: 2420.19
B68: U | C68: 561.107 | D68: 2543 | I68: 2570.3 | J68: 2610.8 | K68: 2650.6 | L68: 2682.04 | M68: 2689.9 | N68: 2713.36 | O68: 2729 | P68: 2739.413333 | Q68: 2766.748333 | R68: 2775.86 | S68: 2791.48 | T68: 2807.1 | U68: 2838.58 | V68: 2846.45 | W68: 2870.06 | X68: 2885.8 | Y68: 2901.8 | Z68: 2925.8 | AA68: 2933.8 | AB68: 2965.8 | AC68: 3006.45 | AD68: 3047.1 | AE68: 3088.55 | AF68: 3130 | AG68: 3172.25 | AH68: 3214.5 | AI68: 3257.65 | AJ68: 3300.8 | AK68: 3344.75 | AL68: 3388.7 | AM68: 3479.5 | AN68: 3664.3 | AO68: 3856 | AP68: 4054.5 | AQ68: 4259.4 | AR68: 4470.3 | AS68: 4686.9
B69: H | C69: 561.429 | D69: 2724.7 | I69: 2760.4 | J69: 2813.5 | K69: 2865.5 | L69: 2906.62 | M69: 2916.9 | N69: 2947.5 | O69: 2967.9 | P69: 2981.473333 | Q69: 3017.103333 | R69: 3028.98 | S69: 3049.34 | T69: 3069.7 | U69: 3110.58 | V69: 3120.8 | W69: 3151.46 | X69: 3171.9 | Y69: 3192.56 | Z69: 3223.55 | AA69: 3233.88 | AB69: 3275.2 | AC69: 3327.5 | AD69: 3379.8 | AE69: 3432.9 | AF69: 3486 | AG69: 3539.85 | AH69: 3593.7 | AI69: 3648.45 | AJ69: 3703.2 | AK69: 3758.7 | AL69: 3814.2 | AM69: 3928.2 | AN69: 4159.3 | AO69: 4397.3 | AP69: 4642 | AQ69: 4893.1 | AR69: 5150.2 | AS69: 5413
B70: S | C70: 1.6716 | D70: 6.9909 | I70: 7.0771 | J70: 7.199 | K70: 7.3119 | L70: 7.39654 | M70: 7.4177 | N70: 7.47764 | O70: 7.5176 | P70: 7.542373333 | Q70: 7.607403333 | R70: 7.62908 | S70: 7.66624 | T70: 7.7034 | U70: 7.7718 | V70: 7.7889 | W70: 7.8402 | X70: 7.8744 | Y70: 7.90628 | Z70: 7.9541 | AA70: 7.97004 | AB70: 8.0338 | AC70: 8.1088 | AD70: 8.1838 | AE70: 8.25475 | AF70: 8.3257 | AG70: 8.39325 | AH70: 8.4608 | AI70: 8.5253 | AJ70: 8.5898 | AK70: 8.65165 | AL70: 8.7135 | AM70: 8.8345 | AN70: 9.0605 | AO70: 9.2725 | AP70: 9.4726 | AQ70: 9.6624 | AR70: 9.8431 | AS70: 10.0157
A71: 325 | B71: V | C71: 1.076 | D71: 561.75 | E71: 136.29 | I71: 583.58 | J71: 622.41 | K71: 660.33 | L71: 690.22 | M71: 697.6175 | N71: 719.81 | O71: 734.495 | P71: 749.18 | Q71: 771.0875 | R71: 778.39 | S71: 792.93 | T71: 807.47 | U71: 836.438 | V71: 843.68 | W71: 865.34 | X71: 879.78 | Y71: 894.17 | Z71: 915.755 | AA71: 922.95 | AB71: 951.73 | AC71: 987.615 | AD71: 1023.5 | AE71: 1059.25 | AF71: 1095 | AG71: 1130.75 | AH71: 1166.5 | AI71: 1202.2 | AJ71: 1237.9 | AK71: 1273.55 | AL71: 1309.2 | AM71: 1402.23 | AN71: 1546.855 | AO71: 1691.3725 | AP71: 1835.8275 | AQ71: 1980.23 | AR71: 2124.595 | AS71: 2268.9325
B72: U | C72: 572.847 | D72: 2545.7 | I72: 2568.7 | J72: 2609.6 | K72: 2649.6 | L72: 2681.2 | M72: 2689.075 | N72: 2712.7 | O72: 2728.35 | P72: 2744 | Q72: 2767.475 | R72: 2775.3 | S72: 2790.95 | T72: 2806.6 | U72: 2838.04 | V72: 2845.9 | W72: 2869.66 | X72: 2885.5 | Y72: 2901.5 | Z72: 2925.5 | AA72: 2933.5 | AB72: 2965.5 | AC72: 3006.2 | AD72: 3046.9 | AE72: 3088.35 | AF72: 3129.8 | AG72: 3172.1 | AH72: 3214.4 | AI72: 3257.5 | AJ72: 3300.6 | AK72: 3344.6 | AL72: 3388.6 | AM72: 3479.375 | AN72: 3664.2 | AO72: 3855.925 | AP72: 4054.45 | AQ72: 4259.35 | AR72: 4470.275 | AS72: 4686.85
B73: H | C73: 573.197 | D73: 2728.3 | I73: 2758.4 | J73: 2811.9 | K73: 2864.2 | L73: 2905.6 | M73: 2915.85 | N73: 2946.6 | O73: 2967.05 | P73: 2987.5 | Q73: 3018.025 | R73: 3028.2 | S73: 3048.6 | T73: 3069 | U73: 3109.88 | V73: 3120.1 | W73: 3150.88 | X73: 3171.4 | Y73: 3192.08 | Z73: 3223.1 | AA73: 3233.44 | AB73: 3274.8 | AC73: 3327.15 | AD73: 3379.5 | AE73: 3432.6 | AF73: 3485.7 | AG73: 3539.6 | AH73: 3593.5 | AI73: 3648.2 | AJ73: 3702.9 | AK73: 3758.5 | AL73: 3814.1 | AM73: 3928.05 | AN73: 4159.2 | AO73: 4397.2 | AP73: 4641.925 | AQ73: 4893.05 | AR73: 5150.15 | AS73: 5412.95
B74: S | C74: 1.7004 | D74: 6.964 | I74: 7.0363 | J74: 7.1592 | K74: 7.2729 | L74: 7.3585 | M74: 7.378875 | N74: 7.44 | O74: 7.47905 | P74: 7.5181 | Q74: 7.5745 | R74: 7.5933 | S74: 7.6295 | T74: 7.6657 | U74: 7.73554 | V74: 7.753 | W74: 7.80334 | X74: 7.8369 | Y74: 7.86882 | Z74: 7.9167 | AA74: 7.93266 | AB74: 7.9965 | AC74: 8.0715 | AD74: 8.1465 | AE74: 8.2175 | AF74: 8.2885 | AG74: 8.35605 | AH74: 8.4236 | AI74: 8.48815 | AJ74: 8.5527 | AK74: 8.61455 | AL74: 8.6764 | AM74: 8.801175 | AN74: 9.027225 | AO74: 9.239225 | AP74: 9.43935 | AQ74: 9.629175 | AR74: 9.809875 | AS74: 9.982475
A75: 350 | B75: V | C75: 1.079 | D75: 524 | E75: 138.87 | I75: 540.58 | J75: 576.9 | K75: 612.31 | L75: 640.18 | M75: 647.0725 | N75: 667.75 | O75: 681.42 | P75: 695.09 | Q75: 715.475 | R75: 722.27 | S75: 735.8 | T75: 749.33 | U75: 776.274 | V75: 783.01 | W75: 803.146 | X75: 816.57 | Y75: 829.946 | Z75: 850.01 | AA75: 856.698 | AB75: 883.45 | AC75: 916.78 | AD75: 950.11 | AE75: 983.355 | AF75: 1016.6 | AG75: 1049.8 | AH75: 1083 | AI75: 1116.15 | AJ75: 1149.3 | AK75: 1182.45 | AL75: 1215.6 | AM75: 1308.66 | AN75: 1443.67 | AO75: 1578.575 | AP75: 1713.415 | AQ75: 1848.2 | AR75: 1982.95 | AS75: 2117.675
B76: U | C76: 583.892 | D76: 2548.2 | I76: 2567.1 | J76: 2608.3 | K76: 2648.6 | L76: 2680.4 | M76: 2688.3 | N76: 2712 | O76: 2727.7 | P76: 2743.4 | Q76: 2766.95 | R76: 2774.8 | S76: 2790.5 | T76: 2806.2 | U76: 2837.72 | V76: 2845.6 | W76: 2869.3 | X76: 2885.1 | Y76: 2901.12 | Z76: 2925.15 | AA76: 2933.16 | AB76: 2965.2 | AC76: 3005.9 | AD76: 3046.6 | AE76: 3088.1 | AF76: 3129.6 | AG76: 3171.9 | AH76: 3214.2 | AI76: 3257.35 | AJ76: 3300.5 | AK76: 3344.45 | AL76: 3388.4 | AM76: 3479.25 | AN76: 3664.1 | AO76: 3855.85 | AP76: 4054.4 | AQ76: 4259.3 | AR76: 4470.25 | AS76: 4686.8
B77: H | C77: 584.27 | D77: 2731.6 | I77: 2756.3 | J77: 2810.3 | K77: 2863 | L77: 2904.5 | M77: 2914.8 | N77: 2945.7 | O77: 2966.2 | P77: 2986.7 | Q77: 3017.375 | R77: 3027.6 | S77: 3048 | T77: 3068.4 | U77: 3109.36 | V77: 3119.6 | W77: 3150.38 | X77: 3170.9 | Y77: 3191.6 | Z77: 3222.65 | AA77: 3233 | AB77: 3274.4 | AC77: 3326.8 | AD77: 3379.2 | AE77: 3432.3 | AF77: 3485.4 | AG77: 3539.35 | AH77: 3593.3 | AI77: 3648 | AJ77: 3702.7 | AK77: 3758.3 | AL77: 3813.9 | AM77: 3927.9 | AN77: 4159.1 | AO77: 4397.1 | AP77: 4641.85 | AQ77: 4893 | AR77: 5150.1 | AS77: 5412.9
B78: S | C78: 1.7273 | D78: 6.9392 | I78: 6.9982 | J78: 7.1222 | K78: 7.2366 | L78: 7.3226 | M78: 7.343075 | N78: 7.4045 | O78: 7.44365 | P78: 7.4828 | Q78: 7.539275 | R78: 7.5581 | S78: 7.5944 | T78: 7.6307 | U78: 7.70062 | V78: 7.7181 | W78: 7.76856 | X78: 7.8022 | Y78: 7.83414 | Z78: 7.88205 | AA78: 7.89802 | AB78: 7.9619 | AC78: 8.03695 | AD78: 8.112 | AE78: 8.183 | AF78: 8.254 | AG78: 8.3216 | AH78: 8.3892 | AI78: 8.45375 | AJ78: 8.5183 | AK78: 8.5802 | AL78: 8.6421 | AM78: 8.76785 | AN78: 8.99395 | AO78: 9.20595 | AP78: 9.4061 | AQ78: 9.59595 | AR78: 9.77665 | AS78: 9.94925
A79: 375 | B79: V | C79: 1.061 | D79: 491.13 | E79: 141.31 | I79: 503.29 | J79: 537.46 | K79: 570.69 | L79: 596.81 | M79: 603.2625 | N79: 622.62 | O79: 635.42 | P79: 648.22 | Q79: 667.285 | R79: 673.64 | S79: 686.29 | T79: 698.94 | U79: 724.124 | V79: 730.42 | W79: 749.242 | X79: 761.79 | Y79: 774.288 | Z79: 793.035 | AA79: 799.284 | AB79: 824.28 | AC79: 855.41 | AD79: 886.54 | AE79: 917.6 | AF79: 948.66 | AG79: 979.68 | AH79: 1010.7 | AI79: 1041.65 | AJ79: 1072.6 | AK79: 1103.55 | AL79: 1134.5 | AM79: 1215.09 | AN79: 1340.485 | AO79: 1465.7775 | AP79: 1591.0025 | AQ79: 1716.17 | AR79: 1841.305 | AS79: 1966.4175
B80: U | C80: 594.332 | D80: 2550.6 | I80: 2565.4 | J80: 2607.1 | K80: 2647.7 | L80: 2879.6 | M80: 2837.525 | N80: 2711.3 | O80: 2727.05 | P80: 2742.8 | Q80: 2766.425 | R80: 2774.3 | S80: 2790 | T80: 2805.7 | U80: 2837.3 | V80: 2845.2 | W80: 2868.96 | X80: 2884.8 | Y80: 2900.82 | Z80: 2924.85 | AA80: 2932.86 | AB80: 2964.9 | AC80: 3005.65 | AD80: 3046.4 | AE80: 3087.9 | AF80: 3129.4 | AG80: 3171.7 | AH80: 3214 | AI80: 3257.15 | AJ80: 3300.3 | AK80: 3344.3 | AL80: 3388.3 | AM80: 3479.125 | AN80: 3664 | AO80: 3855.775 | AP80: 4054.35 | AQ80: 4259.25 | AR80: 4470.225 | AS80: 4686.75
B81: H | C81: 594.737 | D81: 2734.7 | I81: 2754.1 | J81: 2808.6 | K81: 2861.7 | L81: 2903.4 | M81: 2913.75 | N81: 2944.8 | O81: 2965.35 | P81: 2985.9 | Q81: 3016.65 | R81: 3026.9 | S81: 3047.35 | T81: 3067.8 | U81: 3108.84 | V81: 3119.1 | W81: 3149.94 | X81: 3170.5 | Y81: 3191.2 | Z81: 3222.25 | AA81: 3232.6 | AB81: 3274 | AC81: 3326.4 | AD81: 3378.8 | AE81: 3431.95 | AF81: 3485.1 | AG81: 3539.05 | AH81: 3593 | AI81: 3647.75 | AJ81: 3702.5 | AK81: 3758.1 | AL81: 3813.7 | AM81: 3927.75 | AN81: 4159 | AO81: 4397 | AP81: 4641.775 | AQ81: 4892.95 | AR81: 5150.05 | AS81: 5412.85
B82: S | C82: 1.7526 | D82: 6.916 | I82: 6.9624 | J82: 7.0875 | K82: 7.2027 | L82: 7.2891 | M82: 7.30965 | N82: 7.3713 | O82: 7.4106 | P82: 7.4499 | Q82: 7.506525 | R82: 7.5254 | S82: 7.56175 | T82: 7.5981 | U82: 7.6681 | V82: 7.6856 | W82: 7.73612 | X82: 7.7698 | Y82: 7.80176 | Z82: 7.8497 | AA82: 7.86568 | AB82: 7.9296 | AC82: 8.0047 | AD82: 8.0798 | AE82: 8.15085 | AF82: 8.2219 | AG82: 8.2895 | AH82: 8.3571 | AI82: 8.4217 | AJ82: 8.4863 | AK82: 8.5482 | AL82: 8.6101 | AM82: 8.734525 | AN82: 8.960675 | AO82: 9.172675 | AP82: 9.37285 | AQ82: 9.562725 | AR82: 9.743425 | AS82: 9.916025
A83: 400 | B83: V | C83: 1.084 | D83: 462.22 | E83: 143.62 | I83: 470.66 | J83: 502.93 | K83: 534.26 | L83: 558.85 | M83: 564.9225 | N83: 583.14 | O83: 595.17 | P83: 607.2 | Q83: 625.1175 | R83: 631.09 | S83: 642.97 | T83: 654.85 | U83: 678.498 | V83: 684.41 | W83: 702.074 | X83: 713.85 | Y83: 725.58 | Z83: 743.175 | AA83: 749.04 | AB83: 772.5 | AC83: 801.71 | AD83: 830.92 | AE83: 860.055 | AF83: 889.19 | AG83: 918.27 | AH83: 947.35 | AI83: 976.375 | AJ83: 1005.4 | AK83: 1034.4 | AL83: 1063.4 | AM83: 1121.52 | AN83: 1237.3 | AO83: 1352.98 | AP83: 1468.59 | AQ83: 1584.14 | AR83: 1699.66 | AS83: 1815.16
B84: U | C84: 604.237 | D84: 2552.7 | I84: 2563.7 | J84: 2605.8 | K84: 2646.7 | L84: 2678.8 | M84: 2686.75 | N84: 2710.6 | O84: 2726.4 | P84: 2742.2 | Q84: 2765.825 | R84: 2773.7 | S84: 2789.5 | T84: 2805.3 | U84: 2836.9 | V84: 2844.8 | W84: 2868.62 | X84: 2884.5 | Y84: 2900.52 | Z84: 2924.55 | AA84: 2932.56 | AB84: 2964.6 | AC84: 3005.4 | AD84: 3046.2 | AE84: 3087.7 | AF84: 3129.2 | AG84: 3171.5 | AH84: 3213.8 | AI84: 3257 | AJ84: 3300.2 | AK84: 3344.2 | AL84: 3388.2 | AM84: 3479 | AN84: 3663.9 | AO84: 3855.7 | AP84: 4054.3 | AQ84: 4259.2 | AR84: 4470.2 | AS84: 4686.7
B85: H | C85: 604.67 | D85: 2737.6 | I85: 2752 | J85: 2807 | K85: 2860.4 | L85: 2902.3 | M85: 2912.7 | N85: 2943.9 | O85: 2964.5 | P85: 2985.1 | Q85: 3015.925 | R85: 3026.2 | S85: 16849.1 | T85: 30672 | U85: 8629.2 | V85: 3118.5 | W85: 3149.4 | X85: 3170 | Y85: 3190.72 | Z85: 3221.8 | AA85: 3232.16 | AB85: 3273.6 | AC85: 3326.05 | AD85: 3378.5 | AE85: 3431.7 | AF85: 3484.9 | AG85: 3538.85 | AH85: 3592.8 | AI85: 3647.55 | AJ85: 3702.3 | AK85: 3757.9 | AL85: 3813.5 | AM85: 3927.6 | AN85: 4158.9 | AO85: 4396.9 | AP85: 4641.7 | AQ85: 4892.9 | AR85: 5150 | AS85: 5412.8
B86: S | C86: 1.7764 | D86: 6.8943 | I86: 6.9285 | J86: 7.0548 | K86: 7.1708 | L86: 7.2576 | M86: 7.27825 | N86: 7.3402 | O86: 7.3796 | P86: 7.419 | Q86: 7.475775 | R86: 7.4947 | S86: 7.5311 | T86: 7.5675 | U86: 7.63766 | V86: 7.6552 | W86: 7.70578 | X86: 7.7395 | Y86: 7.77148 | Z86: 7.81945 | AA86: 7.83544 | AB86: 7.8994 | AC86: 7.97455 | AD86: 8.0497 | AE86: 8.1208 | AF86: 8.1919 | AG86: 8.2595 | AH86: 8.3271 | AI86: 8.3917 | AJ86: 8.4563 | AK86: 8.51825 | AL86: 8.5802 | AM86: 8.7012 | AN86: 8.9274 | AO86: 9.1394 | AP86: 9.3396 | AQ86: 9.5295 | AR86: 9.7102 | AS86: 9.8828
A87: 425 | B87: V | C87: 1.086 | D87: 436.61 | E87: 145.82 | I87: 441.85 | J87: 472.47 | K87: 502.12 | L87: 525.36 | M87: 531.095 | N87: 548.3 | O87: 559.655 | P87: 571.01 | Q87: 587.9075 | R87: 593.54 | S87: 704.745 | T87: 815.95 | U87: 678.238 | V87: 643.81 | W87: 660.46 | X87: 671.56 | Y87: 682.61 | Z87: 699.185 | AA87: 704.71 | AB87: 726.81 | AC87: 754.325 | AD87: 781.84 | AE87: 809.28 | AF87: 836.72 | AG87: 864.105 | AH87: 891.49 | AI87: 918.83 | AJ87: 946.17 | AK87: 973.485 | AL87: 1000.8 | AM87: 1065.38 | AN87: 1175.39 | AO87: 1285.3025 | AP87: 1395.1425 | AQ87: 1504.925 | AR87: 1614.675 | AS87: 1724.405
B88: U | C88: 613.667 | D88: 2554.8 | I88: 2562 | J88: 2604.5 | K88: 2645.7 | L88: 2678 | M88: 2685.975 | N88: 2709.9 | O88: 2725.75 | P88: 2741.6 | Q88: 2765.3 | R88: 2773.2 | S88: 2689 | T88: 2604.8 | U88: 2796.48 | V88: 2844.4 | W88: 2868.22 | X88: 2884.1 | Y88: 2900.16 | Z88: 2924.25 | AA88: 2932.28 | AB88: 2964.4 | AC88: 3005.15 | AD88: 3045.9 | AE88: 3087.45 | AF88: 3129 | AG88: 3171.35 | AH88: 3213.7 | AI88: 3256.85 | AJ88: 3300 | AK88: 3344 | AL88: 3388 | AM88: 3478.9 | AN88: 3663.825 | AO88: 3855.625 | AP88: 4054.225 | AQ88: 4259.15 | AR88: 4470.15 | AS88: 4686.675
B89: H | C89: 614.128 | D89: 2740.3 | I89: 2749.8 | J89: 2805.3 | K89: 2859.1 | L89: 2901.2 | M89: 2911.625 | N89: 2942.9 | O89: 2963.6 | P89: 2984.3 | Q89: 3015.2 | R89: 3025.5 | S89: 3046.05 | T89: 3066.6 | U89: 3107.72 | V89: 3118 | W89: 3148.9 | X89: 3169.5 | Y89: 3190.26 | Z89: 3221.4 | AA89: 3231.78 | AB89: 3273.3 | AC89: 3325.75 | AD89: 3378.2 | AE89: 3431.4 | AF89: 3484.6 | AG89: 3538.55 | AH89: 3592.5 | AI89: 3647.3 | AJ89: 3702.1 | AK89: 3757.75 | AL89: 3813.4 | AM89: 3927.45 | AN89: 4158.775 | AO89: 4396.825 | AP89: 4641.625 | AQ89: 4892.825 | AR89: 5149.95 | AS89: 5412.75
B90: S | C90: 1.799 | D90: 6.8739 | I90: 6.8965 | J90: 7.0239 | K90: 7.1407 | L90: 7.228 | M90: 7.2487 | N90: 7.3108 | O90: 7.35035 | P90: 7.3899 | Q90: 7.44675 | R90: 7.4657 | S90: 7.50225 | T90: 7.5388 | U90: 7.60896 | V90: 7.6265 | W90: 7.67714 | X90: 7.7109 | Y90: 7.74292 | Z90: 7.79095 | AA90: 7.80696 | AB90: 7.871 | AC90: 7.9462 | AD90: 8.0214 | AE90: 8.0925 | AF90: 8.1636 | AG90: 8.23125 | AH90: 8.2989 | AI90: 8.36355 | AJ90: 8.4282 | AK90: 8.4901 | AL90: 8.552 | AM90: 8.67535 | AN90: 8.90155 | AO90: 9.1136 | AP90: 9.3138 | AQ90: 9.5037 | AR90: 9.684425 | AS90: 9.857025
A91: 450 | B91: V | C91: 1.088 | D91: 413.75 | E91: 147.92 | I91: 416.24 | J91: 445.38 | K91: 473.55 | L91: 495.59 | M91: 501.025 | N91: 517.33 | O91: 528.08 | P91: 538.83 | Q91: 554.835 | R91: 560.17 | S91: 570.77 | T91: 581.37 | U91: 602.458 | V91: 607.73 | W91: 623.474 | X91: 633.97 | Y91: 644.416 | Z91: 660.085 | AA91: 665.308 | AB91: 686.2 | AC91: 712.205 | AD91: 738.21 | AE91: 764.14 | AF91: 790.07 | AG91: 815.95 | AH91: 841.83 | AI91: 867.665 | AJ91: 893.5 | AK91: 919.3 | AL91: 945.1 | AM91: 1009.24 | AN91: 1113.48 | AO91: 1217.625 | AP91: 1321.695 | AQ91: 1425.71 | AR91: 1529.69 | AS91: 1633.65
B92: U | C92: 622.672 | D92: 2556.7 | I92: 2560.3 | J92: 2603.2 | K92: 2644.7 | L92: 2677.1 | M92: 2685.125 | N92: 2709.2 | O92: 2725.1 | P92: 2741 | Q92: 2764.775 | R92: 2772.7 | S92: 2788.55 | T92: 2804.4 | U92: 2836.08 | V92: 2844 | W92: 2867.88 | X92: 2883.8 | Y92: 2899.86 | Z92: 2923.95 | AA92: 2931.98 | AB92: 2964.1 | AC92: 3004.9 | AD92: 3045.7 | AE92: 3087.25 | AF92: 3128.8 | AG92: 3171.15 | AH92: 3213.5 | AI92: 3256.65 | AJ92: 3299.8 | AK92: 3343.85 | AL92: 3387.9 | AM92: 3478.8 | AN92: 3663.75 | AO92: 3855.55 | AP92: 4054.15 | AQ92: 4259.1 | AR92: 4470.1 | AS92: 4686.65
B93: H | C93: 623.162 | D93: 2742.9 | I93: 2747.7 | J93: 2803.7 | K93: 2857.8 | L93: 2900.2 | M93: 2910.65 | N93: 2942 | O93: 2962.75 | P93: 2983.5 | Q93: 3014.475 | R93: 3024.8 | S93: 3045.4 | T93: 3066 | U93: 3107.2 | V93: 3117.5 | W93: 3148.46 | X93: 3169.1 | Y93: 3189.86 | Z93: 3221 | AA93: 3231.38 | AB93: 3272.9 | AC93: 3325.4 | AD93: 3377.9 | AE93: 3431.1 | AF93: 3484.3 | AG93: 3538.3 | AH93: 3592.3 | AI93: 3647.1 | AJ93: 3701.9 | AK93: 20916.95 | AL93: 38132 | AM93: 3927.3 | AN93: 4158.65 | AO93: 4396.75 | AP93: 4641.55 | AQ93: 4892.75 | AR93: 5149.9 | AS93: 5412.7
B94: S | C94: 1.8204 | D94: 6.8547 | I94: 6.866 | J94: 6.9946 | K94: 7.1121 | L94: 7.1999 | M94: 7.2207 | N94: 7.2831 | O94: 7.32275 | P94: 7.3624 | Q94: 7.4194 | R94: 7.4384 | S94: 7.475 | T94: 7.5116 | U94: 7.58192 | V94: 7.5995 | W94: 7.6502 | X94: 7.684 | Y94: 7.71604 | Z94: 7.7641 | AA94: 7.78012 | AB94: 7.8442 | AC94: 7.91945 | AD94: 7.9947 | AE94: 8.06585 | AF94: 8.137 | AG94: 8.20465 | AH94: 8.2723 | AI94: 8.33695 | AJ94: 8.4016 | AK94: 8.46355 | AL94: 8.5255 | AM94: 8.6495 | AN94: 8.8757 | AO94: 9.0878 | AP94: 9.288 | AQ94: 9.4779 | AR94: 9.65865 | AS94: 9.83125
A95: 475 | B95: V | C95: 1.091 | D95: 393.22 | E95: 149.92 | I95: 393.31 | J95: 4210.14 | K95: 447.97 | L95: 468.95 | M95: 474.1175 | N95: 489.62 | O95: 499.835 | P95: 510.05 | Q95: 525.2375 | R95: 530.3 | S95: 540.365 | T95: 550.43 | U95: 570.438 | V95: 575.44 | W95: 590.374 | X95: 600.33 | Y95: 610.238 | Z95: 625.1 | AA95: 630.054 | AB95: 649.87 | AC95: 674.525 | AD95: 699.18 | AE95: 723.76 | AF95: 748.34 | AG95: 772.87 | AH95: 797.4 | AI95: 821.885 | AJ95: 846.37 | AK95: 870.82 | AL95: 895.27 | AM95: 953.1 | AN95: 1051.57 | AO95: 1149.9475 | AP95: 1248.2475 | AQ95: 1346.495 | AR95: 1444.705 | AS95: 1542.895
B96: U | C96: 631.294 | D96: 2558.5 | I96: 2558.6 | J96: 2601.9 | K96: 2643.7 | L96: 2676.3 | M96: 2684.35 | N96: 2708.5 | O96: 2724.45 | P96: 2740.4 | Q96: 2764.25 | R96: 2772.2 | S96: 2788.05 | T96: 2803.9 | U96: 2835.66 | V96: 2843.6 | W96: 2867.48 | X96: 2883.4 | Y96: 2899.48 | Z96: 2923.6 | AA96: 2931.64 | AB96: 2963.8 | AC96: 3004.6 | AD96: 3045.4 | AE96: 3087.1 | AF96: 3128.8 | AG96: 3171.05 | AH96: 3213.3 | AI96: 3256.5 | AJ96: 3299.7 | AK96: 3343.7 | AL96: 3387.7 | AM96: 3478.7 | AN96: 3663.675 | AO96: 3855.475 | AP96: 4054.075 | AQ96: 4259.05 | AR96: 4470.05 | AS96: 4686.625
B97: H | C97: 631.812 | D97: 2745.3 | I97: 2745.5 | J97: 2802 | K97: 2856.5 | L97: 2899.1 | M97: 2909.6 | N97: 2941.1 | O97: 2951.9 | P97: 2962.7 | Q97: 3008.75 | R97: 3024.1 | S97: 3044.75 | T97: 3065.4 | U97: 3106.6 | V97: 3116.9 | W97: 3147.92 | X97: 3168.6 | Y97: 3189.38 | Z97: 3220.55 | AA97: 3230.94 | AB97: 3272.5 | AC97: 3325.05 | AD97: 3377.6 | AE97: 3430.8 | AF97: 3484 | AG97: 19702.5 | AH97: 35921 | AI97: 19811.35 | AJ97: 3701.7 | AK97: 3757.35 | AL97: 3813 | AM97: 3927.15 | AN97: 4158.525 | AO97: 4396.675 | AP97: 4641.475 | AQ97: 4892.675 | AR97: 5149.85 | AS97: 5412.65
B98: S | C98: 1.8408 | D98: 6.8365 | I98: 6.8369 | J98: 6.9667 | K98: 7.085 | L98: 7.1732 | M98: 7.194075 | N98: 7.2567 | O98: 7.2965 | P98: 7.3363 | Q98: 7.39345 | R98: 7.4125 | S98: 7.44915 | T98: 7.4858 | U98: 7.55628 | V98: 7.5739 | W98: 7.62466 | X98: 7.6585 | Y98: 7.69058 | Z98: 7.7387 | AA98: 7.75474 | AB98: 7.8189 | AC98: 7.89415 | AD98: 7.9694 | AE98: 8.0406 | AF98: 8.1118 | AG98: 8.1795 | AH98: 8.2472 | AI98: 8.31185 | AJ98: 8.3765 | AK98: 8.43845 | AL98: 8.5004 | AM98: 8.62365 | AN98: 8.84985 | AO98: 9.062 | AP98: 9.2622 | AQ98: 9.4521 | AR98: 9.632875 | AS98: 9.805475
A99: 500 | B99: V | C99: 1.093 | D99: 374.68 | E99: 151.84 | J99: 399.31 | K99: 424.96 | L99: 444.97 | M99: 454.895 | N99: 484.67 | O99: 484.405 | P99: 484.14 | Q99: 498.6075 | R99: 503.43 | S99: 513.005 | T99: 522.58 | U99: 541.62 | V99: 546.38 | W99: 560.582 | X99: 570.05 | Y99: 579.472 | Z99: 593.605 | AA99: 598.316 | AB99: 617.16 | AC99: 640.605 | AD99: 664.05 | AE99: 687.415 | AF99: 710.78 | AG99: 734.095 | AH99: 757.41 | AI99: 780.68 | AJ99: 803.95 | AK99: 827.185 | AL99: 850.42 | AM99: 896.96 | AN99: 989.66 | AO99: 1082.27 | AP99: 1174.8 | AQ99: 1267.28 | AR99: 1359.72 | AS99: 1452.14
B100: U | C100: 639.569 | D100: 2560.2 | J100: 2600.6 | K100: 2642.7 | L100: 2675.5 | M100: 2683.575 | N100: 2707.8 | O100: 2723.8 | P100: 2739.8 | Q100: 2763.725 | R100: 2771.7 | S100: 2787.6 | T100: 2803.5 | U100: 23306.3 | V100: 28432 | W100: 13102.66 | X100: 2883.1 | Y100: 2899.18 | Z100: 2923.3 | AA100: 2931.34 | AB100: 2963.5 | AC100: 3004.35 | AD100: 3045.2 | AE100: 3086.8 | AF100: 3128.4 | AG100: 3170.75 | AH100: 3213.1 | AI100: 3256.3 | AJ100: 3299.5 | AK100: 3343.55 | AL100: 3387.6 | AM100: 3478.6 | AN100: 3663.6 | AO100: 3855.4 | AP100: 4054 | AQ100: 4259 | AR100: 4470 | AS100: 4686.6
B101: H | C101: 640.116 | D101: 2747.5 | J101: 2800.3 | K101: 2855.1 | L101: 2898 | M101: 2908.525 | N101: 2940.1 | O101: 2961 | P101: 2981.9 | Q101: 3013.025 | R101: 3023.4 | S101: 3044.1 | T101: 3064.8 | U101: 3106.08 | V101: 3116.4 | W101: 3147.42 | X101: 3168.1 | Y101: 3188.9 | Z101: 3220.1 | AA101: 3230.5 | AB101: 3272.1 | AC101: 3324.65 | AD101: 3377.2 | AE101: 3430.5 | AF101: 3483.8 | AG101: 3537.8 | AH101: 3591.8 | AI101: 3646.65 | AJ101: 3701.5 | AK101: 3757.15 | AL101: 3812.8 | AM101: 3927 | AN101: 4158.4 | AO101: 4396.6 | AP101: 4641.4 | AQ101: 4892.6 | AR101: 5149.8 | AS101: 5412.6
B102: S | C102: 1.8604 | D102: 6.8192 | J102: 6.94 | K102: 7.0692 | L102: 7.1478 | M102: 7.168775 | N102: 7.2317 | O102: 7.2716 | P102: 7.3115 | Q102: 7.3688 | R102: 7.3879 | S102: 7.42465 | T102: 7.4614 | U102: 7.53196 | V102: 7.5496 | W102: 7.60042 | X102: 7.6343 | Y102: 7.6664 | Z102: 7.71455 | AA102: 7.7306 | AB102: 7.7948 | AC102: 7.8701 | AD102: 7.9454 | AE102: 8.00665 | AF102: 8.0679 | AG102: 8.1456 | AH102: 8.2233 | AI102: 8.28795 | AJ102: 8.3526 | AK102: 8.4146 | AL102: 8.4766 | AM102: 8.5978 | AN102: 8.824 | AO102: 9.0362 | AP102: 9.2364 | AQ102: 9.4263 | AR102: 9.6071 | AS102: 9.7797
A103: 525 | B103: V | C103: 1.095 | D103: 357.84 | E103: 153.69 | J103: 379.56 | K103: 404.13 | L103: 423.28 | M103: 427.9875 | N103: 442.11 | O103: 451.405 | P103: 460.7 | Q103: 474.5075 | R103: 479.11 | S103: 488.245 | T103: 497.38 | U103: 515.54 | V103: 520.08 | W103: 533.628 | X103: 542.66 | Y103: 551.644 | Z103: 565.12 | AA103: 569.612 | AB103: 587.58 | AC103: 609.92 | AD103: 632.26 | AE103: 654.53 | AF103: 676.8 | AG103: 699.015 | AH103: 721.23 | AI103: 743.4 | AJ103: 765.57 | AK103: 787.71 | AL103: 809.85 | AM103: 859.5325 | AN103: 948.3875 | AO103: 1037.15 | AP103: 1125.8325 | AQ103: 1214.4675 | AR103: 1303.0625 | AS103: 1391.635
B104: U | C104: 647.528 | D104: 2561.8 | J104: 2599.3 | K104: 2641.6 | L104: 2674.6 | M104: 2682.725 | N104: 2707.1 | O104: 2723.15 | P104: 2739.2 | Q104: 2763.2 | R104: 2771.2 | S104: 2787.1 | T104: 2803 | U104: 2834.84 | V104: 2842.8 | W104: 2866.74 | X104: 2882.7 | Y104: 2898.8 | Z104: 2922.95 | AA104: 2931 | AB104: 2963.2 | AC104: 3004.1 | AD104: 3045 | AE104: 3086.6 | AF104: 3128.2 | AG104: 3170.6 | AH104: 3213 | AI104: 3256.2 | AJ104: 3299.4 | AK104: 3343.45 | AL104: 3387.5 | AM104: 3478.475 | AN104: 3663.5 | AO104: 3855.325 | AP104: 4053.95 | AQ104: 4258.95 | AR104: 4469.95 | AS104: 4686.55
B105: H | C105: 648.103 | D105: 2749.7 | J105: 2798.6 | K105: 2853.8 | L105: 2896.8 | M105: 2907.4 | N105: 2939.2 | O105: 2960.15 | P105: 2981.1 | Q105: 3012.3 | R105: 3022.7 | S105: 3043.4 | T105: 3064.1 | U105: 3105.54 | V105: 3115.9 | W105: 3146.92 | X105: 3167.6 | Y105: 3188.42 | Z105: 3219.65 | AA105: 3230.06 | AB105: 3271.7 | AC105: 3324.3 | AD105: 3376.9 | AE105: 3430.2 | AF105: 3483.5 | AG105: 3537.55 | AH105: 3591.6 | AI105: 3646.45 | AJ105: 3701.3 | AK105: 3756.95 | AL105: 3812.6 | AM105: 3926.85 | AN105: 4158.275 | AO105: 4396.5 | AP105: 4641.325 | AQ105: 4892.55 | AR105: 5149.75 | AS105: 5412.575
B106: S | C106: 1.879 | D106: 6.8027 | J106: 6.9145 | K106: 7.0345 | L106: 7.1236 | M106: 7.14465 | N106: 7.2078 | O106: 7.24785 | P106: 7.2879 | Q106: 7.34535 | R106: 7.3645 | S106: 7.4013 | T106: 7.4381 | U106: 7.50874 | V106: 7.5264 | W106: 7.57728 | X106: 7.6112 | Y106: 7.64334 | Z106: 7.69155 | AA106: 7.70762 | AB106: 7.7719 | AC106: 7.84725 | AD106: 7.9226 | AE106: 7.99385 | AF106: 8.0651 | AG106: 8.13285 | AH106: 8.2006 | AI106: 8.26525 | AJ106: 8.3299 | AK106: 8.3919 | AL106: 8.4539 | AM106: 8.57665 | AN106: 8.802875 | AO106: 9.0151 | AP106: 9.215325 | AQ106: 9.405225 | AR106: 9.58605 | AS106: 9.75865
A107: 550 | B107: V | C107: 1.097 | D107: 342.48 | E107: 155.47 | J107: 361.6 | K107: 385.19 | L107: 403.55 | M107: 408.06 | N107: 421.59 | O107: 430.485 | P107: 439.38 | Q107: 452.595 | R107: 457 | S107: 465.74 | T107: 474.48 | U107: 491.84 | V107: 496.18 | W107: 509.128 | X107: 517.76 | Y107: 526.344 | Z107: 539.22 | AA107: 543.512 | AB107: 560.68 | AC107: 582.025 | AD107: 603.37 | AE107: 624.64 | AF107: 645.91 | AG107: 667.125 | AH107: 688.34 | AI107: 709.51 | AJ107: 730.68 | AK107: 751.82 | AL107: 772.96 | AM107: 822.105 | AN107: 907.115 | AO107: 992.03 | AP107: 1076.865 | AQ107: 1161.655 | AR107: 1246.405 | AS107: 1331.13
B108: U | C108: 655.199 | D108: 2563.3 | J108: 2598 | K108: 2640.6 | L108: 2673.8 | M108: 2681.95 | N108: 2706.4 | O108: 2722.5 | P108: 2738.6 | Q108: 2762.6 | R108: 2770.6 | S108: 2786.6 | T108: 2802.6 | U108: 2834.44 | V108: 2842.4 | W108: 2866.4 | X108: 2882.4 | Y108: 2898.52 | Z108: 2922.7 | AA108: 2930.76 | AB108: 2963 | AC108: 3003.85 | AD108: 3044.7 | AE108: 3086.35 | AF108: 3128 | AG108: 3170.4 | AH108: 3212.8 | AI108: 3256 | AJ108: 3299.2 | AK108: 3343.25 | AL108: 3387.3 | AM108: 3478.35 | AN108: 3663.4 | AO108: 3855.25 | AP108: 4053.9 | AQ108: 4258.9 | AR108: 4469.9 | AS108: 4686.5
B109: H | C109: 655.802 | D109: 2751.7 | J109: 2796.8 | K109: 2852.5 | L109: 2895.7 | M109: 2906.35 | N109: 2938.3 | O109: 2959.3 | P109: 2980.3 | Q109: 3011.575 | R109: 3022 | S109: 3042.75 | T109: 3063.5 | U109: 3104.94 | V109: 3115.3 | W109: 3146.44 | X109: 3167.2 | Y109: 3188.02 | Z109: 3219.25 | AA109: 3229.66 | AB109: 3271.3 | AC109: 3323.95 | AD109: 3376.6 | AE109: 3429.9 | AF109: 3483.2 | AG109: 3537.3 | AH109: 3591.4 | AI109: 3646.25 | AJ109: 3701.1 | AK109: 3756.8 | AL109: 3812.5 | AM109: 3926.7 | AN109: 4158.15 | AO109: 4396.4 | AP109: 4641.25 | AQ109: 4892.5 | AR109: 5149.7 | AS109: 5412.55
B110: S | C110: 1.897 | D110: 6.787 | J110: 6.89 | K110: 7.0108 | L110: 7.1004 | M110: 7.121525 | N110: 7.1849 | O110: 7.2251 | P110: 7.2653 | Q110: 7.3229 | R110: 7.3421 | S110: 7.37895 | T110: 7.4158 | U110: 7.4866 | V110: 7.5043 | W110: 7.55524 | X110: 7.5892 | Y110: 7.62136 | Z110: 7.6696 | AA110: 7.68568 | AB110: 7.75 | AC110: 7.8254 | AD110: 7.9008 | AE110: 7.97205 | AF110: 8.0433 | AG110: 8.1111 | AH110: 8.1789 | AI110: 8.2436 | AJ110: 8.3083 | AK110: 8.3703 | AL110: 8.4323 | AM110: 8.5555 | AN110: 8.78175 | AO110: 8.994 | AP110: 9.19425 | AQ110: 9.38415 | AR110: 9.565 | AS110: 9.7376
A111: 575 | B111: V | C111: 1.099 | D111: 328.41 | E111: 157.18 | J111: 345.2 | K111: 367.9 | L111: 385.54 | M111: 389.8675 | N111: 402.85 | O111: 411.385 | P111: 419.92 | Q111: 432.5875 | R111: 436.81 | S111: 445.185 | T111: 453.56 | U111: 470.2 | V111: 474.36 | W111: 486.762 | X111: 495.03 | Y111: 503.248 | Z111: 515.575 | AA111: 519.684 | AB111: 536.12 | AC111: 556.55 | AD111: 576.98 | AE111: 597.34 | AF111: 617.7 | AG111: 638 | AH111: 658.3 | AI111: 678.565 | AJ111: 698.83 | AK111: 719.055 | AL111: 739.28 | AM111: 784.6775 | AN111: 865.8425 | AO111: 946.91 | AP111: 1027.8975 | AQ111: 1108.8425 | AR111: 1189.7475 | AS111: 1270.625
B112: U | C112: 662.603 | D112: 2564.8 | J112: 2596.6 | K112: 2639.6 | L112: 2672.9 | M112: 2681.1 | N112: 2705.7 | O112: 2721.85 | P112: 2738 | Q112: 2762.075 | R112: 2770.1 | S112: 2786.1 | T112: 2802.1 | U112: 2834.02 | V112: 2842 | W112: 2866.06 | X112: 2882.1 | Y112: 2898.22 | Z112: 2922.4 | AA112: 2930.46 | AB112: 2962.7 | AC112: 3003.6 | AD112: 3044.5 | AE112: 3086.15 | AF112: 3127.8 | AG112: 3170.2 | AH112: 3212.6 | AI112: 3255.85 | AJ112: 3299.1 | AK112: 3343.15 | AL112: 3387.2 | AM112: 3478.225 | AN112: 3663.3 | AO112: 3855.175 | AP112: 4053.85 | AQ112: 4258.85 | AR112: 4469.85 | AS112: 4686.45
B113: H | C113: 663.235 | D113: 2753.6 | J113: 2795.1 | K113: 2851.1 | L113: 2894.6 | M113: 2905.275 | N113: 2937.3 | O113: 2958.4 | P113: 2979.5 | Q113: 3010.85 | R113: 3021.3 | S113: 3042.1 | T113: 3062.9 | U113: 3104.42 | V113: 3114.8 | W113: 3145.94 | X113: 3166.7 | Y113: 3187.56 | Z113: 3218.85 | AA113: 3229.28 | AB113: 3271 | AC113: 3323.65 | AD113: 3376.3 | AE113: 3429.6 | AF113: 3482.9 | AG113: 3537 | AH113: 3591.1 | AI113: 3646 | AJ113: 3700.9 | AK113: 3756.6 | AL113: 3812.3 | AM113: 3926.55 | AN113: 4158.025 | AO113: 4396.3 | AP113: 4641.175 | AQ113: 4892.45 | AR113: 5149.65 | AS113: 5412.525
B114: S | C114: 1.9142 | D114: 6.772 | J114: 6.8664 | K114: 6.988 | L114: 7.0781 | M114: 7.099325 | N114: 7.163 | O114: 7.2033 | P114: 7.2436 | Q114: 7.30135 | R114: 7.3206 | S114: 7.35755 | T114: 7.3945 | U114: 7.46538 | V114: 7.4831 | W114: 7.5341 | X114: 7.5681 | Y114: 7.60028 | Z114: 7.64855 | AA114: 7.66464 | AB114: 7.729 | AC114: 7.80445 | AD114: 7.8799 | AE114: 7.95125 | AF114: 8.0226 | AG114: 8.09035 | AH114: 8.1581 | AI114: 8.22285 | AJ114: 8.2876 | AK114: 8.3496 | AL114: 8.4116 | AM114: 8.53435 | AN114: 8.760625 | AO114: 8.9729 | AP114: 9.173175 | AQ114: 9.363075 | AR114: 9.54395 | AS114: 9.71655
A115: 600 | B115: V | C115: 1.101 | D115: 315.47 | E115: 158.84 | J115: 330.16 | K115: 352.04 | L115: 369.03 | M115: 373.1925 | N115: 385.68 | O115: 393.88 | P115: 402.08 | Q115: 414.2525 | R115: 418.31 | S115: 426.35 | T115: 434.39 | U115: 450.358 | V115: 454.35 | W115: 466.254 | X115: 474.19 | Y115: 482.074 | Z115: 493.9 | AA115: 497.842 | AB115: 513.61 | AC115: 533.205 | AD115: 552.8 | AE115: 3231.82 | AF115: 5910.84 | AG115: 3270.81 | AH115: 630.78 | AI115: 650.205 | AJ115: 669.63 | AK115: 689.02 | AL115: 708.41 | AM115: 747.25 | AN115: 824.57 | AO115: 901.79 | AP115: 978.93 | AQ115: 1056.03 | AR115: 1133.09 | AS115: 1210.12
B116: U | C116: 669.762 | D116: 2566.2 | J116: 2595.3 | K116: 2638.5 | L116: 2672.1 | M116: 2680.325 | N116: 2705 | O116: 2721.2 | P116: 2737.4 | Q116: 2761.55 | R116: 2769.6 | S116: 2785.6 | T116: 2801.6 | U116: 2833.6 | V116: 2841.6 | W116: 2865.66 | X116: 2881.7 | Y116: 2897.84 | Z116: 2922.05 | AA116: 2930.12 | AB116: 2962.4 | AC116: 3003.35 | AD116: 3044.3 | AE116: 3085.95 | AF116: 3127.6 | AG116: 3170 | AH116: 3212.4 | AI116: 3255.65 | AJ116: 3298.9 | AK116: 3343 | AL116: 3387.1 | AM116: 3478.1 | AN116: 3663.2 | AO116: 3855.1 | AP116: 4053.8 | AQ116: 4258.8 | AR116: 4469.8 | AS116: 4686.4
B117: H | C117: 670.423 | D117: 2755.5 | J117: 2793.3 | K117: 2849.7 | L117: 2893.5 | M117: 2904.225 | N117: 2936.4 | O117: 2957.55 | P117: 2978.7 | Q117: 3010.125 | R117: 3020.6 | S117: 3041.45 | T117: 3062.3 | U117: 3103.9 | V117: 3114.3 | W117: 3145.44 | X117: 3166.2 | Y117: 3187.08 | Z117: 3218.4 | AA117: 3228.84 | AB117: 3270.6 | AC117: 3323.3 | AD117: 3376 | AE117: 3429.35 | AF117: 3482.7 | AG117: 3536.8 | AH117: 3590.9 | AI117: 3645.8 | AJ117: 3700.7 | AK117: 3756.4 | AL117: 3812.1 | AM117: 3926.4 | AN117: 4157.9 | AO117: 4396.2 | AP117: 4641.1 | AQ117: 4892.4 | AR117: 5149.6 | AS117: 5412.5
B118: S | C118: 1.9308 | D118: 6.7575 | J118: 6.8437 | K118: 6.9662 | L118: 7.0567 | M118: 7.078 | N118: 7.1419 | O118: 7.18235 | P118: 7.2228 | Q118: 7.2807 | R118: 7.3 | S118: 7.337 | T118: 7.374 | U118: 7.44504 | V118: 7.4628 | W118: 7.51386 | X118: 7.5479 | Y118: 7.58012 | Z118: 7.62845 | AA118: 7.64456 | AB118: 7.709 | AC118: 7.7845 | AD118: 7.86 | AE118: 7.93135 | AF118: 8.0027 | AG118: 8.0705 | AH118: 8.1383 | AI118: 8.20305 | AJ118: 8.2678 | AK118: 8.32985 | AL118: 8.3919 | AM118: 8.5132 | AN118: 8.7395 | AO118: 8.9518 | AP118: 9.1521 | AQ118: 9.342 | AR118: 9.5229 | AS118: 9.6955
A119: 625 | B119: V | C119: 1.103 | D119: 303.54 | E119: 160.44 | J119: 316.31 | K119: 337.45 | L119: 353.83 | M119: 357.84 | N119: 369.87 | O119: 377.77 | P119: 385.67 | Q119: 397.3775 | R119: 401.28 | S119: 409.015 | T119: 416.75 | U119: 432.102 | V119: 435.94 | W119: 447.382 | X119: 455.01 | Y119: 462.586 | Z119: 473.95 | AA119: 477.738 | AB119: 492.89 | AC119: 511.72 | AD119: 530.55 | AE119: 549.3 | AF119: 568.05 | AG119: 586.75 | AH119: 605.45 | AI119: 624.105 | AJ119: 642.76 | AK119: 661.385 | AL119: 680.01 | AM119: 723.8575 | AN119: 798.77375 | AO119: 873.59 | AP119: 948.3275 | AQ119: 1023.0225 | AR119: 1097.67875 | AS119: 1172.30625
B120: U | C120: 676.695 | D120: 2567.5 | J120: 2593.9 | K120: 2637.5 | L120: 2671.2 | M120: 2679.45 | N120: 2704.2 | O120: 2720.5 | P120: 2736.8 | Q120: 2761.025 | R120: 2769.1 | S120: 15390.55 | T120: 2801.2 | U120: 7875.36 | V120: 2841.2 | W120: 2865.32 | X120: 2881.4 | Y120: 2897.54 | Z120: 2921.75 | AA120: 2929.82 | AB120: 2962.1 | AC120: 3003.05 | AD120: 3044 | AE120: 3085.7 | AF120: 3127.4 | AG120: 3169.8 | AH120: 3212.2 | AI120: 3255.5 | AJ120: 3298.8 | AK120: 3342.85 | AL120: 3386.9 | AM120: 3477.9875 | AN120: 3663.1125 | AO120: 3855.025 | AP120: 4053.7375 | AQ120: 4258.7375 | AR120: 4469.75 | AS120: 4686.3625
B121: H | C121: 677.384 | D121: 2757.2 | J121: 2791.6 | K121: 2848.4 | L121: 2892.3 | M121: 2903.075 | N121: 2935.4 | O121: 2956.6 | P121: 2977.8 | Q121: 3009.375 | R121: 3019.9 | S121: 3040.8 | T121: 3061.7 | U121: 3103.3 | V121: 3113.7 | W121: 3144.9 | X121: 3165.7 | Y121: 3186.6 | Z121: 3217.95 | AA121: 3228.4 | AB121: 3270.2 | AC121: 3322.9 | AD121: 3375.6 | AE121: 3429 | AF121: 3482.4 | AG121: 3536.55 | AH121: 3590.7 | AI121: 3645.6 | AJ121: 3700.5 | AK121: 3756.2 | AL121: 3811.9 | AM121: 3926.2625 | AN121: 4157.7875 | AO121: 4396.1125 | AP121: 4641.025 | AQ121: 4892.3375 | AR121: 5149.5625 | AS121: 5412.4625
B122: S | C122: 1.9469 | D122: 6.7437 | J122: 6.8217 | K122: 6.9451 | L122: 7.0361 | M122: 7.0575 | N122: 7.1217 | O122: 7.16225 | P122: 7.2028 | Q122: 7.26085 | R122: 7.2802 | S122: 7.3173 | T122: 7.3544 | U122: 7.42552 | V122: 7.4433 | W122: 7.49442 | X122: 7.5285 | Y122: 7.56074 | Z122: 7.6091 | AA122: 7.62522 | AB122: 7.6897 | AC122: 7.76525 | AD122: 7.8408 | AE122: 7.9122 | AF122: 7.9836 | AG122: 8.0514 | AH122: 8.1192 | AI122: 8.184 | AJ122: 8.2488 | AK122: 8.31085 | AL122: 8.3729 | AM122: 8.49647625 | AN122: 8.722825 | AO122: 8.9351375 | AP122: 9.13545 | AQ122: 9.325375 | AR122: 9.5062625 | AS122: 9.678875
A123: 650 | B123: V | C123: 1.105 | D123: 292.49 | E123: 161.99 | J123: 303.53 | K123: 323.98 | L123: 339.8 | M123: 343.6725 | N123: 355.29 | O123: 362.905 | P123: 370.52 | Q123: 381.8 | R123: 385.56 | S123: 393.015 | T123: 400.47 | U123: 415.254 | V123: 418.95 | W123: 429.966 | X123: 437.31 | Y123: 444.604 | Z123: 455.545 | AA123: 459.192 | AB123: 473.78 | AC123: 491.895 | AD123: 510.01 | AE123: 528.055 | AF123: 546.1 | AG123: 564.085 | AH123: 582.07 | AI123: 600.015 | AJ123: 617.96 | AK123: 635.875 | AL123: 653.79 | AM123: 700.465 | AN123: 772.9775 | AO123: 845.39 | AP123: 917.725 | AQ123: 990.015 | AR123: 1062.2675 | AS123: 1134.4925
B124: U | C124: 683.417 | D124: 2568.7 | J124: 2592.5 | K124: 2636.4 | L124: 2670.3 | M124: 2678.6 | N124: 2703.5 | O124: 2719.85 | P124: 2736.2 | Q124: 2760.425 | R124: 2768.5 | S124: 2784.6 | T124: 2800.7 | U124: 2832.86 | V124: 2840.9 | W124: 2864.96 | X124: 2881 | Y124: 2897.16 | Z124: 2921.4 | AA124: 2929.48 | AB124: 2961.8 | AC124: 3002.8 | AD124: 3043.8 | AE124: 3085.5 | AF124: 3127.2 | AG124: 3169.65 | AH124: 3212.1 | AI124: 3255.35 | AJ124: 3298.6 | AK124: 3342.7 | AL124: 3386.8 | AM124: 3477.875 | AN124: 3663.025 | AO124: 3854.95 | AP124: 4053.675 | AQ124: 4258.675 | AR124: 4469.7 | AS124: 4686.325
B125: H | C125: 684.135 | D125: 2758.9 | J125: 2789.8 | K125: 2847 | L125: 2891.2 | M125: 2902 | N125: 2934.4 | O125: 2955.7 | P125: 2977 | Q125: 3008.65 | R125: 3019.2 | S125: 3040.1 | T125: 3061 | U125: 3102.76 | V125: 3113.2 | W125: 3144.46 | X125: 3165.3 | Y125: 3186.16 | Z125: 3217.45 | AA125: 3227.88 | AB125: 3269.6 | AC125: 3322.45 | AD125: 3375.3 | AE125: 3428.7 | AF125: 3482.1 | AG125: 3536.25 | AH125: 3590.4 | AI125: 3645.35 | AJ125: 3700.3 | AK125: 3756.05 | AL125: 3811.8 | AM125: 3926.125 | AN125: 4157.675 | AO125: 4396.025 | AP125: 4640.95 | AQ125: 4892.275 | AR125: 5149.525 | AS125: 5412.425
B126: S | C126: 1.9623 | D126: 6.7304 | J126: 6.8004 | K126: 6.9247 | L126: 7.0162 | M126: 7.037675 | N126: 7.1021 | O126: 7.1428 | P126: 7.1835 | Q126: 7.2417 | R126: 7.2611 | S126: 7.2983 | T126: 7.3355 | U126: 7.4067 | V126: 7.4245 | W126: 7.47574 | X126: 7.5099 | Y126: 7.54216 | Z126: 7.59055 | AA126: 7.60668 | AB126: 7.6712 | AC126: 7.7468 | AD126: 7.8224 | AE126: 7.8938 | AF126: 7.9652 | AG126: 8.03305 | AH126: 8.1009 | AI126: 8.1657 | AJ126: 8.2305 | AK126: 8.29255 | AL126: 8.3546 | AM126: 8.4797525 | AN126: 8.70615 | AO126: 8.918475 | AP126: 9.1188 | AQ126: 9.30875 | AR126: 9.489625 | AS126: 9.66225
A127: 675 | B127: V | C127: 1.106 | D127: 282.23 | E127: 163.49 | J127: 291.69 | K127: 311.51 | L127: 326.81 | M127: 330.5525 | N127: 341.78 | O127: 349.135 | P127: 356.49 | Q127: 367.38 | R127: 371.01 | S127: 378.2 | T127: 385.39 | U127: 399.654 | V127: 403.22 | W127: 413.84 | X127: 420.92 | Y127: 427.95 | Z127: 438.495 | AA127: 442.01 | AB127: 456.07 | AC127: 473.535 | AD127: 491 | AE127: 508.385 | AF127: 525.77 | AG127: 543.1 | AH127: 560.43 | AI127: 577.715 | AJ127: 595 | AK127: 612.255 | AL127: 629.51 | AM127: 677.0725 | AN127: 747.18125 | AO127: 817.19 | AP127: 887.1225 | AQ127: 957.0075 | AR127: 1026.85625 | AS127: 1096.67875
B128: U | C128: 689.943 | D128: 2570 | J128: 2591.1 | K128: 2635.4 | L128: 2669.5 | M128: 2677.825 | N128: 2702.8 | O128: 2719.2 | P128: 2735.6 | Q128: 2759.9 | R128: 2768 | S128: 2784.15 | T128: 2800.3 | U128: 2832.46 | V128: 2840.5 | W128: 2864.62 | X128: 2880.7 | Y128: 2896.88 | Z128: 2921.15 | AA128: 2929.24 | AB128: 2961.6 | AC128: 3002.6 | AD128: 3043.6 | AE128: 3085.3 | AF128: 3127 | AG128: 3169.45 | AH128: 3211.9 | AI128: 3255.2 | AJ128: 3298.5 | AK128: 3342.6 | AL128: 3386.7 | AM128: 3477.7625 | AN128: 3662.9375 | AO128: 3854.875 | AP128: 4053.6125 | AQ128: 4258.6125 | AR128: 4469.65 | AS128: 4686.2875
B129: H | C129: 690.689 | D129: 2760.5 | J129: 2788 | K129: 2845.6 | L129: 2890.1 | M129: 2900.95 | N129: 2933.5 | O129: 2954.85 | P129: 2976.2 | Q129: 3007.925 | R129: 3018.5 | S129: 3039.45 | T129: 3060.4 | U129: 3102.16 | V129: 3112.6 | W129: 3143.92 | X129: 3164.8 | Y129: 3185.72 | Z129: 3217.1 | AA129: 3227.56 | AB129: 3269.4 | AC129: 3322.2 | AD129: 3375 | AE129: 3428.4 | AF129: 3481.8 | AG129: 3536 | AH129: 3590.2 | AI129: 3645.15 | AJ129: 3700.1 | AK129: 3755.85 | AL129: 3811.6 | AM129: 3925.9875 | AN129: 4157.5625 | AO129: 4395.9375 | AP129: 4640.875 | AQ129: 4892.2125 | AR129: 5149.4875 | AS129: 5412.3875
B130: S | C130: 1.9773 | D130: 6.7176 | J130: 6.7798 | K130: 6.905 | L130: 6.997 | M130: 7.018575 | N130: 7.0833 | O130: 7.12415 | P130: 7.165 | Q130: 7.22335 | R130: 7.2428 | S130: 7.28005 | T130: 7.3173 | U130: 7.38858 | V130: 7.4064 | W130: 7.4577 | X130: 7.4919 | Y130: 7.5242 | Z130: 7.57265 | AA130: 7.5888 | AB130: 7.6534 | AC130: 7.729 | AD130: 7.8046 | AE130: 7.87605 | AF130: 7.9475 | AG130: 8.0154 | AH130: 8.0833 | AI130: 8.1481 | AJ130: 8.2129 | AK130: 8.275 | AL130: 8.3371 | AM130: 8.46302875 | AN130: 8.689475 | AO130: 8.9018125 | AP130: 9.10215 | AQ130: 9.292125 | AR130: 9.4729875 | AS130: 9.645625
A131: 700 | B131: V | C131: 1.108 | D131: 272.68 | E131: 164.96 | J131: 280.69 | K131: 299.92 | L131: 314.75 | M131: 318.37 | N131: 329.23 | O131: 336.345 | P131: 343.46 | Q131: 353.99 | R131: 357.5 | S131: 364.445 | T131: 371.39 | U131: 385.166 | V131: 388.61 | W131: 398.87 | X131: 405.71 | Y131: 412.496 | Z131: 422.675 | AA131: 426.068 | AB131: 439.64 | AC131: 456.49 | AD131: 473.34 | AE131: 490.115 | AF131: 506.89 | AG131: 523.61 | AH131: 540.33 | AI131: 557.005 | AJ131: 573.68 | AK131: 590.325 | AL131: 606.97 | AM131: 653.68 | AN131: 721.385 | AO131: 788.99 | AP131: 856.52 | AQ131: 924 | AR131: 991.445 | AS131: 1058.865
B132: U | C132: 696.285 | D132: 2571.1 | J132: 2589.7 | K132: 2634.3 | L132: 2668.6 | M132: 2676.975 | N132: 2702.1 | O132: 2718.55 | P132: 2735 | Q132: 2759.375 | R132: 2767.5 | S132: 2783.65 | T132: 2799.8 | U132: 2832.04 | V132: 2840.1 | W132: 2864.22 | X132: 2880.3 | Y132: 2896.5 | Z132: 2920.8 | AA132: 2928.9 | AB132: 2961.3 | AC132: 3002.3 | AD132: 3043.3 | AE132: 3085.05 | AF132: 3126.8 | AG132: 3169.25 | AH132: 3211.7 | AI132: 3255 | AJ132: 3298.3 | AK132: 3342.4 | AL132: 3386.5 | AM132: 3477.65 | AN132: 3662.85 | AO132: 3854.8 | AP132: 4053.55 | AQ132: 4258.55 | AR132: 4469.6 | AS132: 4686.25
B133: H | C133: 697.061 | D133: 2762 | J133: 2786.2 | K133: 2844.2 | L133: 2888.9 | M133: 2899.8 | N133: 2932.5 | O133: 2953.95 | P133: 2975.4 | Q133: 3007.125 | R133: 3017.7 | S133: 3038.75 | T133: 3059.8 | U133: 3101.64 | V133: 3112.1 | W133: 3143.42 | X133: 3164.3 | Y133: 3185.24 | Z133: 3216.65 | AA133: 3227.12 | AB133: 3269 | AC133: 3321.85 | AD133: 3374.7 | AE133: 3428.15 | AF133: 3481.6 | AG133: 3535.75 | AH133: 3589.9 | AI133: 3644.9 | AJ133: 3699.9 | AK133: 3755.65 | AL133: 3811.4 | AM133: 3925.85 | AN133: 4157.45 | AO133: 4395.85 | AP133: 4640.8 | AQ133: 4892.15 | AR133: 5149.45 | AS133: 5412.35
B134: S | C134: 1.9918 | D134: 6.7052 | J134: 6.7598 | K134: 6.8859 | L134: 6.9784 | M134: 7.000075 | N134: 7.0651 | O134: 7.10605 | P134: 7.147 | Q134: 7.2055 | R134: 7.225 | S134: 7.26235 | T134: 7.2997 | U134: 7.37114 | V134: 7.389 | W134: 7.4403 | X134: 7.4745 | Y134: 7.50684 | Z134: 7.55535 | AA134: 7.57152 | AB134: 7.6362 | AC134: 7.71185 | AD134: 7.7875 | AE134: 7.859 | AF134: 7.9305 | AG134: 7.9984 | AH134: 8.0663 | AI134: 8.1311 | AJ134: 8.1959 | AK134: 8.258 | AL134: 8.3201 | AM134: 8.446305 | AN134: 8.6728 | AO134: 8.88515 | AP134: 9.0855 | AQ134: 9.2755 | AR134: 9.45635 | AS134: 9.629
A135: 725 | B135: V | C135: 1.11 | D135: 263.77 | E135: 166.38 | J135: 270.45 | K135: 289.13 | L135: 303.51 | M135: 307.02 | N135: 317.55 | O135: 324.44 | P135: 331.33 | Q135: 341.5225 | R135: 344.92 | S135: 351.64 | T135: 358.36 | U135: 371.68 | V135: 375.01 | W135: 384.928 | X135: 391.54 | Y135: 398.098 | Z135: 407.935 | AA135: 411.214 | AB135: 424.33 | AC135: 440.615 | AD135: 456.9 | AE135: 473.105 | AF135: 489.31 | AG135: 505.46 | AH135: 521.61 | AI135: 537.72 | AJ135: 553.83 | AK135: 569.91 | AL135: 585.99 | AM135: 630.2875 | AN135: 695.58875 | AO135: 760.79 | AP135: 825.9175 | AQ135: 890.9925 | AR135: 956.03375 | AS135: 1021.05125
B136: U | C136: 702.457 | D136: 2572.2 | J136: 2588.3 | K136: 2633.2 | L136: 2667.7 | M136: 2676.1 | N136: 2701.3 | O136: 2717.8 | P136: 2734.3 | Q136: 2758.825 | R136: 2767 | S136: 2783.15 | T136: 2799.3 | U136: 2831.62 | V136: 2839.7 | W136: 2863.88 | X136: 2880 | Y136: 2896.2 | Z136: 2920.5 | AA136: 2928.6 | AB136: 2961 | AC136: 3002.05 | AD136: 3043.1 | AE136: 3084.85 | AF136: 3126.6 | AG136: 3169.05 | AH136: 3211.5 | AI136: 3254.8 | AJ136: 3298.1 | AK136: 3342.25 | AL136: 3386.4 | AM136: 3477.5375 | AN136: 3662.7625 | AO136: 3854.725 | AP136: 4053.4875 | AQ136: 4258.4875 | AR136: 4469.55 | AS136: 4686.2125
B137: H | C137: 703.261 | D137: 2763.4 | J137: 2784.4 | K137: 2842.8 | L137: 2887.7 | M137: 2898.65 | N137: 2931.5 | O137: 2953.05 | P137: 2974.6 | Q137: 3006.4 | R137: 3017 | S137: 3038.05 | T137: 3059.1 | U137: 3101.02 | V137: 3111.5 | W137: 3142.88 | X137: 3163.8 | Y137: 3184.78 | Z137: 3216.25 | AA137: 3226.74 | AB137: 3268.7 | AC137: 3321.5 | AD137: 3374.3 | AE137: 3427.8 | AF137: 3481.3 | AG137: 3535.5 | AH137: 3589.7 | AI137: 3644.7 | AJ137: 3699.7 | AK137: 3755.45 | AL137: 3811.2 | AM137: 3925.7125 | AN137: 4157.3375 | AO137: 4395.7625 | AP137: 4640.725 | AQ137: 4892.0875 | AR137: 5149.4125 | AS137: 5412.3125
B138: S | C138: 2.0059 | D138: 6.6932 | J138: 6.7404 | K138: 6.8673 | L138: 6.9604 | M138: 6.98215 | N138: 7.0474 | O138: 7.0885 | P138: 7.1296 | Q138: 7.18825 | R138: 7.2078 | S138: 7.24525 | T138: 7.2827 | U138: 7.35422 | V138: 7.3721 | W138: 7.42352 | X138: 7.4578 | Y138: 7.49016 | Z138: 7.5387 | AA138: 7.55488 | AB138: 7.6196 | AC138: 7.6953 | AD138: 7.771 | AE138: 7.8425 | AF138: 7.914 | AG138: 7.98195 | AH138: 8.0499 | AI138: 8.11475 | AJ138: 8.1796 | AK138: 8.2417 | AL138: 8.3038 | AM138: 8.42958125 | AN138: 8.656125 | AO138: 8.8684875 | AP138: 9.06885 | AQ138: 9.258875 | AR138: 9.4397125 | AS138: 9.612375
A139: 750 | B139: V | C139: 1.112 | D139: 255.43 | E139: 167.76 | J139: 260.88 | K139: 279.05 | L139: 293.03 | M139: 296.435 | N139: 306.65 | O139: 313.33 | P139: 320.01 | Q139: 329.88 | R139: 333.17 | S139: 339.68 | T139: 346.19 | U139: 359.094 | V139: 362.32 | W139: 371.914 | X139: 378.31 | Y139: 384.674 | Z139: 394.22 | AA139: 397.386 | AB139: 410.05 | AC139: 425.8 | AD139: 441.55 | AE139: 457.225 | AF139: 472.9 | AG139: 488.525 | AH139: 504.15 | AI139: 519.725 | AJ139: 535.3 | AK139: 550.85 | AL139: 566.4 | AM139: 606.895 | AN139: 669.7925 | AO139: 732.59 | AP139: 795.315 | AQ139: 857.985 | AR139: 920.6225 | AS139: 983.2375
B140: U | C140: 708.467 | D140: 2573.3 | J140: 2586.9 | K140: 2632.1 | L140: 2666.8 | M140: 2675.25 | N140: 2700.6 | O140: 2717.15 | P140: 2733.7 | Q140: 2758.225 | R140: 2766.4 | S140: 2782.65 | T140: 2798.9 | U140: 2831.22 | V140: 2839.3 | W140: 2863.48 | X140: 2879.6 | Y140: 2895.8 | Z140: 2920.1 | AA140: 2928.22 | AB140: 2960.7 | AC140: 3001.8 | AD140: 3042.9 | AE140: 3084.6 | AF140: 3126.3 | AG140: 3168.85 | AH140: 3211.4 | AI140: 3254.7 | AJ140: 3298 | AK140: 3342.1 | AL140: 3386.2 | AM140: 3477.425 | AN140: 3662.675 | AO140: 3854.65 | AP140: 4053.425 | AQ140: 4258.425 | AR140: 4469.5 | AS140: 4686.175
B141: H | C141: 709.301 | D141: 2764.8 | J141: 2782.5 | K141: 2841.4 | L141: 2886.6 | M141: 2897.6 | N141: 2930.6 | O141: 2952.15 | P141: 2973.7 | Q141: 3005.65 | R141: 3016.3 | S141: 3037.4 | T141: 3058.5 | U141: 3100.5 | V141: 3111 | W141: 3142.44 | X141: 3163.4 | Y141: 3184.32 | Z141: 3215.7 | AA141: 3226.22 | AB141: 3268.3 | AC141: 3321.15 | AD141: 3374 | AE141: 3427.5 | AF141: 3481 | AG141: 3535.25 | AH141: 3589.5 | AI141: 3644.5 | AJ141: 3699.5 | AK141: 3755.25 | AL141: 3811 | AM141: 3925.575 | AN141: 4157.225 | AO141: 4395.675 | AP141: 4640.65 | AQ141: 4892.025 | AR141: 5149.375 | AS141: 5412.275
B142: S | C142: 2.0195 | D142: 6.6817 | J142: 6.7215 | K142: 6.8494 | L142: 6.9429 | M142: 6.96475 | N142: 7.0303 | O142: 7.07155 | P142: 7.1128 | Q142: 7.1716 | R142: 7.1912 | S142: 7.2287 | T142: 7.2662 | U142: 7.33788 | V142: 7.3558 | W142: 7.40728 | X142: 7.4416 | Y142: 7.47456 | Z142: 7.524 | AA142: 7.5399 | AB142: 7.6035 | AC142: 7.67925 | AD142: 7.755 | AE142: 7.82655 | AF142: 7.8981 | AG142: 7.96605 | AH142: 8.034 | AI142: 8.09885 | AJ142: 8.1637 | AK142: 8.22585 | AL142: 8.288 | AM142: 8.4128575 | AN142: 8.63945 | AO142: 8.851825 | AP142: 9.0522 | AQ142: 9.24225 | AR142: 9.423075 | AS142: 9.59575
A143: 775 | B143: V | C143: 1.113 | D143: 247.61 | E143: 169.1 | J143: 251.93 | K143: 269.63 | L143: 283.22 | M143: 286.5275 | N143: 296.45 | O143: 302.93 | P143: 309.41 | Q143: 318.995 | R143: 322.19 | S143: 328.5 | T143: 334.81 | U143: 347.314 | V143: 350.44 | W143: 359.74 | X143: 365.94 | Y143: 372.104 | Z143: 381.35 | AA143: 384.418 | AB143: 396.69 | AC143: 411.945 | AD143: 427.2 | AE143: 442.38 | AF143: 457.56 | AG143: 472.685 | AH143: 487.81 | AI143: 502.89 | AJ143: 517.97 | AK143: 533.02 | AL143: 548.07 | AM143: 583.5025 | AN143: 643.99625 | AO143: 704.39 | AP143: 764.7125 | AQ143: 824.9775 | AR143: 885.21125 | AS143: 945.42375
B144: U | C144: 714.326 | D144: 2574.3 | J144: 2585.4 | K144: 2631 | L144: 2665.9 | M144: 2674.375 | N144: 2699.8 | O144: 2716.45 | P144: 2733.1 | Q144: 2757.7 | R144: 2765.9 | S144: 2782.15 | T144: 2798.4 | U144: 2830.8 | V144: 2838.9 | W144: 2863.14 | X144: 2879.3 | Y144: 2895.5 | Z144: 2919.8 | AA144: 2927.92 | AB144: 2960.4 | AC144: 3001.5 | AD144: 3042.6 | AE144: 3084.35 | AF144: 3126.1 | AG144: 3168.65 | AH144: 3211.2 | AI144: 3254.5 | AJ144: 3297.8 | AK144: 3341.95 | AL144: 3386.1 | AM144: 3477.3125 | AN144: 3662.5875 | AO144: 3854.575 | AP144: 4053.3625 | AQ144: 4258.3625 | AR144: 4469.45 | AS144: 4686.1375
B145: H | C145: 715.189 | D145: 2766.2 | J145: 2780.7 | K145: 2840 | L145: 2885.4 | M145: 2896.45 | N145: 2929.6 | O145: 2951.25 | P145: 2972.9 | Q145: 3004.925 | R145: 3015.6 | S145: 3036.75 | T145: 3057.9 | U145: 3099.98 | V145: 3110.5 | W145: 3141.94 | X145: 3162.9 | Y145: 3183.86 | Z145: 3215.3 | AA145: 3225.82 | AB145: 3267.9 | AC145: 3320.8 | AD145: 3373.7 | AE145: 3427.25 | AF145: 3480.8 | AG145: 3535 | AH145: 3589.2 | AI145: 3644.25 | AJ145: 3699.3 | AK145: 3755.1 | AL145: 3810.9 | AM145: 3925.4375 | AN145: 4157.1125 | AO145: 4395.5875 | AP145: 4640.575 | AQ145: 4891.9625 | AR145: 5149.3375 | AS145: 5412.2375
B146: S | C146: 2.0328 | D146: 6.6705 | J146: 6.7031 | K146: 6.8319 | L146: 6.9259 | M146: 6.94785 | N146: 7.0137 | O146: 7.0551 | P146: 7.0965 | Q146: 7.15545 | R146: 7.1751 | S146: 7.21265 | T146: 7.2502 | U146: 7.32204 | V146: 7.34 | W146: 7.39154 | X146: 7.4259 | Y146: 7.4589 | Z146: 7.5084 | AA146: 7.52432 | AB146: 7.588 | AC146: 7.6638 | AD146: 7.7396 | AE146: 7.81115 | AF146: 7.8827 | AG146: 7.9507 | AH146: 8.0187 | AI146: 8.08355 | AJ146: 8.1484 | AK146: 8.21055 | AL146: 8.2727 | AM146: 8.39613375 | AN146: 8.622775 | AO146: 8.8351625 | AP146: 9.03555 | AQ146: 9.225625 | AR146: 9.4064375 | AS146: 9.579125
A147: 800 | B147: V | C147: 1.115 | D147: 240.26 | E147: 170.41 | J147: 243.53 | K147: 260.79 | L147: 274.02 | M147: 277.235 | N147: 286.88 | O147: 293.18 | P147: 299.48 | Q147: 308.7875 | R147: 311.89 | S147: 318.015 | T147: 324.14 | U147: 336.276 | V147: 339.31 | W147: 348.328 | X147: 354.34 | Y147: 360.32 | Z147: 369.29 | AA147: 372.264 | AB147: 384.16 | AC147: 398.95 | AD147: 413.74 | AE147: 428.455 | AF147: 443.17 | AG147: 457.83 | AH147: 472.49 | AI147: 487.105 | AJ147: 501.72 | AK147: 516.305 | AL147: 530.89 | AM147: 560.11 | AN147: 618.2 | AO147: 676.19 | AP147: 734.11 | AQ147: 791.97 | AR147: 849.8 | AS147: 907.61
B148: U | C148: 720.043 | D148: 2575.3 | J148: 2584 | K148: 2629.9 | L148: 2665 | M148: 2673.525 | N148: 2699.1 | O148: 2715.8 | P148: 2732.5 | Q148: 2757.175 | R148: 2765.4 | S148: 2781.65 | T148: 2797.9 | U148: 2830.38 | V148: 2838.5 | W148: 2862.74 | X148: 2878.9 | Y148: 2895.14 | Z148: 2919.5 | AA148: 2927.64 | AB148: 2960.2 | AC148: 3001.3 | AD148: 3042.4 | AE148: 3084.15 | AF148: 3125.9 | AG148: 3168.45 | AH148: 3211 | AI148: 3254.35 | AJ148: 3297.7 | AK148: 3341.85 | AL148: 3386 | AM148: 3477.2 | AN148: 3662.5 | AO148: 3854.5 | AP148: 4053.3 | AQ148: 4258.3 | AR148: 4469.4 | AS148: 4686.1
B149: H | C149: 720.935 | D149: 2767.5 | J149: 2778.8 | K149: 2838.6 | L149: 2884.2 | M149: 2895.3 | N149: 2928.6 | O149: 2950.35 | P149: 2972.1 | Q149: 3004.2 | R149: 3014.9 | S149: 3036.1 | T149: 3057.3 | U149: 3099.38 | V149: 3109.9 | W149: 3141.4 | X149: 3162.4 | Y149: 3183.4 | Z149: 3214.9 | AA149: 3225.42 | AB149: 3267.5 | AC149: 3320.45 | AD149: 3373.4 | AE149: 3426.95 | AF149: 3480.5 | AG149: 3534.75 | AH149: 3589 | AI149: 3644.05 | AJ149: 3699.1 | AK149: 3754.9 | AL149: 3810.7 | AM149: 3925.3 | AN149: 4157 | AO149: 4395.5 | AP149: 4640.5 | AQ149: 4891.9 | AR149: 5149.3 | AS149: 5412.2
B150: S | C150: 2.0457 | D150: 6.6596 | J150: 6.6851 | K150: 6.8148 | L150: 6.9094 | M150: 6.93145 | N150: 6.9976 | O150: 7.03915 | P150: 7.0807 | Q150: 7.139875 | R150: 7.1596 | S150: 7.1972 | T150: 7.2348 | U150: 7.30672 | V150: 7.3247 | W150: 7.3763 | X150: 7.4107 | Y150: 7.4437 | Z150: 7.4932 | AA150: 7.50914 | AB150: 7.5729 | AC150: 7.64875 | AD150: 7.7246 | AE150: 7.7962 | AF150: 7.8678 | AG150: 7.9358 | AH150: 8.0038 | AI150: 8.0687 | AJ150: 8.1336 | AK150: 8.19575 | AL150: 8.2579 | AM150: 8.37941 | AN150: 8.6061 | AO150: 8.8185 | AP150: 9.0189 | AQ150: 9.209 | AR150: 9.3898 | AS150: 9.5625
A151: 825 | B151: V | C151: 1.117 | D151: 233.34 | E151: 171.69 | J151: 235.64 | K151: 252.48 | L151: 265.37 | M151: 268.5025 | N151: 277.9 | O151: 284.025 | P151: 290.15 | Q151: 299.195 | R151: 302.21 | S151: 308.165 | T151: 314.12 | U151: 325.904 | V151: 328.85 | W151: 337.61 | X151: 343.45 | Y151: 349.254 | Z151: 357.96 | AA151: 360.846 | AB151: 372.39 | AC151: 386.745 | AD151: 401.1 | AE151: 415.375 | AF151: 429.65 | AG151: 443.875 | AH151: 458.1 | AI151: 472.28 | AJ151: 486.46 | AK151: 500.61 | AL151: 514.76 | AM151: 546.075 | AN151: 602.7225 | AO151: 659.27 | AP151: 715.7475 | AQ151: 772.16625 | AR151: 828.55375 | AS151: 884.92125
B152: U | C152: 725.625 | D152: 2576.2 | J152: 2582.5 | K152: 2628.8 | L152: 2664.1 | M152: 2672.675 | N152: 2698.4 | O152: 2715.1 | P152: 2731.8 | Q152: 2756.55 | R152: 2764.8 | S152: 2781.15 | T152: 2797.5 | U152: 2829.98 | V152: 2838.1 | W152: 2862.4 | X152: 2878.6 | Y152: 2894.8 | Z152: 2919.1 | AA152: 2927.26 | AB152: 2959.9 | AC152: 3001.05 | AD152: 3042.2 | AE152: 3083.95 | AF152: 3125.7 | AG152: 3168.25 | AH152: 3210.8 | AI152: 3254.15 | AJ152: 3297.5 | AK152: 3341.65 | AL152: 3385.8 | AM152: 3477.0875 | AN152: 3662.4 | AO152: 3854.425 | AP152: 4053.225 | AQ152: 4258.25 | AR152: 4469.35 | AS152: 4686.0625
B153: H | C153: 726.547 | D153: 2768.7 | J153: 2776.9 | K153: 2837.1 | L153: 2883.1 | M153: 2894.225 | N153: 2927.6 | O153: 2949.4 | P153: 2971.2 | Q153: 3003.375 | R153: 3014.1 | S153: 3035.35 | T153: 3056.6 | U153: 3098.84 | V153: 3109.4 | W153: 3140.9 | X153: 3161.9 | Y153: 3182.94 | Z153: 3214.5 | AA153: 3225.02 | AB153: 3267.1 | AC153: 3320.1 | AD153: 3373.1 | AE153: 3426.65 | AF153: 3480.2 | AG153: 3534.5 | AH153: 3588.8 | AI153: 3643.8 | AJ153: 3698.8 | AK153: 3754.65 | AL153: 3810.5 | AM153: 3925.15 | AN153: 4156.8875 | AO153: 4395.4125 | AP153: 4640.4375 | AQ153: 4891.8375 | AR153: 5149.25 | AS153: 5412.1625
B154: S | C154: 2.0583 | D154: 6.6491 | J154: 6.6675 | K154: 6.7982 | L154: 6.8933 | M154: 6.91545 | N154: 6.9819 | O154: 7.0236 | P154: 7.0653 | Q154: 7.12455 | R154: 7.1443 | S154: 7.182 | T154: 7.2197 | U154: 7.29178 | V154: 7.3098 | W154: 7.36146 | X154: 7.3959 | Y154: 7.42898 | Z154: 7.4786 | AA154: 7.49454 | AB154: 7.5583 | AC154: 7.6342 | AD154: 7.7101 | AE154: 7.7817 | AF154: 7.8533 | AG154: 7.92135 | AH154: 7.9894 | AI154: 8.0543 | AJ154: 8.1192 | AK154: 8.1814 | AL154: 8.2436 | AM154: 8.36642125 | AN154: 8.5931375 | AO154: 8.8055625 | AP154: 9.005975 | AQ154: 9.1960875 | AR154: 9.3769 | AS154: 9.5496
A155: 850 | B155: V | C155: 1.118 | D155: 226.81 | E155: 172.94 | J155: 228.21 | K155: 244.66 | L155: 257.24 | M155: 260.29 | N155: 269.44 | O155: 275.405 | P155: 281.37 | Q155: 290.1675 | R155: 293.1 | S155: 298.89 | T155: 304.68 | U155: 316.136 | V155: 319 | W155: 327.52 | X155: 333.2 | Y155: 338.836 | Z155: 347.29 | AA155: 350.094 | AB155: 361.31 | AC155: 375.255 | AD155: 389.2 | AE155: 403.065 | AF155: 416.93 | AG155: 430.745 | AH155: 444.56 | AI155: 458.325 | AJ155: 472.09 | AK155: 485.83 | AL155: 499.57 | AM155: 532.04 | AN155: 587.245 | AO155: 642.35 | AP155: 697.385 | AQ155: 752.3625 | AR155: 807.3075 | AS155: 862.2325
B156: U | C156: 731.08 | D156: 2577.1 | J156: 2581.1 | K156: 2627.7 | L156: 2663.2 | M156: 2663.45 | N156: 2697.6 | O156: 2714.4 | P156: 2731.2 | Q156: 2756.025 | R156: 2764.3 | S156: 2780.65 | T156: 2797 | U156: 2829.56 | V156: 2837.7 | W156: 2862 | X156: 2878.2 | Y156: 2894.44 | Z156: 2918.8 | AA156: 2926.96 | AB156: 2959.6 | AC156: 3000.75 | AD156: 3041.9 | AE156: 3083.7 | AF156: 3125.5 | AG156: 3168.1 | AH156: 3210.7 | AI156: 3254.05 | AJ156: 3297.4 | AK156: 3341.55 | AL156: 3385.7 | AM156: 3476.975 | AN156: 3662.3 | AO156: 3854.35 | AP156: 4053.15 | AQ156: 4258.2 | AR156: 4469.3 | AS156: 4686.025
B157: H | C157: 732.031 | D157: 2769.9 | J157: 2775.1 | K157: 2835.7 | L157: 2881.9 | M157: 2893.075 | N157: 2926.6 | O157: 2948.5 | P157: 2970.4 | Q157: 3002.65 | R157: 3013.4 | S157: 3034.7 | T157: 3056 | U157: 3098.24 | V157: 3108.8 | W157: 3140.36 | X157: 3161.4 | Y157: 3182.44 | Z157: 3214 | AA157: 3224.54 | AB157: 3266.7 | AC157: 3319.7 | AD157: 3372.7 | AE157: 3426.3 | AF157: 3479.9 | AG157: 3534.2 | AH157: 3588.5 | AI157: 3643.55 | AJ157: 3698.6 | AK157: 3754.45 | AL157: 3810.3 | AM157: 3925 | AN157: 4156.775 | AO157: 4395.325 | AP157: 4640.375 | AQ157: 4891.775 | AR157: 5149.2 | AS157: 5412.125
B158: S | C158: 2.0705 | D158: 6.6388 | J158: 6.6504 | K158: 6.782 | L158: 6.8777 | M158: 6.899925 | N158: 6.9666 | O158: 7.00845 | P158: 7.0503 | Q158: 7.1097 | R158: 7.1295 | S158: 7.1673 | T158: 7.2051 | U158: 7.27734 | V158: 7.2954 | W158: 7.34706 | X158: 7.3815 | Y158: 7.41462 | Z158: 7.4643 | AA158: 7.48026 | AB158: 7.5441 | AC158: 7.62005 | AD158: 7.696 | AE158: 7.76765 | AF158: 7.8393 | AG158: 7.90735 | AH158: 7.9754 | AI158: 8.04035 | AJ158: 8.1053 | AK158: 8.16745 | AL158: 8.2296 | AM158: 8.3534325 | AN158: 8.580175 | AO158: 8.792625 | AP158: 8.99305 | AQ158: 9.183175 | AR158: 9.364 | AS158: 9.5367
A159: 875 | B159: V | C159: 1.12 | D159: 220.65 | E159: 174.16 | J159: 221.2 | K159: 237.29 | L159: 249.56 | M159: 252.535 | N159: 261.46 | O159: 267.275 | P159: 273.09 | Q159: 281.655 | R159: 284.51 | S159: 290.15 | T159: 295.79 | U159: 306.934 | V159: 309.72 | W159: 318.006 | X159: 323.53 | Y159: 329.014 | Z159: 337.24 | AA159: 339.966 | AB159: 350.87 | AC159: 364.425 | AD159: 377.98 | AE159: 391.46 | AF159: 404.94 | AG159: 418.365 | AH159: 431.79 | AI159: 445.17 | AJ159: 458.55 | AK159: 471.9 | AL159: 485.25 | AM159: 518.005 | AN159: 571.7675 | AO159: 625.43 | AP159: 679.0225 | AQ159: 732.55875 | AR159: 786.06125 | AS159: 839.54375
B160: U | C160: 736.415 | D160: 2578 | J160: 2579.6 | K160: 2626.6 | L160: 2662.3 | M160: 2670.925 | N160: 2696.8 | O160: 2713.7 | P160: 2730.6 | Q160: 2755.425 | R160: 2763.7 | S160: 2780.1 | T160: 2796.5 | U160: 2829.14 | V160: 2837.3 | W160: 2861.66 | X160: 2877.9 | Y160: 2894.14 | Z160: 2918.5 | AA160: 2926.66 | AB160: 2959.3 | AC160: 3000.5 | AD160: 3041.7 | AE160: 3083.5 | AF160: 3125.3 | AG160: 3167.9 | AH160: 3210.5 | AI160: 3253.85 | AJ160: 3297.2 | AK160: 3341.4 | AL160: 3385.6 | AM160: 3476.8625 | AN160: 3662.2 | AO160: 3854.275 | AP160: 4053.075 | AQ160: 4258.15 | AR160: 4469.25 | AS160: 4685.9875
B161: H | C161: 737.394 | D161: 2771 | J161: 2773.1 | K161: 2834.2 | L161: 2880.7 | M161: 2891.925 | N161: 2925.6 | O161: 2947.55 | P161: 2969.5 | Q161: 3001.9 | R161: 3012.7 | S161: 3034 | T161: 3055.3 | U161: 3097.7 | V161: 3108.3 | W161: 3139.92 | X161: 3161 | Y161: 3182.04 | Z161: 3213.6 | AA161: 3224.14 | AB161: 3266.3 | AC161: 3319.35 | AD161: 3372.4 | AE161: 3426.05 | AF161: 3479.7 | AG161: 3534 | AH161: 3588.3 | AI161: 3643.35 | AJ161: 3698.4 | AK161: 3754.3 | AL161: 3810.2 | AM161: 3924.85 | AN161: 4156.6625 | AO161: 4395.2375 | AP161: 4640.3125 | AQ161: 4891.7125 | AR161: 5149.15 | AS161: 5412.0875
B162: S | C162: 2.0825 | D162: 6.6289 | J162: 6.6336 | K162: 6.7662 | L162: 6.8624 | M162: 6.88475 | N162: 6.9518 | O162: 6.99375 | P162: 7.0357 | Q162: 7.095325 | R162: 7.1152 | S162: 7.15305 | T162: 7.1909 | U162: 7.26322 | V162: 7.2813 | W162: 7.33308 | X162: 7.3676 | Y162: 7.40072 | Z162: 7.4504 | AA162: 7.46638 | AB162: 7.5303 | AC162: 7.6063 | AD162: 7.6823 | AE162: 7.754 | AF162: 7.8257 | AG162: 7.89375 | AH162: 7.9618 | AI162: 8.02675 | AJ162: 8.0917 | AK162: 8.1539 | AL162: 8.2161 | AM162: 8.34044375 | AN162: 8.5672125 | AO162: 8.7796875 | AP162: 8.980125 | AQ162: 9.1702625 | AR162: 9.3511 | AS162: 9.5238
A163: 900 | B163: V | C163: 1.121 | D163: 214.81 | E163: 175.36 | K163: 230.32 | L163: 242.31 | M163: 245.215 | N163: 253.93 | O163: 259.5475 | P163: 265.134375 | Q163: 273.4802344 | R163: 276.4 | S163: 281.895 | T163: 287.39 | U163: 298.246 | V163: 300.96 | W163: 309.024 | X163: 314.4 | Y163: 319.736 | Z163: 327.74 | AA163: 330.394 | AB163: 341.01 | AC163: 354.2 | AD163: 367.39 | AE163: 380.5 | AF163: 393.61 | AG163: 406.67 | AH163: 419.73 | AI163: 432.745 | AJ163: 445.76 | AK163: 458.74 | AL163: 471.72 | AM163: 503.97 | AN163: 556.29 | AO163: 608.51 | AP163: 660.66 | AQ163: 712.755 | AR163: 764.815 | AS163: 816.855
B164: U | C164: 741.635 | D164: 2578.8 | K164: 2625.5 | L164: 2661.4 | M164: 2670.075 | N164: 2696.1 | O164: 2713 | P164: 2729.9 | Q164: 2754.875 | R164: 2763.2 | S164: 2779.65 | T164: 2796.1 | U164: 2828.74 | V164: 2836.9 | W164: 2861.26 | X164: 2877.5 | Y164: 2893.78 | Z164: 2918.2 | AA164: 2926.36 | AB164: 2959 | AC164: 3000.2 | AD164: 3041.4 | AE164: 3083.25 | AF164: 3125.1 | AG164: 3167.7 | AH164: 3210.3 | AI164: 3253.7 | AJ164: 3297.1 | AK164: 3341.25 | AL164: 3385.4 | AM164: 3476.75 | AN164: 3662.1 | AO164: 3854.2 | AP164: 4053 | AQ164: 4258.1 | AR164: 4469.2 | AS164: 4685.95
B165: H | C165: 742.644 | D165: 2772.1 | K165: 2832.7 | L165: 2879.5 | M165: 2890.775 | N165: 2924.6 | O165: 2946.65 | P165: 2968.7 | Q165: 3001.175 | R165: 3012 | S165: 3033.35 | T165: 3054.7 | U165: 3097.1 | V165: 3107.7 | W165: 3139.38 | X165: 3160.5 | Y165: 3181.58 | Z165: 3213.2 | AA165: 3223.76 | AB165: 3266 | AC165: 3319.05 | AD165: 3372.1 | AE165: 3425.75 | AF165: 3479.4 | AG165: 3533.75 | AH165: 3588.1 | AI165: 3643.15 | AJ165: 3698.2 | AK165: 3754.1 | AL165: 3810 | AM165: 3924.7 | AN165: 4156.55 | AO165: 4395.15 | AP165: 4640.25 | AQ165: 4891.65 | AR165: 5149.1 | AS165: 5412.05
B166: S | C166: 2.0941 | D166: 6.6192 | K166: 6.7508 | L166: 6.8475 | M166: 6.86995 | N166: 6.9373 | O166: 6.9794 | P166: 7.0215 | Q166: 7.081275 | R166: 7.1012 | S166: 7.13915 | T166: 7.1771 | U166: 7.2495 | V166: 7.2676 | W166: 7.31944 | X166: 7.354 | Y166: 7.3872 | Z166: 7.437 | AA166: 7.45298 | AB166: 7.5169 | AC166: 7.5929 | AD166: 7.6689 | AE166: 7.74065 | AF166: 7.8124 | AG166: 7.8805 | AH166: 7.9486 | AI166: 8.01355 | AJ166: 8.0785 | AK166: 8.14075 | AL166: 8.203 | AM166: 8.327455 | AN166: 8.55425 | AO166: 8.76675 | AP166: 8.9672 | AQ166: 9.15735 | AR166: 9.3382 | AS166: 9.5109
A167: 925 | B167: V | C167: 1.123 | D167: 209.28 | E167: 176.53 | K167: 223.73 | L167: 235.46 | M167: 238.295 | N167: 246.8 | O167: 252.335 | P167: 257.87 | Q167: 266.015 | R167: 268.73 | S167: 274.085 | T167: 279.44 | U167: 290.016 | V167: 292.66 | W167: 300.52 | X167: 305.76 | Y167: 310.956 | Z167: 318.75 | AA167: 321.336 | AB167: 331.68 | AC167: 344.52 | AD167: 357.36 | AE167: 370.13 | AF167: 382.9 | AG167: 395.61 | AH167: 408.32 | AI167: 420.99 | AJ167: 433.66 | AK167: 446.295 | AL167: 458.93 | AM167: 489.935 | AN167: 540.8125 | AO167: 591.59 | AP167: 642.2975 | AQ167: 692.95125 | AR167: 743.56875 | AS167: 794.16625
B168: U | C168: 746.746 | D168: 2579.6 | K168: 2624.3 | L168: 2660.5 | M168: 2669.2 | N168: 2695.3 | O168: 2712.3 | P168: 2729.3 | Q168: 2754.275 | R168: 2762.6 | S168: 2779.1 | T168: 2795.6 | U168: 2828.32 | V168: 2836.5 | W168: 18397.8 | X168: 28772 | Y168: 18430.36 | Z168: 2917.9 | AA168: 2926.08 | AB168: 2958.8 | AC168: 3000 | AD168: 3041.2 | AE168: 3083.05 | AF168: 3124.9 | AG168: 3167.5 | AH168: 3210.1 | AI168: 3253.5 | AJ168: 3296.9 | AK168: 3341.1 | AL168: 3385.3 | AM168: 3476.6375 | AN168: 3662 | AO168: 3854.125 | AP168: 4052.925 | AQ168: 4258.05 | AR168: 4469.15 | AS168: 4685.9125
B169: H | C169: 747.784 | D169: 2773.2 | K169: 2831.3 | L169: 2878.3 | M169: 2889.625 | N169: 2923.6 | O169: 2945.7 | P169: 2967.8 | Q169: 3000.35 | R169: 3011.2 | S169: 3032.65 | T169: 3054.1 | U169: 3096.58 | V169: 3107.2 | W169: 3138.88 | X169: 3160 | Y169: 3181.08 | Z169: 3212.7 | AA169: 3223.28 | AB169: 3265.6 | AC169: 3318.7 | AD169: 3371.8 | AE169: 3425.45 | AF169: 3479.1 | AG169: 3533.45 | AH169: 3587.8 | AI169: 3642.9 | AJ169: 3698 | AK169: 3753.9 | AL169: 3809.8 | AM169: 3924.55 | AN169: 4156.4375 | AO169: 4395.0625 | AP169: 4640.1875 | AQ169: 4891.5875 | AR169: 5149.05 | AS169: 5412.0125
B170: S | C170: 2.1055 | D170: 6.6097 | K170: 6.7357 | L170: 6.8329 | M170: 6.85545 | N170: 6.9231 | O170: 6.96535 | P170: 7.0076 | Q170: 7.067525 | R170: 7.0875 | S170: 7.12555 | T170: 7.1636 | U170: 7.23616 | V170: 7.2543 | W170: 7.3062 | X170: 7.3408 | Y170: 7.374 | Z170: 7.4238 | AA170: 7.4398 | AB170: 7.5038 | AC170: 7.5799 | AD170: 7.656 | AE170: 7.72775 | AF170: 7.7995 | AG170: 7.8676 | AH170: 7.9357 | AI170: 8.0007 | AJ170: 8.0657 | AK170: 8.12795 | AL170: 8.1902 | AM170: 8.31446625 | AN170: 8.5412875 | AO170: 8.7538125 | AP170: 8.954275 | AQ170: 9.1444375 | AR170: 9.3253 | AS170: 9.498
A171: 950 | B171: V | C171: 1.124 | D171: 204.03 | E171: 177.67 | K171: 217.48 | L171: 228.96 | M171: 231.7325 | N171: 240.05 | O171: 245.455 | P171: 250.86 | Q171: 258.81 | R171: 261.46 | S171: 266.685 | T171: 271.91 | U171: 282.23 | V171: 284.81 | W171: 292.466 | X171: 297.57 | Y171: 302.638 | Z171: 310.24 | AA171: 312.76 | AB171: 322.84 | AC171: 335.355 | AD171: 347.87 | AE171: 360.305 | AF171: 372.74 | AG171: 385.125 | AH171: 397.51 | AI171: 409.85 | AJ171: 422.19 | AK171: 434.5 | AL171: 446.81 | AM171: 475.9 | AN171: 525.335 | AO171: 574.67 | AP171: 623.935 | AQ171: 673.1475 | AR171: 722.3225 | AS171: 771.4775
B172: U | C172: 751.754 | D172: 2580.4 | K172: 2623.2 | L172: 2659.5 | M172: 2668.275 | N172: 2694.6 | O172: 2711.65 | P172: 2728.7 | Q172: 2753.75 | R172: 2762.1 | S172: 2778.6 | T172: 2795.1 | U172: 2827.82 | V172: 2836 | W172: 2861.68 | X172: 2878.8 | Y172: 2894.32 | Z172: 2917.6 | AA172: 2925.78 | AB172: 2958.5 | AC172: 2999.75 | AD172: 3041 | AE172: 3082.85 | AF172: 3124.7 | AG172: 3167.3 | AH172: 3209.9 | AI172: 3253.3 | AJ172: 3296.7 | AK172: 3340.9 | AL172: 3385.1 | AM172: 3476.525 | AN172: 3661.9 | AO172: 3854.05 | AP172: 4052.85 | AQ172: 4258 | AR172: 4469.1 | AS172: 4685.875
B173: H | C173: 752.822 | D173: 2774.2 | K173: 2829.8 | L173: 2877 | M173: 2888.4 | N173: 2922.6 | O173: 2944.8 | P173: 2967 | Q173: 2999.625 | R173: 3010.5 | S173: 3031.95 | T173: 3053.4 | U173: 3095.96 | V173: 3106.6 | W173: 3138.34 | X173: 3159.5 | Y173: 3180.62 | Z173: 3212.3 | AA173: 3222.88 | AB173: 3265.2 | AC173: 3318.35 | AD173: 3371.5 | AE173: 3425.15 | AF173: 3478.8 | AG173: 3533.2 | AH173: 3587.6 | AI173: 3642.7 | AJ173: 3697.8 | AK173: 3753.7 | AL173: 3809.6 | AM173: 3924.4 | AN173: 4156.325 | AO173: 4394.975 | AP173: 4640.125 | AQ173: 4891.525 | AR173: 5149 | AS173: 5411.975
B174: S | C174: 2.1166 | D174: 6.6005 | K174: 6.7209 | L174: 6.8187 | M174: 6.84135 | N174: 6.9093 | O174: 6.9517 | P174: 6.9941 | Q174: 7.054175 | R174: 7.0742 | S174: 7.11235 | T174: 7.1505 | U174: 7.22314 | V174: 7.2413 | W174: 7.29326 | X174: 7.3279 | Y174: 7.36114 | Z174: 7.411 | AA174: 7.42702 | AB174: 7.4911 | AC174: 7.5672 | AD174: 7.6433 | AE174: 7.7151 | AF174: 7.7869 | AG174: 7.85505 | AH174: 7.9232 | AI174: 7.9882 | AJ174: 8.0532 | AK174: 8.11545 | AL174: 8.1777 | AM174: 8.3014775 | AN174: 8.528325 | AO174: 8.740875 | AP174: 8.94135 | AQ174: 9.131525 | AR174: 9.3124 | AS174: 9.4851
A175: 975 | B175: V | C175: 1.126 | D175: 199.04 | E175: 178.79 | K175: 211.55 | L175: 222.79 | M175: 225.5025 | N175: 233.64 | O175: 238.92 | P175: 244.2 | Q175: 251.97 | R175: 254.56 | S175: 259.66 | T175: 264.76 | U175: 274.832 | V175: 277.35 | W175: 284.826 | X175: 289.81 | Y175: 294.754 | Z175: 302.17 | AA175: 304.626 | AB175: 314.45 | AC175: 326.655 | AD175: 338.86 | AE175: 350.985 | AF175: 363.11 | AG175: 375.185 | AH175: 387.26 | AI175: 399.29 | AJ175: 411.32 | AK175: 423.315 | AL175: 435.31 | AM175: 461.865 | AN175: 509.8575 | AO175: 557.75 | AP175: 605.5725 | AQ175: 653.34375 | AR175: 701.07625 | AS175: 748.78875
B176: U | C176: 756.663 | D176: 2581.1 | K176: 2622 | L176: 2658.6 | M176: 2667.4 | N176: 2693.8 | O176: 2710.9 | P176: 2728 | Q176: 2753.125 | R176: 2761.5 | S176: 2778.05 | T176: 2794.6 | U176: 2827.4 | V176: 2835.6 | W176: 2860.14 | X176: 2876.5 | Y176: 2892.82 | Z176: 2917.3 | AA176: 2925.48 | AB176: 2958.2 | AC176: 2999.45 | AD176: 3040.7 | AE176: 3082.6 | AF176: 3124.5 | AG176: 3167.15 | AH176: 3209.8 | AI176: 3253.2 | AJ176: 3296.6 | AK176: 3340.8 | AL176: 3385 | AM176: 3476.4125 | AN176: 3661.8 | AO176: 3853.975 | AP176: 4052.775 | AQ176: 4257.95 | AR176: 4469.05 | AS176: 4685.8375
B177: H | C177: 757.761 | D177: 2775.2 | K177: 2828.3 | L177: 2875.8 | M177: 2887.25 | N177: 2921.6 | O177: 2943.85 | P177: 2966.1 | Q177: 2998.8 | R177: 3009.7 | S177: 3031.25 | T177: 3052.8 | U177: 3095.44 | V177: 3106.1 | W177: 3137.84 | X177: 3159 | Y177: 3180.16 | Z177: 3211.9 | AA177: 3222.48 | AB177: 3264.8 | AC177: 3317.95 | AD177: 3371.1 | AE177: 3424.85 | AF177: 3478.6 | AG177: 3532.95 | AH177: 3587.3 | AI177: 3642.45 | AJ177: 3697.6 | AK177: 3753.5 | AL177: 3809.4 | AM177: 3924.25 | AN177: 4156.2125 | AO177: 4394.8875 | AP177: 4640.0625 | AQ177: 4891.4625 | AR177: 5148.95 | AS177: 5411.9375
B178: S | C178: 2.1275 | D178: 6.5916 | K178: 6.7064 | L178: 6.8048 | M178: 6.82755 | N178: 6.8958 | O178: 6.93835 | P178: 6.9809 | Q178: 7.041125 | R178: 7.0612 | S178: 7.09945 | T178: 7.1377 | U178: 7.21042 | V178: 7.2286 | W178: 7.28068 | X178: 7.3154 | Y178: 7.34868 | Z178: 7.3986 | AA178: 7.41462 | AB178: 7.4787 | AC178: 7.55485 | AD178: 7.631 | AE178: 7.70285 | AF178: 7.7747 | AG178: 7.84285 | AH178: 7.911 | AI178: 7.976 | AJ178: 8.041 | AK178: 8.1033 | AL178: 8.1656 | AM178: 8.28848875 | AN178: 8.5153625 | AO178: 8.7279375 | AP178: 8.928425 | AQ178: 9.1186125 | AR178: 9.2995 | AS178: 9.4722
A179: 1000 | B179: V | C179: 1.127 | D179: 194.29 | E179: 179.88 | K179: 205.92 | L179: 216.93 | M179: 219.585 | N179: 227.55 | O179: 232.72 | P179: 237.89 | Q179: 245.48 | R179: 248.01 | S179: 252.995 | T179: 257.98 | U179: 267.812 | V179: 270.27 | W179: 277.566 | X179: 282.43 | Y179: 287.258 | Z179: 294.5 | AA179: 296.898 | AB179: 306.49 | AC179: 318.395 | AD179: 330.3 | AE179: 342.13 | AF179: 353.96 | AG179: 365.74 | AH179: 377.52 | AI179: 389.25 | AJ179: 400.98 | AK179: 412.68 | AL179: 424.38 | AM179: 447.83 | AN179: 494.38 | AO179: 540.83 | AP179: 587.21 | AQ179: 633.54 | AR179: 679.83 | AS179: 726.1
B180: U | C180: 761.478 | D180: 2581.9 | K180: 2620.9 | L180: 2657.7 | M180: 2666.525 | N180: 2693 | O180: 2710.2 | P180: 2727.4 | Q180: 2752.6 | R180: 2761 | S180: 2777.6 | T180: 2794.2 | U180: 2827 | V180: 2835.2 | W180: 2859.74 | X180: 2876.1 | Y180: 2892.46 | Z180: 2917 | AA180: 2925.18 | AB180: 2957.9 | AC180: 2999.2 | AD180: 3040.5 | AE180: 3082.4 | AF180: 3124.3 | AG180: 3166.95 | AH180: 3209.6 | AI180: 3253 | AJ180: 3296.4 | AK180: 3340.65 | AL180: 3384.9 | AM180: 3476.3 | AN180: 3661.7 | AO180: 3853.9 | AP180: 4052.7 | AQ180: 4257.9 | AR180: 4469 | AS180: 4685.8
B181: H | C181: 762.605 | D181: 2776.2 | K181: 2826.8 | L181: 2874.6 | M181: 2886.1 | N181: 2920.6 | O181: 2942.9 | P181: 2965.2 | Q181: 2998.05 | R181: 3009 | S181: 3030.55 | T181: 3052.1 | U181: 3094.82 | V181: 3105.5 | W181: 3137.3 | X181: 3158.5 | Y181: 3179.7 | Z181: 3211.5 | AA181: 3222.08 | AB181: 3264.4 | AC181: 3317.6 | AD181: 3370.8 | AE181: 3424.55 | AF181: 3478.3 | AG181: 3532.7 | AH181: 3587.1 | AI181: 3642.25 | AJ181: 3697.4 | AK181: 3753.35 | AL181: 3809.3 | AM181: 3924.1 | AN181: 4156.1 | AO181: 4394.8 | AP181: 4640 | AQ181: 4891.4 | AR181: 5148.9 | AS181: 5411.9
B182: S | C182: 2.1382 | D182: 6.5828 | K182: 6.6922 | L182: 6.7911 | M182: 6.81395 | N182: 6.8825 | O182: 6.92525 | P182: 6.968 | Q182: 7.028375 | R182: 7.0485 | S182: 7.0868 | T182: 7.1251 | U182: 7.19806 | V182: 7.2163 | W182: 7.26838 | X182: 7.3031 | Y182: 7.33642 | Z182: 7.3864 | AA182: 7.40242 | AB182: 7.4665 | AC182: 7.54275 | AD182: 7.619 | AE182: 7.69085 | AF182: 7.7627 | AG182: 7.8309 | AH182: 7.8991 | AI182: 7.96415 | AJ182: 8.0292 | AK182: 8.09145 | AL182: 8.1537 | AM182: 8.2755 | AN182: 8.5024 | AO182: 8.715 | AP182: 8.9155 | AQ182: 9.1057 | AR182: 9.2866 | AS182: 9.4593
A183: 1050 | B183: V | C183: 1.13 | D183: 185.45 | E183: 182.02 | K183: 195.45 | L183: 206.04 | M183: 208.59 | N183: 216.24 | O183: 221.195 | P183: 226.15 | Q183: 233.4175 | R183: 235.84 | S183: 240.605 | T183: 245.37 | U183: 254.77 | V183: 257.12 | W183: 264.092 | X183: 268.74 | Y183: 273.344 | Z183: 280.25 | AA183: 282.538 | AB183: 291.69 | AC183: 303.05 | AD183: 314.41 | AE183: 325.69 | AF183: 336.97 | AG183: 348.2 | AH183: 359.43 | AI183: 370.61 | AJ183: 381.79 | AK183: 392.945 | AL183: 404.1 | AM183: 429.115 | AN183: 473.745 | AO183: 518.27 | AP183: 562.7275 | AQ183: 607.135 | AR183: 651.5025 | AS183: 695.8475
B184: U | C184: 770.843 | D184: 2583.3 | K184: 2618.5 | L184: 2655.8 | M184: 2664.725 | N184: 2691.5 | O184: 2708.8 | P184: 2726.1 | Q184: 2751.45 | R184: 2759.9 | S184: 2776.55 | T184: 2793.2 | U184: 2826.16 | V184: 2834.4 | W184: 2859 | X184: 2875.4 | Y184: 2891.76 | Z184: 2916.3 | AA184: 2924.52 | AB184: 2957.4 | AC184: 2998.7 | AD184: 3040 | AE184: 3081.95 | AF184: 3123.9 | AG184: 3166.55 | AH184: 3209.2 | AI184: 3252.65 | AJ184: 3296.1 | AK184: 3340.35 | AL184: 3384.6 | AM184: 3476.05 | AN184: 3661.525 | AO184: 3853.75 | AP184: 4052.575 | AQ184: 4257.8 | AR184: 4468.925 | AS184: 4685.725
B185: H | C185: 772.029 | D185: 2778 | K185: 2823.8 | L185: 2872.1 | M185: 2883.7 | N185: 2918.5 | O185: 2941 | P185: 2963.5 | Q185: 2996.5 | R185: 3007.5 | S185: 3029.15 | T185: 3050.8 | U185: 3093.68 | V185: 3104.4 | W185: 3136.32 | X185: 3157.6 | Y185: 3178.8 | Z185: 3210.6 | AA185: 3221.2 | AB185: 3263.6 | AC185: 3316.9 | AD185: 3370.2 | AE185: 3423.95 | AF185: 3477.7 | AG185: 3532.15 | AH185: 3586.6 | AI185: 3641.8 | AJ185: 3697 | AK185: 3752.95 | AL185: 3808.9 | AM185: 3923.8 | AN185: 4155.875 | AO185: 4394.6 | AP185: 4639.85 | AQ185: 4891.3 | AR185: 5148.8 | AS185: 5411.825
B186: S | C186: 2.1588 | D186: 6.5659 | K186: 6.6645 | L186: 6.7647 | M186: 6.78775 | N186: 6.8569 | O186: 6.89995 | P186: 6.943 | Q186: 7.00375 | R186: 7.024 | S186: 7.06245 | T186: 7.1009 | U186: 7.1741 | V186: 7.1924 | W186: 7.24466 | X186: 7.2795 | Y186: 7.31286 | Z186: 7.3629 | AA186: 7.37896 | AB186: 7.4432 | AC186: 7.5195 | AD186: 7.5958 | AE186: 7.66775 | AF186: 7.7397 | AG186: 7.80795 | AH186: 7.8762 | AI186: 7.94125 | AJ186: 8.0063 | AK186: 8.0686 | AL186: 8.1309 | AM186: 8.254225 | AN186: 8.4812 | AO186: 8.693825 | AP186: 8.894375 | AQ186: 9.084575 | AR186: 9.2655 | AS186: 9.438225
A187: 1100 | B187: V | C187: 1.133 | D187: 177.38 | E187: 184.07 | K187: 185.92 | L187: 196.14 | M187: 198.595 | N187: 205.96 | O187: 210.715 | P187: 215.47 | Q187: 222.445 | R187: 224.77 | S187: 229.34 | T187: 233.91 | U187: 242.91 | V187: 245.16 | W187: 251.832 | X187: 256.28 | Y187: 260.688 | Z187: 267.3 | AA187: 269.488 | AB187: 278.24 | AC187: 289.1 | AD187: 299.96 | AE187: 310.745 | AF187: 321.53 | AG187: 332.255 | AH187: 342.98 | AI187: 353.665 | AJ187: 364.35 | AK187: 375 | AL187: 385.65 | AM187: 410.4 | AN187: 453.11 | AO187: 495.71 | AP187: 538.245 | AQ187: 580.73 | AR187: 623.175 | AS187: 665.595
B188: U | C188: 779.878 | D188: 2584.5 | K188: 2616.2 | L188: 2653.9 | M188: 2662.9 | N188: 2689.9 | O188: 2707.3 | P188: 2724.7 | Q188: 2750.275 | R188: 2758.8 | S188: 2775.5 | T188: 2792.2 | U188: 2825.32 | V188: 2833.6 | W188: 2858.26 | X188: 2874.7 | Y188: 2891.1 | Z188: 2915.7 | AA188: 2923.92 | AB188: 2956.8 | AC188: 2998.2 | AD188: 3039.6 | AE188: 3081.55 | AF188: 3123.5 | AG188: 3166.2 | AH188: 3208.9 | AI188: 3252.35 | AJ188: 3295.8 | AK188: 3340.05 | AL188: 3384.3 | AM188: 3475.8 | AN188: 3661.35 | AO188: 3853.6 | AP188: 4052.45 | AQ188: 4257.7 | AR188: 4468.85 | AS188: 4685.65
B189: S | C189: 781.124 | D189: 2779.7 | K189: 2820.7 | L189: 2869.6 | M189: 2881.3 | N189: 2916.4 | O189: 2939.1 | P189: 2961.8 | Q189: 2994.95 | R189: 3006 | S189: 3027.8 | T189: 3049.6 | U189: 3092.56 | V189: 3103.3 | W189: 3135.28 | X189: 3156.6 | Y189: 3177.84 | Z189: 3209.7 | AA189: 3220.34 | AB189: 3262.9 | AC189: 3316.2 | AD189: 3369.5 | AE189: 3423.35 | AF189: 3477.2 | AG189: 3531.7 | AH189: 3586.2 | AI189: 3641.4 | AJ189: 3696.6 | AK189: 3752.55 | AL189: 3808.5 | AM189: 3923.5 | AN189: 4155.65 | AO189: 4394.4 | AP189: 4639.7 | AQ189: 4891.2 | AR189: 5148.7 | AS189: 5411.75
B190: S | C190: 2.1786 | D190: 6.5497 | K190: 6.6379 | L190: 6.7392 | M190: 6.762475 | N190: 6.8323 | O190: 6.87565 | P190: 6.919 | Q190: 6.980125 | R190: 7.0005 | S190: 7.03915 | T190: 7.0778 | U190: 7.15116 | V190: 7.1695 | W190: 7.22194 | X190: 7.2569 | Y190: 7.29034 | Z190: 7.3405 | AA190: 7.35658 | AB190: 7.4209 | AC190: 7.4973 | AD190: 7.5737 | AE190: 7.6457 | AF190: 7.7177 | AG190: 7.786 | AH190: 7.8543 | AI190: 7.9194 | AJ190: 7.9845 | AK190: 8.04685 | AL190: 8.1092 | AM190: 8.23295 | AN190: 8.46 | AO190: 8.67265 | AP190: 8.87325 | AQ190: 9.06345 | AR190: 9.2444 | AS190: 9.41715
A191: 1150 | B191: V | C191: 1.136 | D191: 169.99 | E191: 186.05 | K191: 177.22 | L191: 187.1 | M191: 189.465 | N191: 196.56 | O191: 201.145 | P191: 205.73 | Q191: 212.435 | R191: 214.67 | S191: 219.055 | T191: 223.44 | U191: 232.088 | V191: 234.25 | W191: 240.646 | X191: 244.91 | Y191: 249.134 | Z191: 255.47 | AA191: 257.568 | AB191: 265.96 | AC191: 276.365 | AD191: 286.77 | AE191: 297.095 | AF191: 307.42 | AG191: 317.695 | AH191: 327.97 | AI191: 338.195 | AJ191: 348.42 | AK191: 358.615 | AL191: 368.81 | AM191: 391.685 | AN191: 432.475 | AO191: 473.15 | AP191: 513.7625 | AQ191: 554.325 | AR191: 594.8475 | AS191: 635.3425
B192: U | C192: 788.611 | D192: 2585.8 | K192: 2613.8 | L192: 2651.9 | M192: 2661 | N192: 2688.3 | O192: 2705.85 | P192: 2723.4 | Q192: 2749.125 | R192: 2757.7 | S192: 2774.5 | T192: 2791.3 | U192: 2824.5 | V192: 2832.8 | W192: 2857.52 | X192: 2874 | Y192: 2890.44 | Z192: 2915.1 | AA192: 2923.32 | AB192: 2956.2 | AC192: 2997.65 | AD192: 3039.1 | AE192: 3081.1 | AF192: 3123.1 | AG192: 3164.8 | AH192: 3206.5 | AI192: 3251 | AJ192: 3295.5 | AK192: 3339.8 | AL192: 3384.1 | AM192: 3475.55 | AN192: 3661.175 | AO192: 3853.45 | AP192: 4052.325 | AQ192: 4257.6 | AR192: 4468.775 | AS192: 4685.575
B193: H | C193: 789.917 | D193: 2781.3 | K193: 2817.6 | L193: 2867.1 | M193: 2878.925 | N193: 2914.4 | O193: 2937.2 | P193: 2960 | Q193: 2993.375 | R193: 3004.5 | S193: 3026.35 | T193: 3048.2 | U193: 3091.4 | V193: 3102.2 | W193: 3134.24 | X193: 3155.6 | Y193: 3176.92 | Z193: 3208.9 | AA193: 3219.54 | AB193: 3262.1 | AC193: 3315.5 | AD193: 3368.9 | AE193: 3422.75 | AF193: 3476.6 | AG193: 3531.15 | AH193: 3585.7 | AI193: 3640.95 | AJ193: 3696.2 | AK193: 3752.2 | AL193: 3808.2 | AM193: 3923.2 | AN193: 4155.425 | AO193: 4394.2 | AP193: 4639.55 | AQ193: 4891.1 | AR193: 5148.6 | AS193: 5411.675
B194: S | C194: 2.1977 | D194: 6.5342 | K194: 6.6122 | L194: 6.7147 | M194: 6.738175 | N194: 6.8086 | O194: 6.85225 | P194: 6.8959 | Q194: 6.9574 | R194: 6.9779 | S194: 7.01675 | T194: 7.0556 | U194: 7.1292 | V194: 7.1476 | W194: 7.20016 | X194: 7.2352 | Y194: 7.26872 | Z194: 7.319 | AA194: 7.3351 | AB194: 7.3995 | AC194: 7.476 | AD194: 7.5525 | AE194: 7.62455 | AF194: 7.6966 | AG194: 7.76495 | AH194: 7.8333 | AI194: 7.89845 | AJ194: 7.9636 | AK194: 8.02595 | AL194: 8.0883 | AM194: 8.211675 | AN194: 8.4388 | AO194: 8.651475 | AP194: 8.852125 | AQ194: 9.042325 | AR194: 9.2233 | AS194: 9.396075
A195: 1200 | B195: V | C195: 1.139 | D195: 163.2 | E195: 187.96 | K195: 169.23 | L195: 178.8 | M195: 181.0875 | N195: 187.95 | O195: 192.37 | P195: 196.79 | Q195: 203.2475 | R195: 205.4 | S195: 209.625 | T195: 213.85 | U195: 222.162 | V195: 224.24 | W195: 230.39 | X195: 234.49 | Y195: 238.546 | Z195: 244.63 | AA195: 246.644 | AB195: 254.7 | AC195: 264.69 | AD195: 274.68 | AE195: 284.59 | AF195: 294.5 | AG195: 304.35 | AH195: 314.2 | AI195: 324.01 | AJ195: 333.82 | AK195: 343.6 | AL195: 353.38 | AM195: 372.97 | AN195: 411.84 | AO195: 450.59 | AP195: 489.28 | AQ195: 527.92 | AR195: 566.52 | AS195: 605.09
B196: U | C196: 797.064 | D196: 2586.9 | K196: 2611.3 | L196: 2650 | M196: 2659.175 | N196: 2686.7 | O196: 2704.4 | P196: 2722.1 | Q196: 2747.9 | R196: 2756.5 | S196: 2773.4 | T196: 2790.3 | U196: 2823.66 | V196: 2832 | W196: 2856.78 | X196: 2873.3 | Y196: 2889.74 | Z196: 2914.4 | AA196: 2922.66 | AB196: 2955.7 | AC196: 2997.15 | AD196: 3038.6 | AE196: 3080.65 | AF196: 3122.7 | AG196: 3165.45 | AH196: 3208.2 | AI196: 18080.1 | AJ196: 32952 | AK196: 18167.9 | AL196: 3383.8 | AM196: 3475.3 | AN196: 3661 | AO196: 3853.3 | AP196: 4052.2 | AQ196: 4257.5 | AR196: 4468.7 | AS196: 4685.5
B197: H | C197: 798.43 | D197: 27821 | K197: 2814.4 | L197: 2864.5 | M197: 2876.425 | N197: 2912.2 | O197: 2935.2 | P197: 2958.2 | Q197: 2991.8 | R197: 3003 | S197: 3024.95 | T197: 3046.9 | U197: 3090.18 | V197: 3101 | W197: 3133.16 | X197: 3154.6 | Y197: 3175.96 | Z197: 3208 | AA197: 3218.66 | AB197: 3261.3 | AC197: 3314.75 | AD197: 3368.2 | AE197: 3422.15 | AF197: 3476.1 | AG197: 3530.65 | AH197: 3585.2 | AI197: 3640.5 | AJ197: 3695.8 | AK197: 3751.8 | AL197: 3807.8 | AM197: 3922.9 | AN197: 4155.2 | AO197: 4394 | AP197: 4639.4 | AQ197: 4891 | AR197: 5148.5 | AS197: 5411.6
B198: S | C198: 2.2161 | D198: 6.5194 | K198: 6.5872 | L198: 6.6909 | M198: 6.714625 | N198: 6.7858 | O198: 6.8298 | P198: 6.8738 | Q198: 6.9356 | R198: 6.9562 | S198: 6.9952 | T198: 7.0342 | U198: 7.10812 | V198: 7.1266 | W198: 7.17928 | X198: 7.2144 | Y198: 7.24796 | Z198: 7.2983 | AA198: 7.31444 | AB198: 7.379 | AC198: 7.45565 | AD198: 7.5323 | AE198: 7.6044 | AF198: 7.6765 | AG198: 7.74485 | AH198: 7.8132 | AI198: 7.8784 | AJ198: 7.9436 | AK198: 8.006 | AL198: 8.0684 | AM198: 8.1904 | AN198: 8.4176 | AO198: 8.6303 | AP198: 8.831 | AQ198: 9.0212 | AR198: 9.2022 | AS198: 9.375
A199: 1250 | B199: V | C199: 1.141 | D199: 156.93 | E199: 189.81 | K199: 161.88 | L199: 171.17 | M199: 173.3825 | N199: 180.02 | O199: 184.29 | P199: 188.56 | Q199: 194.8 | R199: 196.88 | S199: 200.95 | T199: 205.02 | U199: 213.028 | V199: 215.03 | W199: 220.952 | X199: 224.9 | Y199: 228.804 | Z199: 234.66 | AA199: 236.598 | AB199: 244.35 | AC199: 253.95 | AD199: 263.55 | AE199: 273.075 | AF199: 282.6 | AG199: 292.07 | AH199: 301.54 | AI199: 310.965 | AJ199: 320.39 | AK199: 329.785 | AL199: 339.18 | AM199: 362.815 | AN199: 400.637 | AO199: 438.346 | AP199: 475.9895 | AQ199: 513.583 | AR199: 551.1405 | AS199: 588.6695
B200: U | C200: 805.259 | D200: 2588 | K200: 2608.9 | L200: 2648 | M200: 2657.275 | N200: 2685.1 | O200: 2702.95 | P200: 2720.8 | Q200: 2746.75 | R200: 2755.4 | S200: 2772.35 | T200: 2789.3 | U200: 2822.74 | V200: 2831.1 | W200: 2855.94 | X200: 2872.5 | Y200: 2889.02 | Z200: 2913.8 | AA200: 2922.06 | AB200: 2955.1 | AC200: 2996.6 | AD200: 3038.1 | AE200: 3080.2 | AF200: 3122.3 | AG200: 3165.05 | AH200: 3207.8 | AI200: 3251.35 | AJ200: 3294.9 | AK200: 3339.2 | AL200: 3383.5 | AM200: 3475.09 | AN200: 3660.825 | AO200: 3853.15 | AP200: 4052.075 | AQ200: 4257.36 | AR200: 4468.585 | AS200: 4685.385
... 420 more rows

Sheet CALCULOS (hidden)
B1: SOBRESATURACION | F1: SATURACION | O1: ENTROPIA | V1: ENTALPIA | AA1: INTERNA | AG1: VOLUMEN | AM1: SOBRESATURACION/SATURACION | AR1: LIQUIDO COMPRIMIDO
F2: PRESION | J2: TEMPERATURA | O2: P = | P2: 20 | Q2: kPa | V2: P = | W2: 2950 | X2: kPa | AA2: P = | AB2: 1000 | AC2: kPa | AG2: P = | AH2: 3.17 | AI2: kPa
O3: Scte = | P3: 7.2345 | Q3: kJ/kg*ºK | V3: H = | W3: 3150.6 | X3: kJ/kg | AA3: U = | AB3: 2950 | AC3: kJ/kg | AG3: V = | AH3: 2 | AI3: cm3/g
B4: P = | C4: 816 | D4: kPa | F4: P = | G4: 2950 | H4: kPa | J4: T = | L4: ºC | O4: T = | P4: 99.63 | Q4: ºC | S4: P = | U4: kPa | V4: T = | X4: ºC | AA4: T = | AB4: 125 | AC4: ºC | AG4: T = | AH4: 25 | AI4: ºC | AM4: P = | AN4: 20 | AO4: kPa | AR4: P = | AS4: 5000 | AT4: kPa
B5: T = | C5: 512 | D5: ºC | F5: T = | G5: =+CALCULOS!J13+(CALCULOS!J17-CALCULOS!J13)*(CALCULOS!$G$13-$G$4)/(CALCULOS!$G$13-CALCULOS!$G$17) -> 232.905 | H5: ºC | J5: P = | K5: =+CALCULOS!G13+(CALCULOS!G17-CALCULOS!G13)*(CALCULOS!$J$13-$K$4)/(CALCULOS!$J$13-CALCULOS!$J$17) -> -9504.812834 | L5: kPa | O5: SLsat = | P5: 1.3027 | Q5: kJ/kg*ºK | S5: T = | U5: ºC | V5: SLsat = | X5: kJ/kg*ºK | AA5: SLsat = | AC5: kJ/kg*ºK | AG5: SLsat = | AI5: kJ/kg*ºK | AM5: T = | AN5: 61 | AO5: ºC | AR5: T = | AS5: 80 | AT5: ºC
B6: V = | C6: =+E13+(E17-E13)*(C4-B13)/(B17-B13) -> 441.995632 | D6: cm3/g | F6: VL = | G6: =+CALCULOS!H13+(CALCULOS!H17-CALCULOS!H13)*(CALCULOS!$G$13-$G$4)/(CALCULOS!$G$13-CALCULOS!$G$17) -> 1214.5 | H6: =+CALCULOS!I13+(CALCULOS!I17-CALCULOS!I13)*(CALCULOS!$G$13-$G$4)/(CALCULOS!$G$13-CALCULOS!$G$17) -> 67.777 | I6: cm3/g | J6: Vv = | K6: =+CALCULOS!H13+(CALCULOS!H17-CALCULOS!H13)*(CALCULOS!$J$13-$K$4)/(CALCULOS!$J$13-CALCULOS!$J$17) -> 840.855615 | L6: =+CALCULOS!I13+(CALCULOS!I17-CALCULOS!I13)*(CALCULOS!$J$13-$K$4)/(CALCULOS!$J$13-CALCULOS!$J$17) -> 354.4867914 | M6: cm3/g | O6: SVsat = | P6: 7.3598 | Q6: kJ/kg*ºK | S6: x = | V6: SVsat = | X6: kJ/kg*ºK | AA6: SVsat = | AC6: kJ/kg*ºK | AG6: SVsat = | AI6: kJ/kg*ºK | AM6: V = | AN6: 1.043 | AO6: cm3/g | AR6: V = | AS6: =+AU13+(AU17-AU13)*($AR$13-$AS$4)/($AR$13-$AR$17) -> 0.0010267 | AT6: cm3/g
B7: U = | C7: =+E14+(E18-E14)*(C4-B13)/(B17-B13) -> 3147.898 | D7: kJ/kg | F7: UL = | G7: =+CALCULOS!H14+(CALCULOS!H18-CALCULOS!H14)*(CALCULOS!$G$13-$G$4)/(CALCULOS!$G$13-CALCULOS!$G$17) -> 1000.354 | H7: =+CALCULOS!I14+(CALCULOS!I18-CALCULOS!I14)*(CALCULOS!$G$13-$G$4)/(CALCULOS!$G$13-CALCULOS!$G$17) -> 2602.35 | I7: kJ/kg | J7: Uv = | K7: =+CALCULOS!H14+(CALCULOS!H18-CALCULOS!H14)*(CALCULOS!$J$13-$K$4)/(CALCULOS!$J$13-CALCULOS!$J$17) -> -82.21833155 | L7: =+CALCULOS!I14+(CALCULOS!I18-CALCULOS!I14)*(CALCULOS!$J$13-$K$4)/(CALCULOS!$J$13-CALCULOS!$J$17) -> 2589.895187 | M7: kJ/kg | O7: xs = | P7: =+IF((P3-P5)/(P6-P5)>1,"Sobresaturado",(P3-P5)/(P6-P5)) -> 0.9793135329 | S7: V = | T7: =+DATA!C6 -> 0 | U7: cm3/g | V7: xs = | W7: =+IF((W3-W5)/(W6-W5)>1,"Sobresaturado",(W3-W5)/(W6-W5)) ->  | AA7: xs = | AB7: =+IF((AB3-AB5)/(AB6-AB5)>1,"Sobresaturado",(AB3-AB5)/(AB6-AB5)) ->  | AG7: xs = | AH7: =+IF((AH3-AH5)/(AH6-AH5)>1,"Sobresaturado",(AH3-AH5)/(AH6-AH5)) ->  | AM7: U = | AN7: 417.406 | AO7: kJ/kg | AR7: U = | AS7: =+AU14+(AU18-AU14)*($AR$13-$AS$4)/($AR$13-$AR$17) -> 333.82 | AT7: kJ/kg
B8: H = | C8: =+E15+(E19-E15)*(C4-B13)/(B17-B13) -> 3508.53464 | D8: kJ/kg | F8: HL = | G8: =+CALCULOS!H15+(CALCULOS!H19-CALCULOS!H15)*(CALCULOS!$G$13-$G$4)/(CALCULOS!$G$13-CALCULOS!$G$17) -> 1003.962 | H8: =+CALCULOS!I15+(CALCULOS!I19-CALCULOS!I15)*(CALCULOS!$G$13-$G$4)/(CALCULOS!$G$13-CALCULOS!$G$17) -> 2802.25 | I8: kJ/kg | J8: Hv = | K8: =+CALCULOS!H15+(CALCULOS!H19-CALCULOS!H15)*(CALCULOS!$J$13-$K$4)/(CALCULOS!$J$13-CALCULOS!$J$17) -> -101.5271872 | L8: =+CALCULOS!I15+(CALCULOS!I19-CALCULOS!I15)*(CALCULOS!$J$13-$K$4)/(CALCULOS!$J$13-CALCULOS!$J$17) -> 2789.795187 | M8: kJ/kg | O8: V = | Q8: cm3/g | S8: U = | U8: kJ/kg | V8: V = | X8: cm3/g | AA8: V = | AC8: cm3/g | AG8: U = | AI8: kJ/kg | AM8: H = | AN8: 3284.113642 | AO8: kJ/kg | AR8: H = | AS8: =+AU15+(AU19-AU15)*($AR$13-$AS$4)/($AR$13-$AR$17) -> 338.96 | AT8: kJ/kg
B9: S = | C9: =+E16+(E20-E16)*(C4-B13)/(B17-B13) -> 7.89389664 | D9: kJ/kg | F9: SL = | G9: =+CALCULOS!H16+(CALCULOS!H20-CALCULOS!H16)*(CALCULOS!$G$13-$G$4)/(CALCULOS!$G$13-CALCULOS!$G$17) -> 2.6369 | H9: =+CALCULOS!I16+(CALCULOS!I20-CALCULOS!I16)*(CALCULOS!$G$13-$G$4)/(CALCULOS!$G$13-CALCULOS!$G$17) -> 6.1903 | I9: kJ/kg | J9: Sv = | K9: =+CALCULOS!H16+(CALCULOS!H20-CALCULOS!H16)*(CALCULOS!$J$13-$K$4)/(CALCULOS!$J$13-CALCULOS!$J$17) -> 0.4946721925 | L9: =+CALCULOS!I16+(CALCULOS!I20-CALCULOS!I16)*(CALCULOS!$J$13-$K$4)/(CALCULOS!$J$13-CALCULOS!$J$17) -> 7.834335294 | M9: kJ/kg | O9: U = | Q9: kJ/kg | S9: H = | U9: kJ/kg | V9: U = | X9: kJ/kg | AA9: H = | AC9: kJ/kg | AG9: H = | AI9: kJ/kg | AM9: S = | AN9: 1.3027 | AO9: kJ/kg | AR9: S = | AS9: =+AU16+(AU20-AU16)*($AR$13-$AS$4)/($AR$13-$AR$17) -> 1.0723 | AT9: kJ/kg
O10: HLsat = | P10: 417.511 | Q10: kJ/kg | S10: S = | U10: kJ/kg | V10: HLsat = | X10: kJ/kg | AA10: HLsat = | AC10: kJ/kg | AG10: HLsat = | AI10: kJ/kg
G11: G - 7 | K11: K - 11 | O11: HVsat = | P11: 2675.4 | Q11: kJ/kg | V11: HVsat = | X11: kJ/kg | AA11: HVsat = | AC11: kJ/kg | AG11: HVsat = | AI11: kJ/kg | AN11: AN 40 | AS11: AS 45
C12: 500 | D12: 525 | O12: Hs = | P12: =+IF((P3-P5)/(P6-P5)>1,"Sobresaturado",P10+P7*(P11-P10)) -> 2628.692253 | Q12: kJ/kg | T12: T -20 | V12: Scte = | W12: =+IF((W3-W5)/(W6-W5)>1,"Sobresaturado",W10+W7*(W11-W10)) ->  | X12: kJ/kg*ºK | AA12: Scte = | AB12: =+IF((AB3-AB5)/(AB6-AB5)>1,"Sobresaturado",AB10+AB7*(AB11-AB10)) ->  | AC12: kJ/kg*ºK | AG12: Scte = | AH12: =+IF((AH3-AH5)/(AH6-AH5)>1,"Sobresaturado",AH10+AH7*(AH11-AH10)) ->  | AI12: kJ/kg*ºK | AN12: 60.09 | AP12: =+AN12+(AO12-AN12)*(DATA!C4-CALCULOS!AN12) -> 3670.8981 | AS12: 80 | AT12: 100
B13: 800 | C13: 443.17 | D13: 457.83 | E13: =+C13+(D13-C13)*(C5-D12)/(C12-D12) -> 450.7932 | G13: 2900 | H13: 1213 | I13: 68.928 | J13: 231.97 | O13: H = | P13: =+IF((P3-P5)/(P6-P5)>1,#REF!,P10+P7*(P11-P10)) -> 2628.692253 | Q13: kJ/kg | V13: Hs = | W13: =+IF((W3-W5)/(W6-W5)>1,AB19,W10+W7*(W11-W10)) ->  | X13: kJ/kg | AA13: Hs = | AB13: =+IF((AB3-AB5)/(AB6-AB5)>1,AG19,AB10+AB7*(AB11-AB10)) ->  | AC13: kJ/kg | AG13: Hs = | AH13: =+IF((AH3-AH5)/(AH6-AH5)>1,AM19,AH10+AH7*(AH11-AH10)) ->  | AI13: kJ/kg | AM13: 20 | AN13: 7649.8 | AP13: =+AN13+(AO13-AN13)*(DATA!C4-CALCULOS!AN12) -> 467326.282 | AR13: 5000 | AS13: 0.0010267 | AT13: 0.001041 | AU13: =+AS13+(AT13-AS13)*($AS$12-$AS$5)/($AS$12-$AT$12) -> 0.0010267
C14: 3125.9 | D14: 3168.45 | E14: =+C14+(D14-C14)*(C5-D12)/(C12-D12) -> 3148.026 | H14: 996.008 | I14: 2602.3 | O14: x = | P14: =+IF(P12="Sobresaturado","Sobresaturado",(P12-P10)/(P11-P10)) -> 0.9793135329 | V14: x = | W14: =+IF(W12="Sobresaturado","Sobresaturado",(W12-W10)/(W11-W10)) ->  | AA14: x = | AB14: =+IF(AB12="Sobresaturado","Sobresaturado",(AB12-AB10)/(AB11-AB10)) ->  | AG14: x = | AH14: =+IF(AH12="Sobresaturado","Sobresaturado",(AH12-AH10)/(AH11-AH10)) ->  | AN14: 2456.9 | AP14: =+AN14+(AO14-AN14)*(DATA!C4-CALCULOS!AN12) -> 150092.021 | AS14: 333.82 | AT14: 417.65 | AU14: 333.82
C15: 3480.5 | D15: 3534.75 | E15: =+C15+(D15-C15)*(C5-D12)/(C12-D12) -> 3508.71 | H15: 999.524 | I15: 2802.2 | O15: S = | P15: =+IF(P12="Sobresaturado",#REF!,P5+P14*(P6-P5)) -> 7.2345 | Q15: kJ/kg*ºK | V15: S = | W15: =+IF(W12="Sobresaturado",AB20,W5+W14*(W6-W5)) ->  | X15: kJ/kg*ºK | AA15: S = | AB15: =+IF(AB12="Sobresaturado",AG20,AB5+AB14*(AB6-AB5)) ->  | AC15: kJ/kg*ºK | AG15: S = | AH15: =+IF(AH12="Sobresaturado",AM20,AH5+AH14*(AH6-AH5)) ->  | AI15: kJ/kg*ºK | AN15: 2609.9 | AP15: =+AN15+(AO15-AN15)*(DATA!C4-CALCULOS!AN12) -> 159438.791 | AS15: 338.96 | AT15: 422.85 | AU15: 338.96
C16: 7.8678 | D16: 7.9358 | E16: =+C16+(D16-C16)*(C5-D12)/(C12-D12) -> 7.90316 | H16: 2.6283 | I16: 6.1969 | AN16: 7.9094 | AP16: =+AN16+(AO16-AN16)*(DATA!C4-CALCULOS!AN12) -> 483.185246 | AS16: 1.0723 | AT16: 1.3034 | AU16: 1.0723
B17: 825 | C17: 429.65 | D17: 443.875 | E17: =+C17+(D17-C17)*(C5-D12)/(C12-D12) -> 437.047 | G17: 3000 | H17: 1216 | I17: 66.626 | J17: 233.84 | P17: P-16 | W17: W-23 | AB17: AB-28 | AH17: AH-34 | AM17: 30 | AN17: 5229.3 | AP17: =+AN17+(AO17-AN17)*(DATA!$C$4-CALCULOS!AN12) -> 319457.937 | AR17: 10000 | AS17: 0.0010244 | AT17: 0.0010385 | AU17: 0.0010244
C18: 3125.7 | D18: 3168.25 | E18: =+C18+(D18-C18)*(C5-D12)/(C12-D12) -> 3147.826 | H18: 1004.7 | I18: 2602.4 | AN18: 2468.8 | AP18: =+AN18+(AO18-AN18)*(DATA!$C$4-CALCULOS!AN12) -> 150818.992 | AS18: 332.69 | AT18: 416.23 | AU18: 332.69
C19: 3480.2 | D19: 3534.5 | E19: =+C19+(D19-C19)*(C5-D12)/(C12-D12) -> 3508.436 | H19: 1008.4 | I19: 2802.3 | AN19: 2625.4 | AP19: =+AN19+(AO19-AN19)*(DATA!$C$4-CALCULOS!AN12) -> 160385.686 | AS19: 342.94 | AT19: 426.62 | AU19: 342.94
C20: 7.8533 | D20: 7.92135 | E20: =+C20+(D20-C20)*(C5-D12)/(C12-D12) -> 7.888686 | H20: 2.6455 | I20: 6.1837 | P20: 340 | Q20: 350 | R20: =+P20+(Q20-P20)*(DATA!C9-P24)/(Q24-P24) -> -1371.19898 | W20: 360 | X20: 375 | Y20: =+W20+(X20-W20)*(DATA!C8-W23)/(X23-W23) -> -1001.689775 | AB20: 380 | AC20: 400 | AD20: =+AB20+(AC20-AB20)*(DATA!C7-AB22)/(AC22-AB22) -> -1408.007335 | AH20: 75 | AI20: 100 | AJ20: =+AH20+(AI20-AH20)*(DATA!N8-AH21)/(AI21-AH21) -> 75 | AN20: 7.7695 | AP20: =+AN20+(AO20-AN20)*(DATA!$C$4-CALCULOS!AN12) -> 474.638755 | AS20: 1.0691 | AT20: 1.2996 | AU20: 1.0691
O21: 3000 | P21: 88.6928 | Q21: 90.526 | R21: =+P21+(Q21-P21)*(P3-P24)/(Q24-P24) -> 113.3194102 | V21: 2900 | W21: 95.6714 | X21: 98.414 | Y21: =+W21+(X21-W21)*(W3-W23)/(X23-W23) -> 96.29090121 | AA21: 1000 | AB21: 296.898 | AC21: 306.49 | AD21: =+AB21+(AC21-AB21)*(AB3-AB22)/(AC22-AB22) -> 304.1740831 | AI21: 2679.4 | AJ21: =+AH21+(AI21-AH21)*(AH3-AH21)/(AI21-AH21) -> 2 | AN21: 69.12
P22: 2827.56 | Q22: 2846 | R22: =+P22+(Q22-P22)*(P3-P24)/(Q24-P24) -> 3075.276939 | W22: 2865.36 | X22: 2892 | Y22: =+W22+(X22-W22)*(W3-W23)/(X23-W23) -> 2871.37747 | AB22: 2925.18 | AC22: 2957.9 | AD22: =+AB22+(AC22-AB22)*(AB3-AB22)/(AC22-AB22) -> 2950 | AI22: 7.5014 | AJ22: =+AH22+(AI22-AH22)*(AH3-AH21)/(AI21-AH21) -> 0.005599313279
P23: 3093.58 | Q23: 3117.5 | R23: =+P23+(Q23-P23)*(P3-P24)/(Q24-P24) -> 3414.913469 | W23: 3142.78 | X23: 3177.4 | Y23: =+W23+(X23-W23)*(W3-W23)/(X23-W23) -> 3150.6 | AB23: 3222.08 | AC23: 3264.4 | AD23: =+AB23+(AC23-AB23)*(AB3-AB22)/(AC22-AB22) -> 3254.182152 | AI23: 1695.5 | AJ23: =+AH23+(AI23-AH23)*(AH3-AH21)/(AI21-AH21) -> 1.265581847
P24: 6.7079 | Q24: 6.7471 | R24: =+P24+(Q24-P24)*(P3-P24)/(Q24-P24) -> 7.2345 | W24: 6.80176 | X24: 6.8563 | Y24: =+W24+(X24-W24)*(W3-W23)/(X23-W23) -> 6.814079549 | AB24: 7.40242 | AC24: 7.4665 | AD24: =+AB24+(AC24-AB24)*(AB3-AB22)/(AC22-AB22) -> 7.451028362 | AI24: 2506.6 | AJ24: =+AH24+(AI24-AH24)*(AH3-AH21)/(AI21-AH21) -> 1.871015899
O25: 3100 | P25: 85.637 | Q25: 87.423 | R25: =+P25+(Q25-P25)*(P3-P28)/(Q28-P28) -> 110.2727619 | V25: 3000 | W25: 92.3032 | X25: 94.969 | Y25: =+W25+(X25-W25)*(W3-W27)/(X27-W27) -> 93.05720998 | AA25: 1050 | AB25: 282.538 | AC25: 291.69 | AD25: =+AB25+(AC25-AB25)*(AB3-AB26)/(AC26-AB26) -> 289.6302433 | AI25: 2676.2 | AJ25: =+AH25+(AI25-AH25)*(AH3-AH25)/(AI25-AH25) -> 2
B26: SOBRESATURADO | P26: 2825.74 | Q26: 2844.3 | R26: =+P26+(Q26-P26)*(P3-P28)/(Q28-P28) -> 3081.753293 | W26: 2863.88 | X26: 2890.7 | Y26: =+W26+(X26-W26)*(W3-W27)/(X27-W27) -> 2871.465921 | AB26: 2924.52 | AC26: 2957.4 | AD26: =+AB26+(AC26-AB26)*(AB3-AB26)/(AC26-AB26) -> 2950 | AI26: 7.3618 | AJ26: =+AH26+(AI26-AH26)*(AH3-AH25)/(AI25-AH25) -> 0.005501681489
B27: fila | C27: =MATCH(CALCULOS!C4,'TABLAS DE VAPOR DE AGUA'!A3:A590,1) -> 145 | D27: =+C27+2 -> 147 | E27: =+ADDRESS(D27,D28,1,1,) -> $AF$147 | F27: 1 | G27: =+ADDRESS(F27,F28,1,1,) -> $AF$1 | H27: =+D27 -> 147 | I27: =+ADDRESS(H27,H28,1,1,) -> $A$147 | J27: =+D27 -> 147 | K27: =+ADDRESS(J27,J28,1,1,) -> $D$147 | L27: =+ADDRESS(D27,D28+1,1,1,) -> $AG$147 | M27: =+ADDRESS(J27,J28+1,1,1,) -> $E$147 | P27: 3091.28 | Q27: 3115.4 | R27: =+P27+(Q27-P27)*(P3-P28)/(Q28-P28) -> 3423.98693 | W27: 3140.74 | X27: 3175.6 | Y27: =+W27+(X27-W27)*(W3-W27)/(X27-W27) -> 3150.6 | AB27: 3221.2 | AC27: 3263.6 | AD27: =+AB27+(AC27-AB27)*(AB3-AB26)/(AC26-AB26) -> 3254.057421 | AI27: 1673 | AJ27: =+AH27+(AI27-AH27)*(AH3-AH25)/(AI25-AH25) -> 1.250280248
B28: columna | C28: =IF(C5>=75,MATCH(CALCULOS!C5,'TABLAS DE VAPOR DE AGUA'!F1:AS1,1),0) -> 27 | D28: =+C28+5 -> 32 | E28: =+ADDRESS(D27+7,D28+1,1,1,) -> $AG$154 | F28: =+D28 -> 32 | G28: =+ADDRESS(F27,F28+1,1,1,) -> $AG$1 | H28: 1 | I28: =+ADDRESS(H27+7,H28,1,1,) -> $A$154 | J28: 4 | K28: =+ADDRESS(J27+7,J28,1,1,) -> $D$154 | L28: =+ADDRESS(J27+7,D28+1,1,1,) -> $AG$154 | M28: =+ADDRESS(J27+4,J28+1,1,1,) -> $E$151 | P28: 6.68992 | Q28: 6.7294 | R28: =+P28+(Q28-P28)*(P3-P28)/(Q28-P28) -> 7.2345 | W28: 6.78366 | X28: 6.8385 | Y28: =+W28+(X28-W28)*(W3-W27)/(X27-W27) -> 6.799171256 | AB28: 7.37896 | AC28: 7.4432 | AD28: =+AB28+(AC28-AB28)*(AB3-AB26)/(AC26-AB26) -> 7.428742092 | AI28: 2506.5 | AJ28: =+AH28+(AI28-AH28)*(AH3-AH25)/(AI25-AH25) -> 1.873178387
B31: SATURADO PRESION
B32: fila | C32: =MATCH(CALCULOS!G4,'TABLAS DE VAPOR DE AGUA'!A3:A590,1) -> 293 | D32: =+C32+2 -> 295 | E32: =+ADDRESS(D32,3,1,1,) -> $C$295 | F32: =+D32 -> 295 | G32: =+ADDRESS(F32,1,1,1,) -> $A$295 | H32: =+D32 -> 295 | I32: =+ADDRESS(H32,5,1,1,) -> $E$295
D33: 3 | E33: =+ADDRESS(D32+7,4,1,1,) -> $D$302 | F33: =+D33 -> 3 | G33: =+ADDRESS(F32+7,1,1,1,) -> $A$302 | H33: 5 | I33: =+ADDRESS(H32+7,5,1,1,) -> $E$302
B35: SATURADO TEMPERATURA
B36: fila | C36: =MATCH(CALCULOS!K4,'TABLAS DE VAPOR DE AGUA'!E3:E590,1) ->  | D36: =+C36+2 ->  | E36: =+ADDRESS(D36,3,1,1,) ->  | F36: =+D36 ->  | G36: =+ADDRESS(F36,1,1,1,) ->  | H36: =+D36 ->  | I36: =+ADDRESS(H36,5,1,1,) -> 
D37: 3 | E37: =+ADDRESS(D36+7,4,1,1,) ->  | F37: =+D37 -> 3 | G37: =+ADDRESS(F36+7,1,1,1,) ->  | H37: 5 | I37: =+ADDRESS(H36+7,5,1,1,) -> 
B40: LIQUIDO COMPRIMIDO
B41: fila | C41: =MATCH(CALCULOS!AS4,'TABLAS DE VAPOR DE AGUA'!A599:A626,1) -> 10 | D41: =+C41+599 -> 609 | E41: =+ADDRESS(D41-4,D42,1,1,) -> $I$605 | F41: 599 | G41: =+ADDRESS(F41,D42,1,1,) -> $I$599 | H41: =+D41 -> 609 | I41: =+ADDRESS(H41-4,1,1,1,) -> $A$605 | J41: =+ADDRESS(1,D42,1,1,) -> $I$1
B42: columna | C42: =+MATCH(CALCULOS!AS5,'TABLAS DE VAPOR DE AGUA'!E599:X599,1) -> 5 | D42: =+C42+4 -> 9 | E42: =+ADDRESS(D41+3,D42+1,1,1,) -> $J$612 | F42: 5 | G42: =+ADDRESS(F41,D42+1,1,1,) -> $J$599 | H42: 1 | I42: =+ADDRESS(H41,1,1,1,) -> $A$609 | J42: =+ADDRESS(1,D42+1,1,1,) -> $J$1
B53: INTERPOLAR | G53: celdas | H53: =+ADDRESS(D27,D28,1,1,"TABLAS DE VAPOR DE AGUA") -> 'TABLAS DE VAPOR DE AGUA'!$AF$147
H54: 'TABLAS DE VAPOR DE AGUA'!$W$39 | K54: =CONCATENATE("F¨",D27,"C",D28) -> F¨147C32
C55: 225 | D55: 240 | E55: 250 | H55: =DGET('TABLAS DE VAPOR DE AGUA'!A1:A138,'TABLAS DE VAPOR DE AGUA'!A2,"C4>'TABLAS DE VAPOR DE AGUA'!A1:A138") -> 
C56: 229890 | D56: =+C56+(E56-C56)*($M$1-$N$1)/($M$1-$V$1) ->  | E56: 241430 | H56: =DGET('TABLAS DE VAPOR DE AGUA'!A3:A138,CALCULOS!C4,CALCULOS!C4>'TABLAS DE VAPOR DE AGUA'!A3:A138) -> 
B60: fila | C60: =CELL("DIRECCION",'TABLAS DE VAPOR DE AGUA'!N3) -> '[VAPOR_SC v.2.1.xls]TABLAS DE VAPOR DE AGUA'!$N$3
B61: columna
B65: VOLUMEN DE SATURACION
A66: LIQU | B66: fila | C66: =MATCH(CALCULOS!T7,'TABLAS DE VAPOR DE AGUA'!C3:C566,1) ->  | D66: =+C66+2 ->  | E66: =+ADDRESS(D66,D67,1,1,) ->  | F66: 1 | G66: =+ADDRESS(F66,F67,1,1,) ->  | H66: =+D66 ->  | I66: =+ADDRESS(H66,H67,1,1,) -> 
B67: columna | C67: =MATCH(CALCULOS!H53,'TABLAS DE VAPOR DE AGUA'!F40:AS40,1) ->  | D67: =+C67+5 ->  | E67: =+ADDRESS(D66+7,D67+1,1,1,) ->  | F67: =+D67 ->  | G67: =+ADDRESS(F66,F67+1,1,1,) ->  | H67: 1 | I67: =+ADDRESS(H66+7,H67,1,1,) -> 
A68: VAP | B68: fila | C68: =MATCH(CALCULOS!T9,'TABLAS DE VAPOR DE AGUA'!C5:D568,1) ->  | D68: =+C68+2 ->  | E68: =+ADDRESS(D68,D69,1,1,) ->  | F68: 1 | G68: =+ADDRESS(F68,F69,1,1,) ->  | H68: =+D68 ->  | I68: =+ADDRESS(H68,H69,1,1,) -> 
B69: columna | C69: =MATCH(CALCULOS!H55,'TABLAS DE VAPOR DE AGUA'!F42:AS42,1) ->  | D69: =+C69+5 ->  | E69: =+ADDRESS(D68+7,D69+1,1,1,) ->  | F69: =+D69 ->  | G69: =+ADDRESS(F68,F69+1,1,1,) ->  | H69: 1 | I69: =+ADDRESS(H68+7,H69,1,1,) -> 
B73: PRESION ENTROPIA
B74: fila | C74: =MATCH(CALCULOS!P2,'TABLAS DE VAPOR DE AGUA'!A3:A590,1) -> 9 | D74: =+C74+5 -> 14 | E74: =+ADDRESS(D74,D75,1,1,) ->  | F74: 1 | G74: =+ADDRESS(F74,F75,1,1,) ->  | H74: =+D74 -> 14 | I74: =+ADDRESS(H74,H75,1,1,) -> $A$14 | J74: =+D74+3 -> 17 | K74: =+ADDRESS(J74,J75,1,1,) -> $D$17 | L74: =+ADDRESS(D74,D75+1,1,1,) ->  | M74: =+ADDRESS(J74,45,1,) -> $AS$17
B75: columna | C75: COINCIDIR(CALCULOS!P3;'TABLAS DE VAPOR DE AGUA'!J74:M74;1) | D75: =+C75+5 ->  | E75: =+ADDRESS(D74+7,D75+1,1,1,) ->  | F75: =+D75 ->  | G75: =+ADDRESS(F74,F75+1,1,1,) ->  | H75: 1 | I75: =+ADDRESS(H74+7,H75,1,1,) -> $A$21 | J75: 4 | K75: =+ADDRESS(J74+7,J75,1,1,) -> $D$24 | L75: =+ADDRESS(J74+7,D75+1,1,1,) -> 
J76: 45
B79: PRESION ENTALPIA
B80: fila | C80: =MATCH(CALCULOS!W2,'TABLAS DE VAPOR DE AGUA'!A3:A590,1) -> 293 | D80: =+C80+4 -> 297 | E80: =+ADDRESS(D80,D81,1,1,) ->  | F80: 1 | G80: =+ADDRESS(F80,F81,1,1,) ->  | H80: =+D80 -> 297 | I80: =+ADDRESS(H80,H81,1,1,) -> $A$297 | J80: =+D80+3 -> 300 | K80: =+ADDRESS(J80,J81,1,1,) -> $D$300
B81: columna | C81: COINCIDIR(CALCULOS!W9;'TABLAS DE VAPOR DE AGUA'!J80:M80;1) | D81: =+C81+5 ->  | E81: =+ADDRESS(D80+7,D81+1,1,1,) ->  | F81: =+D81 ->  | G81: =+ADDRESS(F80,F81+1,1,1,) ->  | H81: 1 | I81: =+ADDRESS(H80+7,H81,1,1,) -> $A$304 | J81: 4 | K81: =+ADDRESS(J80+7,J81,1,1,) -> $D$307
J82: 45
B85: PRESION INTERNA
B86: fila | C86: =MATCH(CALCULOS!AB2,'TABLAS DE VAPOR DE AGUA'!A3:A590,1) -> 177 | D86: =+C86+3 -> 180 | E86: =+ADDRESS(D86,D87,1,1,) ->  | F86: 1 | G86: =+ADDRESS(F86,F87,1,1,) ->  | H86: =+D86 -> 180 | I86: =+ADDRESS(H86,H87,1,1,) -> $A$180 | J86: =+D86+3 -> 183 | K86: =+ADDRESS(J86,J87,1,1,) -> $D$183
B87: columna | C87: COINCIDIR(CALCULOS!AB9;'TABLAS DE VAPOR DE AGUA'!J80:M80;1) | D87: =+C87+5 ->  | E87: =+ADDRESS(D86+7,D87+1,1,1,) ->  | F87: =+D87 ->  | G87: =+ADDRESS(F86,F87+1,1,1,) ->  | H87: 1 | I87: =+ADDRESS(H86+7,H87,1,1,) -> $A$187 | J87: 4 | K87: =+ADDRESS(J86+7,J87,1,1,) -> $D$190
J88: 45
